Workbook

Sheet StudyPlan
A1: รายวิชา 195231 : THERMODYNAMICS I | O1: ปีการศึกษา 2557 ภาคการศึกษาที่ 1
A2: แผนการสอนและประเมินผล | O2: Section 1&4
O3: รศ.ดร.สมหมาย ปรีเปรม
B4: Lecture | H4: Tutorial | L4: Evaluation
A5: Chapter | B5: Topic | C5: hr | D5: WK | E5: WeekAcc | F5: DateStart | G5: DateEnd | H5: Important Understanding | J5: Chapter | K5: Topic | L5: HW | M5: Quiz | N5: Test | O5: Exam
A6: 1 | B6: Basic Concept of Thermodynamics | C6: 3 | D6: =+C6/3 -> 1 | E6: =+D6 -> 1 | F6: 2014-08-11 | G6: =+F6+(D6*7-2) -> 2014-08-16 | H6: Concepts: System, State, Process, Cycle, Pressure & Temperature | J6: 1 | K6: Basic Concept of Thermodynamics | L6: 1 | M6: 1 | N6: 1 | O6: Midterm 30
A7: 2 | B7: Properties of Pure Substances | C7: 4.5 | D7: =+C7/3 -> 1.5 | E7: =+E6+D7 -> 2.5 | F7: =+G6+2 -> 2014-08-18 | G7: 2014-08-26T12:00:00 | H7: State point vs Property, Tables, Process | J7: 2 | K7: Properties of Pure Substances | L7: 2 | M7: 2 - 3
A8: 3 | B8: Heat and Work | C8: 3 | D8: 1 | E8: =+E7+D8 -> 3.5 | F8: =+G7+2 -> 2014-08-28T12:00:00 | G8: 2014-09-02T12:00:00 | H8: Concept of H&W, Boundary work calculation | J8: 3 | K8: Heat and Work | L8: 3 | M8: 4
A9: 4 | B9: The First Law of Thermodynamics | C9: 9 | D9: 3 | E9: =+E8+D9 -> 6.5 | F9: =+G8+2 -> 2014-09-04T12:00:00 | G9: 2014-09-23T12:00:00 | H9: Closed System & Open System: Concepts and Calculation | J9: 4 | K9: The First Law of Thermodynamics | L9: 4 | M9: 5 - 6
A10: 5 | B10: The Second Law of Thermodynamics | C10: 4.5 | D10: 1.5 | E10: =+E9+D10 -> 8 | F10: =+G9+2 -> 2014-09-25T12:00:00 | G10: 2014-10-04 | H10: Concepts: Heat Engine, Heat Pump, Efficiency, COP | J10: 5 | K10: The Second Law of Thermodynamics | L10: 5 | M10: 7
B11: Midterm Exam | D11: 1 | E11: =+E10+D11 -> 9 | F11: =+G10+2 -> 2014-10-06 | G11: =+F11+(D11*7-3) -> 2014-10-10
A12: 6 | B12: Entropy | C12: 6 | D12: =+C12/3 -> 2 | E12: =+E11+D12 -> 11 | F12: =+G11+3 -> 2014-10-13 | G12: =+F12+(D12*7-2) -> 2014-10-25 | H12: Reversible process, Entropy | J12: 6 | K12: Entropy | L12: 6 | M12: 8 | N12: 2 | O12: Final 40
A13: 7 | B13: Gas Power Cycles | C13: 3 | D13: =+C13/3 -> 1 | E13: =+E12+D13 -> 12 | F13: =+G12+2 -> 2014-10-27 | G13: =+F13+(D13*7-2) -> 2014-11-01 | H13: Otto & Diesel, Brayton: Operation & Cycle analysis | J13: 7 | K13: Gas Power Cycles | L13: 7 | M13: 9
A14: 8 | B14: Vapor Power Cycles | C14: 6 | D14: =+C14/3 -> 2 | E14: =+E13+D14 -> 14 | F14: 2014-11-03 | G14: =+F14+(D14*7-2) -> 2014-11-15 | H14: Rankine Cycle: Operation & Cycle analysis | J14: 8 | K14: Vapor Power Cycles | L14: 8 | M14: 10
A15: 9 | B15: Refrigeration Cycles | C15: 4.5 | D15: =+C15/3 -> 1.5 | E15: =+E14+D15 -> 15.5 | F15: 2014-11-17 | G15: =+F15+(D15*7-2) -> 2014-11-25T12:00:00 | H15: Compression Refrigeration Cycle: Operation & Cycle analysis | J15: 9 | K15: Refrigeration Cycles | M15: 11
A16: 10 | B16: Basic to Heat Transfer | C16: 1.5 | D16: =+C16/3 -> 0.5 | E16: =+E15+D16 -> 16 | F16: 2014-11-27T12:00:00 | G16: =+F16+(D16*7-2) -> 2014-11-29 | J16: 10 | K16: Basic to Heat Transfer
B17: Final Exam | F17: =+G16+3 -> 2014-12-02 | G17: =+F17+17 -> 2014-12-19
B18: รวม | C18: =SUM(C6:C16) -> 45 | D18: =SUM(D6:D16) -> 16 | K18: คะแนน | L18: 10 | M18: 10 | N18: 10 | O18: 70

Sheet ตัดเกรด
A1: รายวิชา 185231 : THERMODYNAMICS I
A2: ตัดเกรดอิงเกณฑ์
A3: คะแนนการตัดเกรด โดยประมาณ
A4: คะแนนขั้นต่ำ | C4: เกรด | D4: คะแนนขั้นสูง
A5: ≥ | B5: 80 | C5: A | D5: ≤ | E5: 100
A6: ≥ | B6: 75 | C6: B+ | D6: < | E6: 80
A7: ≥ | B7: 70 | C7: B | D7: < | E7: 75
A8: ≥ | B8: 60 | C8: C+ | D8: < | E8: 70
A9: ≥ | B9: 50 | C9: C | D9: < | E9: 60
A10: ≥ | B10: 45 | C10: D+ | D10: < | E10: 50
A11: ≥ | B11: 40 | C11: D | D11: < | E11: 45
A12: ≥ | B12: 0 | C12: F | D12: < | E12: 40

Sheet Score
B1: รายวิชา | C1: 195231 : THERMODYNAMICS I | F1: Section 1 | M1: Accumulated | N1: Ctrl z to return to this page and reset
B2: ปีการศึกษา | C2: 2556 ภาคการศึกษาที่ 1 | F2: รศ.ดร.สมหมาย ปรีเปรม | G2: 10 | H2: 10 | I2: 10 | J2: 30 | K2: 40 | L2: =SUM(G2:K2) -> 100 | M2: Full score
B3: รหัส | C3: ชื่อ | D3: หลักสูตร | E3: GPA | F3: Section 1 | G3: HW | H3: Quiz | I3: Test | J3: Midterm | K3: Final | L3: Sum | M3: %Acc | N3: Grade | O3: ขาดเรียน
A4: =+Name!A4 -> 1 | B4: =+Name!B4 -> 543040669-6 | C4: =+Name!C4 -> นายเกียรติขจร ทัดทาอามาตย์ | D4: =+Name!D4 -> EN-AE | E4: =+Name!G4 -> 2 | F4: =+Name!H4 -> 1 | H4: =+QuizAll!S4 -> 0 | I4: =+TestAll!K4 -> 0 | J4: =(+Midterm!I4)*30/50 -> 0 | L4: =SUM(G4:K4) -> 0 | M4: =(L4/$L$1)*100 ->  | N4: =IF(L1=0,"A",grade(M4)) -> A | O4: =Class!AN93 -> 0 | P4: 1
A5: =+Name!A5 -> 2 | B5: =+Name!B5 -> 553040404-3 | C5: =+Name!C5 -> นายวนัสมัญ กฤษณะสุวรรณ | D5: =+Name!D5 -> EN-IE | E5: =+Name!G5 -> 1.89 | F5: =+Name!H5 -> 1 | H5: =+QuizAll!S5 -> 0 | I5: =+TestAll!K5 -> 0 | J5: =(+Midterm!I5)*30/50 -> 0 | L5: 0 | N5: =IF(L2=0,"A",grade(M5)) ->  | O5: =Class!AN92 -> 0 | P5: 2
A6: =+Name!A6 -> 3 | B6: =+Name!B6 -> 563040002-4 | C6: =+Name!C6 -> นายกรวิชญ์ ศรีวัฒนาปิติกุล | D6: =+Name!D6 -> EN-ME | E6: =+Name!G6 -> 3.14 | F6: =+Name!H6 -> 1 | H6: =+QuizAll!S6 -> 0 | I6: =+TestAll!K6 -> 0 | J6: =(+Midterm!I6)*30/50 -> 0 | L6: 0 | O6: =Class!AN91 -> 0 | P6: 3
A7: =+Name!A7 -> 4 | B7: =+Name!B7 -> 563040003-2 | C7: =+Name!C7 -> นายกฤช ถาไชยลา | D7: =+Name!D7 -> EN-ME | E7: =+Name!G7 -> 2.84 | F7: =+Name!H7 -> 1 | H7: =+QuizAll!S7 -> 0 | I7: =+TestAll!K7 -> 0 | J7: =(+Midterm!I7)*30/50 -> 0 | L7: 0 | N7: A | O7: =Class!AN90 -> 0 | P7: 4
A8: =+Name!A8 -> 5 | B8: =+Name!B8 -> 563040022-8 | C8: =+Name!C8 -> นายณัฐพล สิทธิอมรพร | D8: =+Name!D8 -> EN-ME | E8: =+Name!G8 -> 3.41 | F8: =+Name!H8 -> 1 | H8: =+QuizAll!S8 -> 0 | I8: =+TestAll!K8 -> 0 | J8: =(+Midterm!I8)*30/50 -> 0 | L8: 0 | N8: A | O8: =Class!AN89 -> 0 | P8: 5
A9: =+Name!A9 -> 6 | B9: =+Name!B9 -> 563040025-2 | C9: =+Name!C9 -> นายทรงพล เกียรติพนมแพ | D9: =+Name!D9 -> EN-IE | E9: =+Name!G9 -> 3.04 | F9: =+Name!H9 -> 1 | H9: =+QuizAll!S9 -> 0 | I9: =+TestAll!K9 -> 0 | J9: =(+Midterm!I9)*30/50 -> 0 | L9: 0 | N9: A | O9: =Class!AN88 -> 0 | P9: 6
A10: =+Name!A10 -> 7 | B10: =+Name!B10 -> 563040032-5 | C10: =+Name!C10 -> นางสาวธนัชชา ใหญ่สูงเนิน | D10: =+Name!D10 -> EN-IE | E10: =+Name!G10 -> 2.76 | F10: =+Name!H10 -> 1 | H10: =+QuizAll!S10 -> 0 | I10: =+TestAll!K10 -> 0 | J10: =(+Midterm!I10)*30/50 -> 0 | L10: 0 | N10: A | O10: =Class!AN87 -> 0 | P10: 7
A11: =+Name!A11 -> 8 | B11: =+Name!B11 -> 563040043-0 | C11: =+Name!C11 -> นางสาวนันทิชา จริยาโสวรรณ | D11: =+Name!D11 -> EN-IE | E11: =+Name!G11 -> 2.04 | F11: =+Name!H11 -> 1 | H11: =+QuizAll!S11 -> 0 | I11: =+TestAll!K11 -> 0 | J11: =(+Midterm!I11)*30/50 -> 0 | L11: 0 | N11: A | O11: =Class!AN86 -> 0 | P11: 8
A12: =+Name!A12 -> 9 | B12: =+Name!B12 -> 563040044-8 | C12: =+Name!C12 -> นางสาวนิภาพร อายุวัฒน์ | D12: =+Name!D12 -> EN-ME | E12: =+Name!G12 -> 2.92 | F12: =+Name!H12 -> 1 | H12: =+QuizAll!S12 -> 0 | I12: =+TestAll!K12 -> 0 | J12: =(+Midterm!I12)*30/50 -> 0 | L12: 0 | N12: A | O12: =Class!AN85 -> 0 | P12: 9
A13: =+Name!A13 -> 10 | B13: =+Name!B13 -> 563040051-1 | C13: =+Name!C13 -> นายพงศ์ทัช พรวิกุลรัตนา | D13: =+Name!D13 -> EN-ME | E13: =+Name!G13 -> 2.63 | F13: =+Name!H13 -> 1 | H13: =+QuizAll!S13 -> 0 | I13: =+TestAll!K13 -> 0 | J13: =(+Midterm!I13)*30/50 -> 0 | L13: 0 | N13: A | O13: =Class!AN84 -> 0 | P13: 10
A14: =+Name!A14 -> 11 | B14: =+Name!B14 -> 563040059-5 | C14: =+Name!C14 -> นายพสธร นามสร | D14: =+Name!D14 -> EN-ME | E14: =+Name!G14 -> 3.09 | F14: =+Name!H14 -> 1 | H14: =+QuizAll!S14 -> 0 | I14: =+TestAll!K14 -> 0 | J14: =(+Midterm!I14)*30/50 -> 0 | L14: 0 | N14: A | O14: =Class!AN83 -> 0 | P14: 11
A15: =+Name!A15 -> 12 | B15: =+Name!B15 -> 563040064-2 | C15: =+Name!C15 -> นางสาวภัทรามาศ ฉวีชัย | D15: =+Name!D15 -> EN-IE | E15: =+Name!G15 -> 3.12 | F15: =+Name!H15 -> 1 | H15: =+QuizAll!S15 -> 0 | I15: =+TestAll!K15 -> 0 | J15: =(+Midterm!I15)*30/50 -> 0 | L15: 0 | N15: A | O15: =Class!AN82 -> 0 | P15: 12
A16: =+Name!A16 -> 13 | B16: =+Name!B16 -> 563040065-0 | C16: =+Name!C16 -> นายภาคิน จำปาศักดิ์ | D16: =+Name!D16 -> EN-ME | E16: =+Name!G16 -> 3.51 | F16: =+Name!H16 -> 1 | H16: =+QuizAll!S16 -> 0 | I16: =+TestAll!K16 -> 0 | J16: =(+Midterm!I16)*30/50 -> 0 | L16: 0 | N16: A | O16: =Class!AN81 -> 0 | P16: 13
A17: =+Name!A17 -> 14 | B17: =+Name!B17 -> 563040070-7 | C17: =+Name!C17 -> นายมหคพันธุ์ เอมกลาง | D17: =+Name!D17 -> EN-ME | E17: =+Name!G17 -> 2.71 | F17: =+Name!H17 -> 1 | H17: =+QuizAll!S17 -> 0 | I17: =+TestAll!K17 -> 0 | J17: =(+Midterm!I17)*30/50 -> 0 | L17: 0 | N17: A | O17: =Class!AN80 -> 0 | P17: 14
A18: =+Name!A18 -> 15 | B18: =+Name!B18 -> 563040071-5 | C18: =+Name!C18 -> นายมานะ ติรโรจน์ | D18: =+Name!D18 -> EN-ME | E18: =+Name!G18 -> 3.46 | F18: =+Name!H18 -> 1 | H18: =+QuizAll!S18 -> 0 | I18: =+TestAll!K18 -> 0 | J18: =(+Midterm!I18)*30/50 -> 0 | L18: 0 | N18: A | O18: =Class!AN79 -> 0 | P18: 15
A19: =+Name!A19 -> 16 | B19: =+Name!B19 -> 563040076-5 | C19: =+Name!C19 -> นายรัฐศาสตร์ พลยงค์ | D19: =+Name!D19 -> EN-ME | E19: =+Name!G19 -> 2.88 | F19: =+Name!H19 -> 1 | H19: =+QuizAll!S19 -> 0 | I19: =+TestAll!K19 -> 0 | J19: =(+Midterm!I19)*30/50 -> 0 | L19: 0 | N19: A | O19: =Class!AN78 -> 0 | P19: 16
A20: =+Name!A20 -> 17 | B20: =+Name!B20 -> 563040089-6 | C20: =+Name!C20 -> นายศวัสชัย วิวรรธนจิตต์ | D20: =+Name!D20 -> EN-IE | E20: =+Name!G20 -> 2.79 | F20: =+Name!H20 -> 1 | H20: =+QuizAll!S20 -> 0 | I20: =+TestAll!K20 -> 0 | J20: =(+Midterm!I20)*30/50 -> 0 | L20: 0 | N20: A | O20: =Class!AN77 -> 0 | P20: 17
A21: =+Name!A21 -> 18 | B21: =+Name!B21 -> 563040098-5 | C21: =+Name!C21 -> นายสิทธิโชค ชูพงศ์พันธุ์ | D21: =+Name!D21 -> EN-ME | E21: =+Name!G21 -> 2.94 | F21: =+Name!H21 -> 1 | H21: =+QuizAll!S21 -> 0 | I21: =+TestAll!K21 -> 0 | J21: =(+Midterm!I21)*30/50 -> 0 | L21: 0 | N21: A | O21: =Class!AN76 -> 0 | P21: 18
A22: =+Name!A22 -> 19 | B22: =+Name!B22 -> 563040114-3 | C22: =+Name!C22 -> นายคฑาวุธ ศรีโสดาพล | D22: =+Name!D22 -> EN-AE | E22: =+Name!G22 -> 1.51 | F22: =+Name!H22 -> 1 | H22: =+QuizAll!S22 -> 0 | I22: =+TestAll!K22 -> 0 | J22: =(+Midterm!I22)*30/50 -> 0 | L22: 0 | N22: A | O22: =Class!AN75 -> 0 | P22: 19
A23: =+Name!A23 -> 20 | B23: =+Name!B23 -> 563040115-1 | C23: =+Name!C23 -> นายจุลดิศ ทองตัน | D23: =+Name!D23 -> EN-AE | E23: =+Name!G23 -> 1.82 | F23: =+Name!H23 -> 1 | H23: =+QuizAll!S23 -> 0 | I23: =+TestAll!K23 -> 0 | J23: =(+Midterm!I23)*30/50 -> 0 | L23: 0 | N23: A | O23: =Class!AN74 -> 0 | P23: 20
A24: =+Name!A24 -> 21 | B24: =+Name!B24 -> 563040116-9 | C24: =+Name!C24 -> นายโชคชัย ซุยอุ้ย | D24: =+Name!D24 -> EN-AE | E24: =+Name!G24 -> 3.03 | F24: =+Name!H24 -> 1 | H24: =+QuizAll!S24 -> 0 | I24: =+TestAll!K24 -> 0 | J24: =(+Midterm!I24)*30/50 -> 0 | L24: 0 | N24: A | O24: =Class!AN73 -> 0 | P24: 21
A25: =+Name!A25 -> 22 | B25: =+Name!B25 -> 563040121-6 | C25: =+Name!C25 -> นายธนพล หลาบศิริ | D25: =+Name!D25 -> EN-AE | E25: =+Name!G25 -> 2.77 | F25: =+Name!H25 -> 1 | H25: =+QuizAll!S25 -> 0 | I25: =+TestAll!K25 -> 0 | J25: =(+Midterm!I25)*30/50 -> 0 | L25: 0 | N25: A | O25: =Class!AN72 -> 0 | P25: 22
A26: =+Name!A26 -> 23 | B26: =+Name!B26 -> 563040123-2 | C26: =+Name!C26 -> นายธนวร สันธนะสุรางค์ | D26: =+Name!D26 -> EN-AE | E26: =+Name!G26 -> 2.35 | F26: =+Name!H26 -> 1 | H26: =+QuizAll!S26 -> 0 | I26: =+TestAll!K26 -> 0 | J26: =(+Midterm!I26)*30/50 -> 0 | L26: 0 | N26: A | O26: =Class!AN71 -> 0 | P26: 23
A27: =+Name!A27 -> 24 | B27: =+Name!B27 -> 563040129-0 | C27: =+Name!C27 -> นายพีรเมธ จุฑานันท์ | D27: =+Name!D27 -> EN-AE | E27: =+Name!G27 -> 1.89 | F27: =+Name!H27 -> 1 | H27: =+QuizAll!S27 -> 0 | I27: =+TestAll!K27 -> 0 | J27: =(+Midterm!I27)*30/50 -> 0 | L27: 0 | N27: A | O27: =Class!AN70 -> 0 | P27: 24
A28: =+Name!A28 -> 25 | B28: =+Name!B28 -> 563040130-5 | C28: =+Name!C28 -> นายพีส คูณดี | D28: =+Name!D28 -> EN-AE | E28: =+Name!G28 -> 2.29 | F28: =+Name!H28 -> 1 | H28: =+QuizAll!S28 -> 0 | I28: =+TestAll!K28 -> 0 | J28: =(+Midterm!I28)*30/50 -> 0 | L28: 0 | N28: A | O28: =Class!AN69 -> 0 | P28: 25
A29: =+Name!A29 -> 26 | B29: =+Name!B29 -> 563040137-1 | C29: =+Name!C29 -> นายศุภณัฐ ลัภกิตโร | D29: =+Name!D29 -> EN-AE | E29: =+Name!G29 -> 2.58 | F29: =+Name!H29 -> 1 | H29: =+QuizAll!S29 -> 0 | I29: =+TestAll!K29 -> 0 | J29: =(+Midterm!I29)*30/50 -> 0 | L29: 0 | N29: A | O29: =Class!AN68 -> 0 | P29: 26
A30: =+Name!A30 -> 27 | B30: =+Name!B30 -> 563040139-7 | C30: =+Name!C30 -> นายสุธรรม ดิษาภิรมย์ | D30: =+Name!D30 -> EN-AE | E30: =+Name!G30 -> 1.78 | F30: =+Name!H30 -> 1 | H30: =+QuizAll!S30 -> 0 | I30: =+TestAll!K30 -> 0 | J30: =(+Midterm!I30)*30/50 -> 0 | L30: 0 | N30: A | O30: =Class!AN67 -> 0 | P30: 27
A31: =+Name!A31 -> 28 | B31: =+Name!B31 -> 563040231-9 | C31: =+Name!C31 -> นายอธิการ สุริโย | D31: =+Name!D31 -> EN-IE | E31: =+Name!G31 -> 1.71 | F31: =+Name!H31 -> 1 | H31: =+QuizAll!S31 -> 0 | I31: =+TestAll!K31 -> 0 | J31: =(+Midterm!I31)*30/50 -> 0 | L31: 0 | N31: A | O31: =Class!AN66 -> 0 | P31: 28
A32: =+Name!A32 -> 29 | B32: =+Name!B32 -> 563040260-2 | C32: =+Name!C32 -> นางสาวณัฐณิชา ศิริเหล่าไพศาล | D32: =+Name!D32 -> EN-IE | E32: =+Name!G32 -> 3.17 | F32: =+Name!H32 -> 1 | H32: =+QuizAll!S32 -> 0 | I32: =+TestAll!K32 -> 0 | J32: =(+Midterm!I32)*30/50 -> 0 | L32: 0 | N32: A | O32: =Class!AN65 -> 0 | P32: 29
A33: =+Name!A33 -> 30 | B33: =+Name!B33 -> 563040269-4 | C33: =+Name!C33 -> นายกนกพล แก้วเฮียง | D33: =+Name!D33 -> EN-ME | E33: =+Name!G33 -> 3.06 | F33: =+Name!H33 -> 1 | H33: =+QuizAll!S33 -> 0 | I33: =+TestAll!K33 -> 0 | J33: =(+Midterm!I33)*30/50 -> 0 | L33: 0 | N33: A | O33: =Class!AN64 -> 0 | P33: 30
A34: =+Name!A34 -> 31 | B34: =+Name!B34 -> 563040272-5 | C34: =+Name!C34 -> นายกีรติ มังษา | D34: =+Name!D34 -> EN-ME | E34: =+Name!G34 -> 2.87 | F34: =+Name!H34 -> 1 | H34: =+QuizAll!S34 -> 0 | I34: =+TestAll!K34 -> 0 | J34: =(+Midterm!I34)*30/50 -> 0 | L34: 0 | N34: A | O34: =Class!AN63 -> 0 | P34: 31
A35: =+Name!A35 -> 32 | B35: =+Name!B35 -> 563040275-9 | C35: =+Name!C35 -> นางสาวคุณัญญา ทวีสอน | D35: =+Name!D35 -> EN-ME | E35: =+Name!G35 -> 2.69 | F35: =+Name!H35 -> 1 | H35: =+QuizAll!S35 -> 0 | I35: =+TestAll!K35 -> 0 | J35: =(+Midterm!I35)*30/50 -> 0 | L35: 0 | N35: A | O35: =Class!AN62 -> 0 | P35: 32
A36: =+Name!A36 -> 33 | B36: =+Name!B36 -> 563040289-8 | C36: =+Name!C36 -> นางสาวโชติณัฐ จงใจหาญ | D36: =+Name!D36 -> EN-IE | E36: =+Name!G36 -> 3 | F36: =+Name!H36 -> 1 | H36: =+QuizAll!S36 -> 0 | I36: =+TestAll!K36 -> 0 | J36: =(+Midterm!I36)*30/50 -> 0 | L36: =SUM(G36:K36) -> 0 | M36: =(L36/$L$1)*100 ->  | N36: A | O36: =Class!AN61 -> 0 | P36: 33
A37: =+Name!A37 -> 34 | B37: =+Name!B37 -> 563040292-9 | C37: =+Name!C37 -> นางสาวฐิติพร ฐานหมั่น | D37: =+Name!D37 -> EN-IE | E37: =+Name!G37 -> 2.12 | F37: =+Name!H37 -> 1 | H37: =+QuizAll!S37 -> 0 | I37: =+TestAll!K37 -> 0 | J37: =(+Midterm!I37)*30/50 -> 0 | L37: 0 | N37: A | O37: =Class!AN60 -> 0 | P37: 34
A38: =+Name!A38 -> 35 | B38: =+Name!B38 -> 563040296-1 | C38: =+Name!C38 -> นางสาวณัฐชยา ทัศนจินดา | D38: =+Name!D38 -> EN-IE | E38: =+Name!G38 -> 2.75 | F38: =+Name!H38 -> 1 | H38: =+QuizAll!S38 -> 0 | I38: =+TestAll!K38 -> 0 | J38: =(+Midterm!I38)*30/50 -> 0 | L38: 0 | N38: A | O38: =Class!AN59 -> 0 | P38: 35
A39: =+Name!A39 -> 36 | B39: =+Name!B39 -> 563040304-8 | C39: =+Name!C39 -> นายธนพนธ์ ตั้งวัฒนสุวรรณ | D39: =+Name!D39 -> EN-IE | E39: =+Name!G39 -> 2.44 | F39: =+Name!H39 -> 1 | H39: =+QuizAll!S39 -> 0 | I39: =+TestAll!K39 -> 0 | J39: =(+Midterm!I39)*30/50 -> 0 | L39: 0 | N39: A | O39: =Class!AN58 -> 0 | P39: 36
A40: =+Name!A40 -> 37 | B40: =+Name!B40 -> 563040313-7 | C40: =+Name!C40 -> นายธาดา วิริยบัณฑร | D40: =+Name!D40 -> EN-ME | E40: =+Name!G40 -> 3.49 | F40: =+Name!H40 -> 1 | H40: =+QuizAll!S40 -> 0 | I40: =+TestAll!K40 -> 0 | J40: =(+Midterm!I40)*30/50 -> 0 | L40: 0 | N40: A | O40: =Class!AN57 -> 0 | P40: 37
A41: =+Name!A41 -> 38 | B41: =+Name!B41 -> 563040315-3 | C41: =+Name!C41 -> นางสาวธิดาวรรณ ใจตรง | D41: =+Name!D41 -> EN-IE | E41: =+Name!G41 -> 2.48 | F41: =+Name!H41 -> 1 | H41: =+QuizAll!S41 -> 0 | I41: =+TestAll!K41 -> 0 | J41: =(+Midterm!I41)*30/50 -> 0 | L41: 0 | N41: A | O41: =Class!AN56 -> 0 | P41: 38
A42: =+Name!A42 -> 39 | B42: =+Name!B42 -> 563040334-9 | C42: =+Name!C42 -> นายพชร ไชยสมบูรณ์ | D42: =+Name!D42 -> EN-IE | E42: =+Name!G42 -> 2.32 | F42: =+Name!H42 -> 1 | H42: =+QuizAll!S42 -> 0 | I42: =+TestAll!K42 -> 0 | J42: =(+Midterm!I42)*30/50 -> 0 | L42: 0 | N42: A | O42: =Class!AN55 -> 0 | P42: 39
A43: =+Name!A43 -> 40 | B43: =+Name!B43 -> 563040341-2 | C43: =+Name!C43 -> นายพิทวัส เบ้าศรี | D43: =+Name!D43 -> EN-ME | E43: =+Name!G43 -> 2.68 | F43: =+Name!H43 -> 1 | H43: =+QuizAll!S43 -> 0 | I43: =+TestAll!K43 -> 0 | J43: =(+Midterm!I43)*30/50 -> 0 | L43: 0 | N43: A | O43: =Class!AN54 -> 0 | P43: 40
A44: =+Name!A44 -> 41 | B44: =+Name!B44 -> 563040344-6 | C44: =+Name!C44 -> นายไพโรจน์ วงษ์จำปา | D44: =+Name!D44 -> EN-ME | E44: =+Name!G44 -> 2.61 | F44: =+Name!H44 -> 1 | H44: =+QuizAll!S44 -> 0 | I44: =+TestAll!K44 -> 0 | J44: =(+Midterm!I44)*30/50 -> 0 | L44: 0 | N44: A | O44: =Class!AN53 -> 0 | P44: 41
A45: =+Name!A45 -> 42 | B45: =+Name!B45 -> 563040346-2 | C45: =+Name!C45 -> นายภระรถ ผาสิงห์ | D45: =+Name!D45 -> EN-ME | E45: =+Name!G45 -> 3.13 | F45: =+Name!H45 -> 1 | H45: =+QuizAll!S45 -> 0 | I45: =+TestAll!K45 -> 0 | J45: =(+Midterm!I45)*30/50 -> 0 | L45: 0 | N45: A | O45: =Class!AN52 -> 0 | P45: 42
A46: =+Name!A46 -> 43 | B46: =+Name!B46 -> 563040351-9 | C46: =+Name!C46 -> นางสาวมุกดารัศมิ์ อาจบรรจง | D46: =+Name!D46 -> EN-ME | E46: =+Name!G46 -> 2.96 | F46: =+Name!H46 -> 1 | H46: =+QuizAll!S46 -> 0 | I46: =+TestAll!K46 -> 0 | J46: =(+Midterm!I46)*30/50 -> 0 | L46: 0 | N46: A | O46: =Class!AN51 -> 0 | P46: 43
A47: =+Name!A47 -> 44 | B47: =+Name!B47 -> 563040359-3 | C47: =+Name!C47 -> นายวริษฐ์ จวงพุ่ม | D47: =+Name!D47 -> EN-IE | E47: =+Name!G47 -> 2.34 | F47: =+Name!H47 -> 1 | H47: =+QuizAll!S47 -> 0 | I47: =+TestAll!K47 -> 0 | J47: =(+Midterm!I47)*30/50 -> 0 | L47: 0 | N47: A | O47: =Class!AN50 -> 0 | P47: 44
A48: =+Name!A48 -> 45 | B48: =+Name!B48 -> 563040367-4 | C48: =+Name!C48 -> นายไวพจน์ แสงกุดเรือ | D48: =+Name!D48 -> EN-ME | E48: =+Name!G48 -> 2.78 | F48: =+Name!H48 -> 1 | H48: =+QuizAll!S48 -> 0 | I48: =+TestAll!K48 -> 0 | J48: =(+Midterm!I48)*30/50 -> 0 | L48: 0 | N48: A | O48: =Class!AN49 -> 0 | P48: 45
A49: =+Name!A49 -> 46 | B49: =+Name!B49 -> 563040389-4 | C49: =+Name!C49 -> นางสาวสุธีรา นาหัวนิล | D49: =+Name!D49 -> EN-IE | E49: =+Name!G49 -> 2.3 | F49: =+Name!H49 -> 1 | H49: =+QuizAll!S49 -> 0 | I49: =+TestAll!K49 -> 0 | J49: =(+Midterm!I49)*30/50 -> 0 | L49: 0 | N49: A | O49: =Class!AN48 -> 0 | P49: 46
A50: =+Name!A50 -> 47 | B50: =+Name!B50 -> 563040393-3 | C50: =+Name!C50 -> นายสุภานุเดช ถาวิกุล | D50: =+Name!D50 -> EN-IE | E50: =+Name!G50 -> 1.58 | F50: =+Name!H50 -> 1 | H50: =+QuizAll!S50 -> 0 | I50: =+TestAll!K50 -> 0 | J50: =(+Midterm!I50)*30/50 -> 0 | L50: 0 | N50: A | O50: =Class!AN47 -> 0 | P50: 47
A51: =+Name!A51 -> 48 | B51: =+Name!B51 -> 563040394-1 | C51: =+Name!C51 -> นางสาวสุภาวิตา ทาเวียง | D51: =+Name!D51 -> EN-IE | E51: =+Name!G51 -> 2.37 | F51: =+Name!H51 -> 1 | H51: =+QuizAll!S51 -> 0 | I51: =+TestAll!K51 -> 0 | J51: =(+Midterm!I51)*30/50 -> 0 | L51: 0 | N51: A | O51: =Class!AN46 -> 0 | P51: 48
A52: =+Name!A52 -> 49 | B52: =+Name!B52 -> 563040396-7 | C52: =+Name!C52 -> นางสาวสุวนันท์ ดวงพิมาย | D52: =+Name!D52 -> EN-IE | E52: =+Name!G52 -> 2.19 | F52: =+Name!H52 -> 1 | H52: =+QuizAll!S52 -> 0 | I52: =+TestAll!K52 -> 0 | J52: =(+Midterm!I52)*30/50 -> 0 | L52: 0 | N52: A | O52: =Class!AN45 -> 0 | P52: 49
A53: =+Name!A53 -> 50 | B53: =+Name!B53 -> 563040397-5 | C53: =+Name!C53 -> นางสาวเหมือนฝัน จินดามณี | D53: =+Name!D53 -> EN-IE | E53: =+Name!G53 -> 1.72 | F53: =+Name!H53 -> 1 | H53: =+QuizAll!S53 -> 0 | I53: =+TestAll!K53 -> 0 | J53: =(+Midterm!I53)*30/50 -> 0 | L53: 0 | N53: A | O53: =Class!AN44 -> 0 | P53: 50
A54: =+Name!A54 -> 51 | B54: =+Name!B54 -> 563040398-3 | C54: =+Name!C54 -> นางสาวเหมือนฝัน เผือกไร่ | D54: =+Name!D54 -> EN-ME | E54: =+Name!G54 -> 2.75 | F54: =+Name!H54 -> 1 | H54: =+QuizAll!S54 -> 0 | I54: =+TestAll!K54 -> 0 | J54: =(+Midterm!I54)*30/50 -> 0 | L54: 0 | N54: A | O54: =Class!AN43 -> 0 | P54: 51
A55: =+Name!A55 -> 52 | B55: =+Name!B55 -> 563040400-2 | C55: =+Name!C55 -> นายอดิศร โพธิ์ยา | D55: =+Name!D55 -> EN-IE | E55: =+Name!G55 -> 2.37 | F55: =+Name!H55 -> 1 | H55: =+QuizAll!S55 -> 0 | I55: =+TestAll!K55 -> 0 | J55: =(+Midterm!I55)*30/50 -> 0 | L55: 0 | N55: A | O55: =Class!AN42 -> 0 | P55: 52
A56: =+Name!A56 -> 53 | B56: =+Name!B56 -> 563040408-6 | C56: =+Name!C56 -> นายอรรถศาสตร์ สุระคาย | D56: =+Name!D56 -> EN-ME | E56: =+Name!G56 -> 2.57 | F56: =+Name!H56 -> 1 | H56: =+QuizAll!S56 -> 0 | I56: =+TestAll!K56 -> 0 | J56: =(+Midterm!I56)*30/50 -> 0 | L56: 0 | N56: A | O56: =Class!AN41 -> 0 | P56: 53
A57: =+Name!A57 -> 54 | B57: =+Name!B57 -> 563040419-1 | C57: =+Name!C57 -> นายชาญชัย มีสนาม | D57: =+Name!D57 -> EN-AE | E57: =+Name!G57 -> 2.88 | F57: =+Name!H57 -> 1 | H57: =+QuizAll!S57 -> 0 | I57: =+TestAll!K57 -> 0 | J57: =(+Midterm!I57)*30/50 -> 0 | L57: 0 | N57: A | O57: =Class!AN40 -> 0 | P57: 54
A58: =+Name!A58 -> 55 | B58: =+Name!B58 -> 563040424-8 | C58: =+Name!C58 -> นายนิติศักดิ์ แต่งเมือง | D58: =+Name!D58 -> EN-AE | E58: =+Name!G58 -> 2.26 | F58: =+Name!H58 -> 1 | H58: =+QuizAll!S58 -> 0 | I58: =+TestAll!K58 -> 0 | J58: =(+Midterm!I58)*30/50 -> 0 | L58: 0 | N58: A | O58: =Class!AN39 -> 0 | P58: 55
A59: =+Name!A59 -> 56 | B59: =+Name!B59 -> 563040426-4 | C59: =+Name!C59 -> นางสาวเพชรากร ยอดสุวรรณ์ | D59: =+Name!D59 -> EN-AE | E59: =+Name!G59 -> 2.89 | F59: =+Name!H59 -> 1 | H59: =+QuizAll!S59 -> 0 | I59: =+TestAll!K59 -> 0 | J59: =(+Midterm!I59)*30/50 -> 0 | L59: 0 | N59: A | O59: =Class!AN38 -> 0 | P59: 56
A60: =+Name!A60 -> 57 | B60: =+Name!B60 -> 563040431-1 | C60: =+Name!C60 -> นายวนัส ภูยาธร | D60: =+Name!D60 -> EN-AE | E60: =+Name!G60 -> 2.23 | F60: =+Name!H60 -> 1 | H60: =+QuizAll!S60 -> 0 | I60: =+TestAll!K60 -> 0 | J60: =(+Midterm!I60)*30/50 -> 0 | L60: 0 | N60: A | O60: =Class!AN37 -> 0 | P60: 57
A61: =+Name!A61 -> 58 | B61: =+Name!B61 -> 563040433-7 | C61: =+Name!C61 -> นางสาวศุภลักษณ์ เครือเพชร | D61: =+Name!D61 -> EN-AE | E61: =+Name!G61 -> 2.64 | F61: =+Name!H61 -> 1 | H61: =+QuizAll!S61 -> 0 | I61: =+TestAll!K61 -> 0 | J61: =(+Midterm!I61)*30/50 -> 0 | L61: 0 | N61: A | O61: =Class!AN36 -> 0 | P61: 58
A62: =+Name!A62 -> 0 | B62: =+Name!B62 -> 0 | C62: =+Name!C62 -> 0 | D62: =+Name!D62 -> 0 | E62: =+Name!G62 -> 0 | F62: =+Name!H62 -> 0 | H62: =+QuizAll!S62 -> 0 | I62: =+TestAll!K62 -> 0 | J62: =(+Midterm!I62)*30/50 -> 0 | L62: 0 | N62: A | O62: =Class!AN35 -> 0 | P62: 59
A63: =+Name!A63 -> 1 | B63: =+Name!B63 -> 563040584-6 | C63: =+Name!C63 -> นายกรนันท์ พันธะสา | D63: =+Name!D63 -> EN-ME (พิเศษ ม.6) | E63: =+Name!G63 -> 2.64 | F63: =+Name!H63 -> 4 | H63: =+QuizAll!S63 -> 0 | I63: =+TestAll!K63 -> 0 | J63: =(+Midterm!I63)*30/50 -> 0 | L63: 0 | N63: A | O63: =Class!AN34 -> 0 | P63: 60
A64: =+Name!A64 -> 2 | B64: =+Name!B64 -> 563040586-2 | C64: =+Name!C64 -> นายจักรกฤษณ์ ตันเจริญ | D64: =+Name!D64 -> EN-ME (พิเศษ ม.6) | E64: =+Name!G64 -> 1.8 | F64: =+Name!H64 -> 4 | H64: =+QuizAll!S64 -> 0 | I64: =+TestAll!K64 -> 0 | J64: =(+Midterm!I64)*30/50 -> 0 | L64: 0 | N64: A | O64: =Class!AN33 -> 0 | P64: 61
A65: =+Name!A65 -> 3 | B65: =+Name!B65 -> 563040595-1 | C65: =+Name!C65 -> นายทรงภพ กระสังข์ | D65: =+Name!D65 -> EN-ME (พิเศษ ม.6) | E65: =+Name!G65 -> 2.52 | F65: =+Name!H65 -> 4 | H65: =+QuizAll!S65 -> 0 | I65: =+TestAll!K65 -> 0 | J65: =(+Midterm!I65)*30/50 -> 0 | L65: 0 | N65: A | O65: =Class!AN32 -> 0 | P65: 62
A66: =+Name!A66 -> 4 | B66: =+Name!B66 -> 563040596-9 | C66: =+Name!C66 -> นายทรงศิลป์ ศิริแก้ว | D66: =+Name!D66 -> EN-ME (พิเศษ ม.6) | E66: =+Name!G66 -> 1.9 | F66: =+Name!H66 -> 4 | H66: =+QuizAll!S66 -> 0 | I66: =+TestAll!K66 -> 0 | J66: =(+Midterm!I66)*30/50 -> 0 | L66: 0 | N66: A | O66: =Class!AN31 -> 0 | P66: 63
A67: =+Name!A67 -> 5 | B67: =+Name!B67 -> 563040598-5 | C67: =+Name!C67 -> นายธนะโชติ สาโม้ | D67: =+Name!D67 -> EN-ME (พิเศษ ม.6) | E67: =+Name!G67 -> 2.12 | F67: =+Name!H67 -> 4 | H67: =+QuizAll!S67 -> 0 | I67: =+TestAll!K67 -> 0 | J67: =(+Midterm!I67)*30/50 -> 0 | L67: 0 | N67: A | O67: =Class!AN30 -> 0 | P67: 64
A68: =+Name!A68 -> 6 | B68: =+Name!B68 -> 563040602-0 | C68: =+Name!C68 -> นางสาวปฏิมาภรณ์ ทักขินัย | D68: =+Name!D68 -> EN-ME (พิเศษ ม.6) | E68: =+Name!G68 -> 2.42 | F68: =+Name!H68 -> 4 | H68: =+QuizAll!S68 -> 0 | I68: =+TestAll!K68 -> 0 | J68: =(+Midterm!I68)*30/50 -> 0 | L68: =SUM(G68:K68) -> 0 | M68: =(L68/$L$1)*100 ->  | N68: A | O68: =Class!AN29 -> 0 | P68: 65
A69: =+Name!A69 -> 7 | B69: =+Name!B69 -> 563040604-6 | C69: =+Name!C69 -> นายพิฆเนศ ระเบียบโอษฐ์ | D69: =+Name!D69 -> EN-ME (พิเศษ ม.6) | E69: =+Name!G69 -> 1.73 | F69: =+Name!H69 -> 4 | H69: =+QuizAll!S69 -> 0 | I69: =+TestAll!K69 -> 0 | J69: =(+Midterm!I69)*30/50 -> 0 | L69: 0 | N69: =IF(L66=0,"A",grade(M69)) -> A | O69: =Class!AN28 -> 0 | P69: 66
A70: =+Name!A70 -> 8 | B70: =+Name!B70 -> 563040608-8 | C70: =+Name!C70 -> นางสาวมณฑกานต์ มูลสาร | D70: =+Name!D70 -> EN-ME (พิเศษ ม.6) | E70: =+Name!G70 -> 1.99 | F70: =+Name!H70 -> 4 | H70: =+QuizAll!S70 -> 0 | I70: =+TestAll!K70 -> 0 | J70: =(+Midterm!I70)*30/50 -> 0 | L70: 0 | N70: A | O70: =Class!AN27 -> 0 | P70: 67
A71: =+Name!A71 -> 9 | B71: =+Name!B71 -> 563040609-6 | C71: =+Name!C71 -> นายรัฐศาสตร์ จันใหญ่ | D71: =+Name!D71 -> EN-ME (พิเศษ ม.6) | E71: =+Name!G71 -> 2.47 | F71: =+Name!H71 -> 4 | H71: =+QuizAll!S71 -> 0 | I71: =+TestAll!K71 -> 0 | J71: =(+Midterm!I71)*30/50 -> 0 | L71: 0 | N71: A | O71: =Class!AN26 -> 0 | P71: 68
A72: =+Name!A72 -> 10 | B72: =+Name!B72 -> 563040610-1 | C72: =+Name!C72 -> นายลักษมณ์ เฮงพูลธนา | D72: =+Name!D72 -> EN-ME (พิเศษ ม.6) | E72: =+Name!G72 -> 1.51 | F72: =+Name!H72 -> 4 | H72: =+QuizAll!S72 -> 0 | I72: =+TestAll!K72 -> 0 | J72: =(+Midterm!I72)*30/50 -> 0 | L72: 0 | N72: A | O72: =Class!AN25 -> 0 | P72: 69
A73: =+Name!A73 -> 11 | B73: =+Name!B73 -> 563040614-3 | C73: =+Name!C73 -> นายศิวัช เฮงพูลธนา | D73: =+Name!D73 -> EN-ME (พิเศษ ม.6) | E73: =+Name!G73 -> 2.21 | F73: =+Name!H73 -> 4 | H73: =+QuizAll!S73 -> 0 | I73: =+TestAll!K73 -> 0 | J73: =(+Midterm!I73)*30/50 -> 0 | L73: 0 | N73: A | O73: =Class!AN24 -> 0 | P73: 70
A74: =+Name!A74 -> 12 | B74: =+Name!B74 -> 563040618-5 | C74: =+Name!C74 -> นายเสาเอก น้อยปรีชา | D74: =+Name!D74 -> EN-ME (พิเศษ ม.6) | E74: =+Name!G74 -> 2.24 | F74: =+Name!H74 -> 4 | H74: =+QuizAll!S74 -> 0 | I74: =+TestAll!K74 -> 0 | J74: =(+Midterm!I74)*30/50 -> 0 | L74: 0 | N74: A | O74: =Class!AN23 -> 0 | P74: 71
A75: =+Name!A75 -> 13 | B75: =+Name!B75 -> 563040619-3 | C75: =+Name!C75 -> นายอภิเศรษฐ์ อินทรพาณิชย์ | D75: =+Name!D75 -> EN-ME (พิเศษ ม.6) | E75: =+Name!G75 -> 2.59 | F75: =+Name!H75 -> 4 | H75: =+QuizAll!S75 -> 0 | I75: =+TestAll!K75 -> 0 | J75: =(+Midterm!I75)*30/50 -> 0 | L75: 0 | N75: A | O75: =Class!AN22 -> 0 | P75: 72
A76: =+Name!A76 -> 14 | B76: =+Name!B76 -> 563040620-8 | C76: =+Name!C76 -> นายอมรเทพ วงษ์สมศรี | D76: =+Name!D76 -> EN-ME (พิเศษ ม.6) | E76: =+Name!G76 -> 2.02 | F76: =+Name!H76 -> 4 | H76: =+QuizAll!S76 -> 0 | I76: =+TestAll!K76 -> 0 | J76: =(+Midterm!I76)*30/50 -> 0 | L76: 0 | N76: A | O76: =Class!AN21 -> 0 | P76: 73
P77: 74
P78: 75
P79: 76
P80: 77
P81: 78
P82: 79
P83: 80
P84: 81
P85: 82
P86: 83
P87: 84
P88: 85
P89: 86
P90: 87
P91: 88
P92: 89
P93: 90
P94: 91
P95: 92
P96: 93
P97: 94
P98: 95
P99: 96
P100: 97
P101: 98
P102: 99
P103: 100
P104: 101
P105: 102
P106: 103
P107: 104
P108: 105
P109: 106
P110: 107
D111: Average | E111: =AVERAGE(E4:E109) -> 2.475342466 | G111: =AVERAGE(G5:G110) ->  | H111: =AVERAGE(H4:H110) -> 0 | I111: =AVERAGE(I4:I110) -> 0 | K111: =AVERAGE(K4:K110) ->  | L111: =AVERAGE(L4:L110) -> 0 | M111: =AVERAGE(M4:M110) -> 
D112: Max | E112: =MAX(E4:E109) -> 3.51 | G112: =MAX(G5:G110) -> 0 | H112: =MAX(H4:H110) -> 0 | I112: =MAX(I4:I110) -> 0 | K112: =MAX(K4:K110) -> 0 | L112: =MAX(L4:L110) -> 0 | M112: =MAX(M4:M110) -> 
D113: SD | E113: =STDEV(E4:E109) -> 0.5775789561 | G113: =STDEV(G4:G110) ->  | H113: =STDEV(H4:H110) -> 0 | I113: =STDEV(I4:I110) -> 0 | K113: =STDEV(K4:K110) ->  | L113: =STDEV(L4:L110) -> 0 | M113: =STDEV(M4:M110) -> 

Sheet SignName
A1: รายวิชา 195231 : THERMODYNAMICS I | H1: ปีการศึกษา 2556 ภาคการศึกษาที่ 1 | M1: รศ.ดร.สมหมาย ปรีเปรม
B2: Test 1 Saturday 27 September 2014 | M2: Section 1&4
A3: ที่ | B3: รหัส | C3: ชื่อ | H3: ที่ | I3: รหัส | J3: ชื่อ
A4: 1 | B4: 513041112-7 | C4: นายมติชน โอษะคลัง | H4: 44 | I4: 563040289-8 | J4: นางสาวโชติณัฐ จงใจหาญ
A5: 2 | B5: 543040294-3 | C5: นายอธิปไตย นวลศิริ | H5: 45 | I5: 563040292-9 | J5: นางสาวฐิติพร ฐานหมั่น
A6: 3 | B6: 543040669-6 | C6: นายเกียรติขจร ทัดทาอามาตย์ | H6: 46 | I6: 563040296-1 | J6: นางสาวณัฐชยา ทัศนจินดา
A7: 4 | B7: 543040670-1 | C7: นางสาวขนิษฐา ทวีแสง | H7: 47 | I7: 563040297-9 | J7: นายณัฐภัทร ศรีสม
A8: 5 | B8: 543040677-7 | C8: นายธีรภัทร แก้วมะ | H8: 48 | I8: 563040304-8 | J8: นายธนพนธ์ ตั้งวัฒนสุวรรณ
A9: 6 | B9: 563040002-4 | C9: นายกรวิชญ์ ศรีวัฒนาปิติกุล | H9: 49 | I9: 563040313-7 | J9: นายธาดา วิริยบัณฑร
A10: 7 | B10: 563040003-2 | C10: นายกฤช ถาไชยลา | H10: 50 | I10: 563040315-3 | J10: นางสาวธิดาวรรณ ใจตรง
A11: 8 | B11: 563040022-8 | C11: นายณัฐพล สิทธิอมรพร | H11: 51 | I11: 563040329-2 | J11: นายปรัชญาวัชร วรรณชัย
A12: 9 | B12: 563040025-2 | C12: นายทรงพล เกียรติพนมแพ | H12: 52 | I12: 563040334-9 | J12: นายพชร ไชยสมบูรณ์
A13: 10 | B13: 563040032-5 | C13: นางสาวธนัชชา ใหญ่สูงเนิน | H13: 53 | I13: 563040341-2 | J13: นายพิทวัส เบ้าศรี
A14: 11 | B14: 563040043-0 | C14: นางสาวนันทิชา จริยาโสวรรณ | H14: 54 | I14: 563040344-6 | J14: นายไพโรจน์ วงษ์จำปา
A15: 12 | B15: 563040044-8 | C15: นางสาวนิภาพร อายุวัฒน์ | H15: 55 | I15: 563040346-2 | J15: นายภระรถ ผาสิงห์
A16: 13 | B16: 563040051-1 | C16: นายพงศ์ทัช พรวิกุลรัตนา | H16: 56 | I16: 563040348-8 | J16: นายภัทรธร สุดาจันทร์
A17: 14 | B17: 563040059-5 | C17: นายพสธร นามสร | H17: 57 | I17: 563040350-1 | J17: นายภูริเดช บุดดาวงศ์
A18: 15 | B18: 563040064-2 | C18: นางสาวภัทรามาศ ฉวีชัย | H18: 58 | I18: 563040351-9 | J18: นางสาวมุกดารัศมิ์ อาจบรรจง
A19: 16 | B19: 563040065-0 | C19: นายภาคิน จำปาศักดิ์ | H19: 59 | I19: 563040359-3 | J19: นายวริษฐ์ จวงพุ่ม
A20: 17 | B20: 563040070-7 | C20: นายมหคพันธุ์ เอมกลาง | H20: 60 | I20: 563040367-4 | J20: นายไวพจน์ แสงกุดเรือ
A21: 18 | B21: 563040071-5 | C21: นายมานะ ติรโรจน์ | H21: 61 | I21: 563040374-7 | J21: นางสาวศิวะพร ภูเงินเหรียญ
A22: 19 | B22: 563040076-5 | C22: นายรัฐศาสตร์ พลยงค์ | H22: 62 | I22: 563040389-4 | J22: นางสาวสุธีรา นาหัวนิล
A23: 20 | B23: 563040087-0 | C23: นายวุฒินันท์ สัจสุวรรณ | H23: 63 | I23: 563040393-3 | J23: นายสุภานุเดช ถาวิกุล
A24: 21 | B24: 563040089-6 | C24: นายศวัสชัย วิวรรธนจิตต์ | H24: 64 | I24: 563040394-1 | J24: นางสาวสุภาวิตา ทาเวียง
A25: 22 | B25: 563040098-5 | C25: นายสิทธิโชค ชูพงศ์พันธุ์ | H25: 65 | I25: 563040396-7 | J25: นางสาวสุวนันท์ ดวงพิมาย
A26: 23 | B26: 563040107-0 | C26: นายอภิเดช ชมภูวิเศษ | H26: 66 | I26: 563040397-5 | J26: นางสาวเหมือนฝัน จินดามณี
A27: 24 | B27: 563040114-3 | C27: นายคฑาวุธ ศรีโสดาพล | H27: 67 | I27: 563040398-3 | J27: นางสาวเหมือนฝัน เผือกไร่
A28: 25 | B28: 563040115-1 | C28: นายจุลดิศ ทองตัน | H28: 68 | I28: 563040400-2 | J28: นายอดิศร โพธิ์ยา
A29: 26 | B29: 563040116-9 | C29: นายโชคชัย ซุยอุ้ย | H29: 69 | I29: 563040408-6 | J29: นายอรรถศาสตร์ สุระคาย
A30: 27 | B30: 563040118-5 | C30: นายณพงศ์ พรหมแสนวิเศษ | H30: 70 | I30: 563040419-1 | J30: นายชาญชัย มีสนาม
A31: 28 | B31: 563040119-3 | C31: นายณพรัช ศรีวัฒน์ | H31: 71 | I31: 563040424-8 | J31: นายนิติศักดิ์ แต่งเมือง
A32: 29 | B32: 563040120-8 | C32: นายณัฐธพงษ์ ปภาศรีวิบูลย์ | H32: 72 | I32: 563040426-4 | J32: นางสาวเพชรากร ยอดสุวรรณ์
A33: 30 | B33: 563040121-6 | C33: นายธนพล หลาบศิริ | H33: 73 | I33: 563040431-1 | J33: นายวนัส ภูยาธร
A34: 31 | B34: 563040123-2 | C34: นายธนวร สันธนะสุรางค์ | H34: 74 | I34: 563040433-7 | J34: นางสาวศุภลักษณ์ เครือเพชร
A35: 32 | B35: 563040128-2 | C35: นายพิเชษฐ์ สังเกตชน | H35: 75 | I35: 563040435-3 | J35: นายอัฑฒสิทธิ์ สุรเสียง
A36: 33 | B36: 563040129-0 | C36: นายพีรเมธ จุฑานันท์
A37: 34 | B37: 563040130-5 | C37: นายพีส คูณดี | H37: Section 4
A38: 35 | B38: 563040137-1 | C38: นายศุภณัฐ ลัภกิตโร | H38: 1 | I38: 563040586-2 | J38: นายจักรกฤษณ์ ตันเจริญ
A39: 36 | B39: 563040139-7 | C39: นายสุธรรม ดิษาภิรมย์ | H39: 2 | I39: 563040595-1 | J39: นายทรงภพ กระสังข์
A40: 37 | B40: 563040218-1 | C40: นายณัฐพล มะลาศรี | H40: 3 | I40: 563040596-9 | J40: นายทรงศิลป์ ศิริแก้ว
A41: 38 | B41: 563040230-1 | C41: นางสาวสุธินี เวียงดาว | H41: 4 | I41: 563040598-5 | J41: นายธนะโชติ สาโม้
A42: 39 | B42: 563040231-9 | C42: นายอธิการ สุริโย | H42: 5 | I42: 563040604-6 | J42: นายพิฆเนศ ระเบียบโอษฐ์
A43: 40 | B43: 563040260-2 | C43: นางสาวณัฐณิชา ศิริเหล่าไพศาล | H43: 6 | I43: 563040609-6 | J43: นายรัฐศาสตร์ จันใหญ่
A44: 41 | B44: 563040269-4 | C44: นายกนกพล แก้วเฮียง | H44: 7 | I44: 563040610-1 | J44: นายลักษมณ์ เฮงพูลธนา
A45: 42 | B45: 563040272-5 | C45: นายกีรติ มังษา | H45: 8 | I45: 563040614-3 | J45: นายศิวัช เฮงพูลธนา
A46: 43 | B46: 563040275-9 | C46: นางสาวคุณัญญา ทวีสอน | H46: 9 | I46: 563040619-3 | J46: นายอภิเศรษฐ์ อินทรพาณิชย์

Sheet Sheet1
A1: ลำดับ | B1: รหัส | C1: ชื่อ | D1: หลักสูตร | E1: สถานภาพ | F1: เกรด | G1: GPA
A2: 1 | B2: 513041112-7 | C2: นายมติชน โอษะคลัง | D2: EN-IE | E2: 10 | G2: 1.8
A3: 2 | B3: 543040294-3 | C3: นายอธิปไตย นวลศิริ | D3: EN-AE | E3: 10 | G3: 1.86
A4: 3 | B4: 543040669-6 | C4: นายเกียรติขจร ทัดทาอามาตย์ | D4: EN-AE | E4: 10 | G4: 2
A5: 4 | B5: 543040670-1 | C5: นางสาวขนิษฐา ทวีแสง | D5: EN-AE | E5: 10 | G5: 1.94
A6: 5 | B6: 543040677-7 | C6: นายธีรภัทร แก้วมะ | D6: EN-AE | E6: 10 | G6: 1.8
A7: 6 | B7: 563040002-4 | C7: นายกรวิชญ์ ศรีวัฒนาปิติกุล | D7: EN-ME | E7: 10 | G7: 3.14
A8: 7 | B8: 563040003-2 | C8: นายกฤช ถาไชยลา | D8: EN-ME | E8: 10 | G8: 2.84
A9: 8 | B9: 563040022-8 | C9: นายณัฐพล สิทธิอมรพร | D9: EN-ME | E9: 10 | G9: 3.41
A10: 9 | B10: 563040025-2 | C10: นายทรงพล เกียรติพนมแพ | D10: EN-IE | E10: 10 | G10: 3.04
A11: 10 | B11: 563040032-5 | C11: นางสาวธนัชชา ใหญ่สูงเนิน | D11: EN-IE | E11: 10 | G11: 2.76
A12: 11 | B12: 563040043-0 | C12: นางสาวนันทิชา จริยาโสวรรณ | D12: EN-IE | E12: 10 | G12: 2.04
A13: 12 | B13: 563040044-8 | C13: นางสาวนิภาพร อายุวัฒน์ | D13: EN-ME | E13: 10 | G13: 2.92
A14: 13 | B14: 563040051-1 | C14: นายพงศ์ทัช พรวิกุลรัตนา | D14: EN-ME | E14: 10 | G14: 2.63
A15: 14 | B15: 563040059-5 | C15: นายพสธร นามสร | D15: EN-ME | E15: 10 | G15: 3.09
A16: 15 | B16: 563040064-2 | C16: นางสาวภัทรามาศ ฉวีชัย | D16: EN-IE | E16: 10 | G16: 3.12
A17: 16 | B17: 563040065-0 | C17: นายภาคิน จำปาศักดิ์ | D17: EN-ME | E17: 10 | G17: 3.51
A18: 17 | B18: 563040070-7 | C18: นายมหคพันธุ์ เอมกลาง | D18: EN-ME | E18: 10 | G18: 2.71
A19: 18 | B19: 563040071-5 | C19: นายมานะ ติรโรจน์ | D19: EN-ME | E19: 10 | G19: 3.46
A20: 19 | B20: 563040076-5 | C20: นายรัฐศาสตร์ พลยงค์ | D20: EN-ME | E20: 10 | G20: 2.88
A21: 20 | B21: 563040087-0 | C21: นายวุฒินันท์ สัจสุวรรณ | D21: EN-ME | E21: 10 | G21: 3.21
A22: 21 | B22: 563040089-6 | C22: นายศวัสชัย วิวรรธนจิตต์ | D22: EN-IE | E22: 10 | G22: 2.79
A23: 22 | B23: 563040098-5 | C23: นายสิทธิโชค ชูพงศ์พันธุ์ | D23: EN-ME | E23: 10 | G23: 2.94
A24: 23 | B24: 563040107-0 | C24: นายอภิเดช ชมภูวิเศษ | D24: EN-ME | E24: 10 | G24: 3.12
A25: 24 | B25: 563040114-3 | C25: นายคฑาวุธ ศรีโสดาพล | D25: EN-AE | E25: 10 | G25: 1.51
A26: 25 | B26: 563040115-1 | C26: นายจุลดิศ ทองตัน | D26: EN-AE | E26: 10 | G26: 1.82
A27: 26 | B27: 563040116-9 | C27: นายโชคชัย ซุยอุ้ย | D27: EN-AE | E27: 10 | G27: 3.03
A28: 27 | B28: 563040118-5 | C28: นายณพงศ์ พรหมแสนวิเศษ | D28: EN-AE | E28: 10 | G28: 2.13
A29: 28 | B29: 563040119-3 | C29: นายณพรัช ศรีวัฒน์ | D29: EN-AE | E29: 10 | G29: 3.43
A30: 29 | B30: 563040120-8 | C30: นายณัฐธพงษ์ ปภาศรีวิบูลย์ | D30: EN-AE | E30: 10 | G30: 2.29
A31: 30 | B31: 563040121-6 | C31: นายธนพล หลาบศิริ | D31: EN-AE | E31: 10 | G31: 2.77
A32: 31 | B32: 563040123-2 | C32: นายธนวร สันธนะสุรางค์ | D32: EN-AE | E32: 10 | G32: 2.35
A33: 32 | B33: 563040128-2 | C33: นายพิเชษฐ์ สังเกตชน | D33: EN-AE | E33: 10 | G33: 2.51
A34: 33 | B34: 563040129-0 | C34: นายพีรเมธ จุฑานันท์ | D34: EN-AE | E34: 10 | G34: 1.89
A35: 34 | B35: 563040130-5 | C35: นายพีส คูณดี | D35: EN-AE | E35: 10 | G35: 2.29
A36: 35 | B36: 563040137-1 | C36: นายศุภณัฐ ลัภกิตโร | D36: EN-AE | E36: 10 | G36: 2.58
A37: 36 | B37: 563040139-7 | C37: นายสุธรรม ดิษาภิรมย์ | D37: EN-AE | E37: 10 | G37: 1.78
A38: 37 | B38: 563040218-1 | C38: นายณัฐพล มะลาศรี | D38: EN-ME | E38: 10 | G38: 2.61
A39: 38 | B39: 563040230-1 | C39: นางสาวสุธินี เวียงดาว | D39: EN-ME | E39: 10 | G39: 2.87
A40: 39 | B40: 563040231-9 | C40: นายอธิการ สุริโย | D40: EN-IE | E40: 10 | G40: 1.71
A41: 40 | B41: 563040260-2 | C41: นางสาวณัฐณิชา ศิริเหล่าไพศาล | D41: EN-IE | E41: 10 | G41: 3.17
A42: 41 | B42: 563040269-4 | C42: นายกนกพล แก้วเฮียง | D42: EN-ME | E42: 10 | G42: 3.06
A43: 42 | B43: 563040272-5 | C43: นายกีรติ มังษา | D43: EN-ME | E43: 10 | G43: 2.87
A44: 43 | B44: 563040275-9 | C44: นางสาวคุณัญญา ทวีสอน | D44: EN-ME | E44: 10 | G44: 2.69
A45: 44 | B45: 563040289-8 | C45: นางสาวโชติณัฐ จงใจหาญ | D45: EN-IE | E45: 10 | G45: 3
A46: 45 | B46: 563040292-9 | C46: นางสาวฐิติพร ฐานหมั่น | D46: EN-IE | E46: 10 | G46: 2.12
A47: 46 | B47: 563040296-1 | C47: นางสาวณัฐชยา ทัศนจินดา | D47: EN-IE | E47: 10 | G47: 2.75
A48: 47 | B48: 563040297-9 | C48: นายณัฐภัทร ศรีสม | D48: EN-ME | E48: 10 | G48: 2.37
A49: 48 | B49: 563040304-8 | C49: นายธนพนธ์ ตั้งวัฒนสุวรรณ | D49: EN-IE | E49: 10 | G49: 2.44
A50: 49 | B50: 563040313-7 | C50: นายธาดา วิริยบัณฑร | D50: EN-ME | E50: 10 | G50: 3.49
A51: 50 | B51: 563040315-3 | C51: นางสาวธิดาวรรณ ใจตรง | D51: EN-IE | E51: 10 | G51: 2.48
A52: 51 | B52: 563040329-2 | C52: นายปรัชญาวัชร วรรณชัย | D52: EN-ME | E52: 10 | G52: 3.34
A53: 52 | B53: 563040334-9 | C53: นายพชร ไชยสมบูรณ์ | D53: EN-IE | E53: 10 | G53: 2.32
A54: 53 | B54: 563040341-2 | C54: นายพิทวัส เบ้าศรี | D54: EN-ME | E54: 10 | G54: 2.68
A55: 54 | B55: 563040344-6 | C55: นายไพโรจน์ วงษ์จำปา | D55: EN-ME | E55: 10 | G55: 2.61
A56: 55 | B56: 563040346-2 | C56: นายภระรถ ผาสิงห์ | D56: EN-ME | E56: 10 | G56: 3.13
A57: 56 | B57: 563040348-8 | C57: นายภัทรธร สุดาจันทร์ | D57: EN-IE | E57: 10 | G57: 2.05
A58: 57 | B58: 563040350-1 | C58: นายภูริเดช บุดดาวงศ์ | D58: EN-ME | E58: 10 | G58: 3.49
A59: 58 | B59: 563040351-9 | C59: นางสาวมุกดารัศมิ์ อาจบรรจง | D59: EN-ME | E59: 10 | G59: 2.96
A60: 59 | B60: 563040359-3 | C60: นายวริษฐ์ จวงพุ่ม | D60: EN-IE | E60: 10 | G60: 2.34
A61: 60 | B61: 563040367-4 | C61: นายไวพจน์ แสงกุดเรือ | D61: EN-ME | E61: 10 | G61: 2.78
A62: 61 | B62: 563040374-7 | C62: นางสาวศิวะพร ภูเงินเหรียญ | D62: EN-IE | E62: 10 | G62: 1.76
A63: 62 | B63: 563040389-4 | C63: นางสาวสุธีรา นาหัวนิล | D63: EN-IE | E63: 10 | G63: 2.3
A64: 63 | B64: 563040393-3 | C64: นายสุภานุเดช ถาวิกุล | D64: EN-IE | E64: 10 | G64: 1.58
A65: 64 | B65: 563040394-1 | C65: นางสาวสุภาวิตา ทาเวียง | D65: EN-IE | E65: 10 | G65: 2.37
A66: 65 | B66: 563040396-7 | C66: นางสาวสุวนันท์ ดวงพิมาย | D66: EN-IE | E66: 10 | G66: 2.19
A67: 66 | B67: 563040397-5 | C67: นางสาวเหมือนฝัน จินดามณี | D67: EN-IE | E67: 10 | G67: 1.72
A68: 67 | B68: 563040398-3 | C68: นางสาวเหมือนฝัน เผือกไร่ | D68: EN-ME | E68: 10 | G68: 2.75
A69: 68 | B69: 563040400-2 | C69: นายอดิศร โพธิ์ยา | D69: EN-IE | E69: 10 | G69: 2.37
A70: 69 | B70: 563040408-6 | C70: นายอรรถศาสตร์ สุระคาย | D70: EN-ME | E70: 10 | G70: 2.57
A71: 70 | B71: 563040419-1 | C71: นายชาญชัย มีสนาม | D71: EN-AE | E71: 10 | G71: 2.88
A72: 71 | B72: 563040424-8 | C72: นายนิติศักดิ์ แต่งเมือง | D72: EN-AE | E72: 10 | G72: 2.26
A73: 72 | B73: 563040426-4 | C73: นางสาวเพชรากร ยอดสุวรรณ์ | D73: EN-AE | E73: 10 | G73: 2.89
A74: 73 | B74: 563040431-1 | C74: นายวนัส ภูยาธร | D74: EN-AE | E74: 10 | G74: 2.23
A75: 74 | B75: 563040433-7 | C75: นางสาวศุภลักษณ์ เครือเพชร | D75: EN-AE | E75: 10 | G75: 2.64
A76: 75 | B76: 563040435-3 | C76: นายอัฑฒสิทธิ์ สุรเสียง | D76: EN-AE | E76: 10 | G76: 2.63
A78: 1 | B78: 563040586-2 | C78: นายจักรกฤษณ์ ตันเจริญ | D78: EN-ME (พิเศษ ม.6) | E78: 10 | G78: 1.8
A79: 2 | B79: 563040595-1 | C79: นายทรงภพ กระสังข์ | D79: EN-ME (พิเศษ ม.6) | E79: 10 | G79: 2.52
A80: 3 | B80: 563040596-9 | C80: นายทรงศิลป์ ศิริแก้ว | D80: EN-ME (พิเศษ ม.6) | E80: 10 | G80: 1.9
A81: 4 | B81: 563040598-5 | C81: นายธนะโชติ สาโม้ | D81: EN-ME (พิเศษ ม.6) | E81: 10 | G81: 2.12
A82: 5 | B82: 563040604-6 | C82: นายพิฆเนศ ระเบียบโอษฐ์ | D82: EN-ME (พิเศษ ม.6) | E82: 10 | G82: 1.73
A83: 6 | B83: 563040609-6 | C83: นายรัฐศาสตร์ จันใหญ่ | D83: EN-ME (พิเศษ ม.6) | E83: 10 | G83: 2.47
A84: 7 | B84: 563040610-1 | C84: นายลักษมณ์ เฮงพูลธนา | D84: EN-ME (พิเศษ ม.6) | E84: 10 | G84: 1.51
A85: 8 | B85: 563040614-3 | C85: นายศิวัช เฮงพูลธนา | D85: EN-ME (พิเศษ ม.6) | E85: 10 | G85: 2.21
A86: 9 | B86: 563040619-3 | C86: นายอภิเศรษฐ์ อินทรพาณิชย์ | D86: EN-ME (พิเศษ ม.6) | E86: 10 | G86: 2.59

Sheet Class
B1: รายวิชา | C1: 185231 : THERMODYNAMICS I | H1: Section 1
B2: ปีการศึกษา | C2: 2553 ภาคการศึกษาที่ 1 | AN2: =SUM(G2:AM2) -> 0
A3: ลำดับ | B3: รหัส | C3: ชื่อ | D3: หลักสูตร | E3: GPA | F3: Section | AM3: Attened | AN3: Miss
A4: =Score!A110 -> 0 | B4: =Score!B110 -> 0 | C4: =Score!C110 -> 0 | D4: =Score!D110 -> 0 | E4: =Score!E110 -> 0 | F4: =Score!F110 -> 0 | AM4: =SUM(G4:AL4) -> 0 | AN4: =+$AN$2-AM4 -> 0
A5: =Score!A109 -> 0 | B5: =Score!B109 -> 0 | C5: =Score!C109 -> 0 | D5: =Score!D109 -> 0 | E5: =Score!E109 -> 0 | F5: =Score!F109 -> 0 | AM5: =SUM(G5:AL5) -> 0 | AN5: 0
A6: =Score!A108 -> 0 | B6: =Score!B108 -> 0 | C6: =Score!C108 -> 0 | D6: =Score!D108 -> 0 | E6: =Score!E108 -> 0 | F6: =Score!F108 -> 0 | AM6: 0 | AN6: 0
A7: =Score!A107 -> 0 | B7: =Score!B107 -> 0 | C7: =Score!C107 -> 0 | D7: =Score!D107 -> 0 | E7: =Score!E107 -> 0 | F7: =Score!F107 -> 0 | AM7: 0 | AN7: 0
A8: =Score!A106 -> 0 | B8: =Score!B106 -> 0 | C8: =Score!C106 -> 0 | D8: =Score!D106 -> 0 | E8: =Score!E106 -> 0 | F8: =Score!F106 -> 0 | AM8: 0 | AN8: 0
A9: =Score!A105 -> 0 | B9: =Score!B105 -> 0 | C9: =Score!C105 -> 0 | D9: =Score!D105 -> 0 | E9: =Score!E105 -> 0 | F9: =Score!F105 -> 0 | AM9: 0 | AN9: 0
A10: =Score!A104 -> 0 | B10: =Score!B104 -> 0 | C10: =Score!C104 -> 0 | D10: =Score!D104 -> 0 | E10: =Score!E104 -> 0 | F10: =Score!F104 -> 0 | AM10: 0 | AN10: 0
A11: =Score!A103 -> 0 | B11: =Score!B103 -> 0 | C11: =Score!C103 -> 0 | D11: =Score!D103 -> 0 | E11: =Score!E103 -> 0 | F11: =Score!F103 -> 0 | AM11: 0 | AN11: 0
A12: =Score!A102 -> 0 | B12: =Score!B102 -> 0 | C12: =Score!C102 -> 0 | D12: =Score!D102 -> 0 | E12: =Score!E102 -> 0 | F12: =Score!F102 -> 0 | AM12: 0 | AN12: 0
A13: =Score!A101 -> 0 | B13: =Score!B101 -> 0 | C13: =Score!C101 -> 0 | D13: =Score!D101 -> 0 | E13: =Score!E101 -> 0 | F13: =Score!F101 -> 0 | AM13: 0 | AN13: 0
A14: =Score!A100 -> 0 | B14: =Score!B100 -> 0 | C14: =Score!C100 -> 0 | D14: =Score!D100 -> 0 | E14: =Score!E100 -> 0 | F14: =Score!F100 -> 0 | AM14: 0 | AN14: 0
A15: =Score!A99 -> 0 | B15: =Score!B99 -> 0 | C15: =Score!C99 -> 0 | D15: =Score!D99 -> 0 | E15: =Score!E99 -> 0 | F15: =Score!F99 -> 0 | AM15: 0 | AN15: 0
A16: =Score!A98 -> 0 | B16: =Score!B98 -> 0 | C16: =Score!C98 -> 0 | D16: =Score!D98 -> 0 | E16: =Score!E98 -> 0 | F16: =Score!F98 -> 0 | AM16: 0 | AN16: 0
A17: =Score!A97 -> 0 | B17: =Score!B97 -> 0 | C17: =Score!C97 -> 0 | D17: =Score!D97 -> 0 | E17: =Score!E97 -> 0 | F17: =Score!F97 -> 0 | AM17: 0 | AN17: 0
A18: =Score!A96 -> 0 | B18: =Score!B96 -> 0 | C18: =Score!C96 -> 0 | D18: =Score!D96 -> 0 | E18: =Score!E96 -> 0 | F18: =Score!F96 -> 0 | AM18: 0 | AN18: 0
A19: =Score!A95 -> 0 | B19: =Score!B95 -> 0 | C19: =Score!C95 -> 0 | D19: =Score!D95 -> 0 | E19: =Score!E95 -> 0 | F19: =Score!F95 -> 0 | AM19: 0 | AN19: 0
A20: =Score!A94 -> 0 | B20: =Score!B94 -> 0 | C20: =Score!C94 -> 0 | D20: =Score!D94 -> 0 | E20: =Score!E94 -> 0 | F20: =Score!F94 -> 0 | AM20: 0 | AN20: 0
A21: =Score!A93 -> 0 | B21: =Score!B93 -> 0 | C21: =Score!C93 -> 0 | D21: =Score!D93 -> 0 | E21: =Score!E93 -> 0 | F21: =Score!F93 -> 0 | AM21: 0 | AN21: 0
A22: =Score!A92 -> 0 | B22: =Score!B92 -> 0 | C22: =Score!C92 -> 0 | D22: =Score!D92 -> 0 | E22: =Score!E92 -> 0 | F22: =Score!F92 -> 0 | AM22: 0 | AN22: 0
A23: =Score!A91 -> 0 | B23: =Score!B91 -> 0 | C23: =Score!C91 -> 0 | D23: =Score!D91 -> 0 | E23: =Score!E91 -> 0 | F23: =Score!F91 -> 0 | AM23: 0 | AN23: 0
A24: =Score!A90 -> 0 | B24: =Score!B90 -> 0 | C24: =Score!C90 -> 0 | D24: =Score!D90 -> 0 | E24: =Score!E90 -> 0 | F24: =Score!F90 -> 0 | AM24: 0 | AN24: 0
A25: =Score!A89 -> 0 | B25: =Score!B89 -> 0 | C25: =Score!C89 -> 0 | D25: =Score!D89 -> 0 | E25: =Score!E89 -> 0 | F25: =Score!F89 -> 0 | AM25: 0 | AN25: 0
A26: =Score!A88 -> 0 | B26: =Score!B88 -> 0 | C26: =Score!C88 -> 0 | D26: =Score!D88 -> 0 | E26: =Score!E88 -> 0 | F26: =Score!F88 -> 0 | AM26: 0 | AN26: 0
A27: =Score!A87 -> 0 | B27: =Score!B87 -> 0 | C27: =Score!C87 -> 0 | D27: =Score!D87 -> 0 | E27: =Score!E87 -> 0 | F27: =Score!F87 -> 0 | AM27: 0 | AN27: 0
A28: =Score!A86 -> 0 | B28: =Score!B86 -> 0 | C28: =Score!C86 -> 0 | D28: =Score!D86 -> 0 | E28: =Score!E86 -> 0 | F28: =Score!F86 -> 0 | AM28: 0 | AN28: 0
A29: =Score!A85 -> 0 | B29: =Score!B85 -> 0 | C29: =Score!C85 -> 0 | D29: =Score!D85 -> 0 | E29: =Score!E85 -> 0 | F29: =Score!F85 -> 0 | AM29: 0 | AN29: 0
A30: =Score!A84 -> 0 | B30: =Score!B84 -> 0 | C30: =Score!C84 -> 0 | D30: =Score!D84 -> 0 | E30: =Score!E84 -> 0 | F30: =Score!F84 -> 0 | AM30: 0 | AN30: 0
A31: =Score!A83 -> 0 | B31: =Score!B83 -> 0 | C31: =Score!C83 -> 0 | D31: =Score!D83 -> 0 | E31: =Score!E83 -> 0 | F31: =Score!F83 -> 0 | AM31: 0 | AN31: 0
A32: =Score!A82 -> 0 | B32: =Score!B82 -> 0 | C32: =Score!C82 -> 0 | D32: =Score!D82 -> 0 | E32: =Score!E82 -> 0 | F32: =Score!F82 -> 0 | AM32: 0 | AN32: 0
A33: =Score!A81 -> 0 | B33: =Score!B81 -> 0 | C33: =Score!C81 -> 0 | D33: =Score!D81 -> 0 | E33: =Score!E81 -> 0 | F33: =Score!F81 -> 0 | AM33: 0 | AN33: 0
A34: =Score!A80 -> 0 | B34: =Score!B80 -> 0 | C34: =Score!C80 -> 0 | D34: =Score!D80 -> 0 | E34: =Score!E80 -> 0 | F34: =Score!F80 -> 0 | AM34: 0 | AN34: 0
A35: =Score!A79 -> 0 | B35: =Score!B79 -> 0 | C35: =Score!C79 -> 0 | D35: =Score!D79 -> 0 | E35: =Score!E79 -> 0 | F35: =Score!F79 -> 0 | AM35: 0 | AN35: 0
A36: =Score!A78 -> 0 | B36: =Score!B78 -> 0 | C36: =Score!C78 -> 0 | D36: =Score!D78 -> 0 | E36: =Score!E78 -> 0 | F36: =Score!F78 -> 0 | AM36: 0 | AN36: =+$AN$2-AM36 -> 0
A37: =Score!A77 -> 0 | B37: =Score!B77 -> 0 | C37: =Score!C77 -> 0 | D37: =Score!D77 -> 0 | E37: =Score!E77 -> 0 | F37: =Score!F77 -> 0 | AM37: =SUM(G37:AL37) -> 0 | AN37: 0
A38: =Score!A76 -> 14 | B38: =Score!B76 -> 563040620-8 | C38: =Score!C76 -> นายอมรเทพ วงษ์สมศรี | D38: =Score!D76 -> EN-ME (พิเศษ ม.6) | E38: =Score!E76 -> 2.02 | F38: =Score!F76 -> 4 | AM38: 0 | AN38: 0
A39: =Score!A75 -> 13 | B39: =Score!B75 -> 563040619-3 | C39: =Score!C75 -> นายอภิเศรษฐ์ อินทรพาณิชย์ | D39: =Score!D75 -> EN-ME (พิเศษ ม.6) | E39: =Score!E75 -> 2.59 | F39: =Score!F75 -> 4 | AM39: 0 | AN39: 0
A40: =Score!A74 -> 12 | B40: =Score!B74 -> 563040618-5 | C40: =Score!C74 -> นายเสาเอก น้อยปรีชา | D40: =Score!D74 -> EN-ME (พิเศษ ม.6) | E40: =Score!E74 -> 2.24 | F40: =Score!F74 -> 4 | AM40: 0 | AN40: 0
A41: =Score!A73 -> 11 | B41: =Score!B73 -> 563040614-3 | C41: =Score!C73 -> นายศิวัช เฮงพูลธนา | D41: =Score!D73 -> EN-ME (พิเศษ ม.6) | E41: =Score!E73 -> 2.21 | F41: =Score!F73 -> 4 | AM41: 0 | AN41: 0
A42: =Score!A72 -> 10 | B42: =Score!B72 -> 563040610-1 | C42: =Score!C72 -> นายลักษมณ์ เฮงพูลธนา | D42: =Score!D72 -> EN-ME (พิเศษ ม.6) | E42: =Score!E72 -> 1.51 | F42: =Score!F72 -> 4 | AM42: 0 | AN42: 0
A43: =Score!A71 -> 9 | B43: =Score!B71 -> 563040609-6 | C43: =Score!C71 -> นายรัฐศาสตร์ จันใหญ่ | D43: =Score!D71 -> EN-ME (พิเศษ ม.6) | E43: =Score!E71 -> 2.47 | F43: =Score!F71 -> 4 | AM43: 0 | AN43: 0
A44: =Score!A70 -> 8 | B44: =Score!B70 -> 563040608-8 | C44: =Score!C70 -> นางสาวมณฑกานต์ มูลสาร | D44: =Score!D70 -> EN-ME (พิเศษ ม.6) | E44: =Score!E70 -> 1.99 | F44: =Score!F70 -> 4 | AM44: 0 | AN44: 0
A45: =Score!A69 -> 7 | B45: =Score!B69 -> 563040604-6 | C45: =Score!C69 -> นายพิฆเนศ ระเบียบโอษฐ์ | D45: =Score!D69 -> EN-ME (พิเศษ ม.6) | E45: =Score!E69 -> 1.73 | F45: =Score!F69 -> 4 | AM45: 0 | AN45: 0
A46: =Score!A68 -> 6 | B46: =Score!B68 -> 563040602-0 | C46: =Score!C68 -> นางสาวปฏิมาภรณ์ ทักขินัย | D46: =Score!D68 -> EN-ME (พิเศษ ม.6) | E46: =Score!E68 -> 2.42 | F46: =Score!F68 -> 4 | AM46: 0 | AN46: 0
A47: =Score!A67 -> 5 | B47: =Score!B67 -> 563040598-5 | C47: =Score!C67 -> นายธนะโชติ สาโม้ | D47: =Score!D67 -> EN-ME (พิเศษ ม.6) | E47: =Score!E67 -> 2.12 | F47: =Score!F67 -> 4 | AM47: 0 | AN47: 0
A48: =Score!A66 -> 4 | B48: =Score!B66 -> 563040596-9 | C48: =Score!C66 -> นายทรงศิลป์ ศิริแก้ว | D48: =Score!D66 -> EN-ME (พิเศษ ม.6) | E48: =Score!E66 -> 1.9 | F48: =Score!F66 -> 4 | AM48: 0 | AN48: 0
A49: =Score!A65 -> 3 | B49: =Score!B65 -> 563040595-1 | C49: =Score!C65 -> นายทรงภพ กระสังข์ | D49: =Score!D65 -> EN-ME (พิเศษ ม.6) | E49: =Score!E65 -> 2.52 | F49: =Score!F65 -> 4 | AM49: 0 | AN49: 0
A50: =Score!A64 -> 2 | B50: =Score!B64 -> 563040586-2 | C50: =Score!C64 -> นายจักรกฤษณ์ ตันเจริญ | D50: =Score!D64 -> EN-ME (พิเศษ ม.6) | E50: =Score!E64 -> 1.8 | F50: =Score!F64 -> 4 | AM50: 0 | AN50: 0
A51: =Score!A63 -> 1 | B51: =Score!B63 -> 563040584-6 | C51: =Score!C63 -> นายกรนันท์ พันธะสา | D51: =Score!D63 -> EN-ME (พิเศษ ม.6) | E51: =Score!E63 -> 2.64 | F51: =Score!F63 -> 4 | AM51: 0 | AN51: 0
A52: =Score!A62 -> 0 | B52: =Score!B62 -> 0 | C52: =Score!C62 -> 0 | D52: =Score!D62 -> 0 | E52: =Score!E62 -> 0 | F52: =Score!F62 -> 0 | AM52: 0 | AN52: 0
A53: =Score!A61 -> 58 | B53: =Score!B61 -> 563040433-7 | C53: =Score!C61 -> นางสาวศุภลักษณ์ เครือเพชร | D53: =Score!D61 -> EN-AE | E53: =Score!E61 -> 2.64 | F53: =Score!F61 -> 1 | AM53: 0 | AN53: 0
A54: =Score!A60 -> 57 | B54: =Score!B60 -> 563040431-1 | C54: =Score!C60 -> นายวนัส ภูยาธร | D54: =Score!D60 -> EN-AE | E54: =Score!E60 -> 2.23 | F54: =Score!F60 -> 1 | AM54: 0 | AN54: 0
A55: =Score!A59 -> 56 | B55: =Score!B59 -> 563040426-4 | C55: =Score!C59 -> นางสาวเพชรากร ยอดสุวรรณ์ | D55: =Score!D59 -> EN-AE | E55: =Score!E59 -> 2.89 | F55: =Score!F59 -> 1 | AM55: 0 | AN55: 0
A56: =Score!A58 -> 55 | B56: =Score!B58 -> 563040424-8 | C56: =Score!C58 -> นายนิติศักดิ์ แต่งเมือง | D56: =Score!D58 -> EN-AE | E56: =Score!E58 -> 2.26 | F56: =Score!F58 -> 1 | AM56: 0 | AN56: 0
A57: =Score!A57 -> 54 | B57: =Score!B57 -> 563040419-1 | C57: =Score!C57 -> นายชาญชัย มีสนาม | D57: =Score!D57 -> EN-AE | E57: =Score!E57 -> 2.88 | F57: =Score!F57 -> 1 | AM57: 0 | AN57: 0
A58: =Score!A56 -> 53 | B58: =Score!B56 -> 563040408-6 | C58: =Score!C56 -> นายอรรถศาสตร์ สุระคาย | D58: =Score!D56 -> EN-ME | E58: =Score!E56 -> 2.57 | F58: =Score!F56 -> 1 | AM58: 0 | AN58: 0
A59: =Score!A55 -> 52 | B59: =Score!B55 -> 563040400-2 | C59: =Score!C55 -> นายอดิศร โพธิ์ยา | D59: =Score!D55 -> EN-IE | E59: =Score!E55 -> 2.37 | F59: =Score!F55 -> 1 | AM59: 0 | AN59: 0
A60: =Score!A54 -> 51 | B60: =Score!B54 -> 563040398-3 | C60: =Score!C54 -> นางสาวเหมือนฝัน เผือกไร่ | D60: =Score!D54 -> EN-ME | E60: =Score!E54 -> 2.75 | F60: =Score!F54 -> 1 | AM60: 0 | AN60: 0
A61: =Score!A53 -> 50 | B61: =Score!B53 -> 563040397-5 | C61: =Score!C53 -> นางสาวเหมือนฝัน จินดามณี | D61: =Score!D53 -> EN-IE | E61: =Score!E53 -> 1.72 | F61: =Score!F53 -> 1 | AM61: 0 | AN61: 0
A62: =Score!A52 -> 49 | B62: =Score!B52 -> 563040396-7 | C62: =Score!C52 -> นางสาวสุวนันท์ ดวงพิมาย | D62: =Score!D52 -> EN-IE | E62: =Score!E52 -> 2.19 | F62: =Score!F52 -> 1 | AM62: 0 | AN62: 0
A63: =Score!A51 -> 48 | B63: =Score!B51 -> 563040394-1 | C63: =Score!C51 -> นางสาวสุภาวิตา ทาเวียง | D63: =Score!D51 -> EN-IE | E63: =Score!E51 -> 2.37 | F63: =Score!F51 -> 1 | AM63: 0 | AN63: 0
A64: =Score!A50 -> 47 | B64: =Score!B50 -> 563040393-3 | C64: =Score!C50 -> นายสุภานุเดช ถาวิกุล | D64: =Score!D50 -> EN-IE | E64: =Score!E50 -> 1.58 | F64: =Score!F50 -> 1 | AM64: 0 | AN64: 0
A65: =Score!A49 -> 46 | B65: =Score!B49 -> 563040389-4 | C65: =Score!C49 -> นางสาวสุธีรา นาหัวนิล | D65: =Score!D49 -> EN-IE | E65: =Score!E49 -> 2.3 | F65: =Score!F49 -> 1 | AM65: 0 | AN65: 0
A66: =Score!A48 -> 45 | B66: =Score!B48 -> 563040367-4 | C66: =Score!C48 -> นายไวพจน์ แสงกุดเรือ | D66: =Score!D48 -> EN-ME | E66: =Score!E48 -> 2.78 | F66: =Score!F48 -> 1 | AM66: 0 | AN66: 0
A67: =Score!A47 -> 44 | B67: =Score!B47 -> 563040359-3 | C67: =Score!C47 -> นายวริษฐ์ จวงพุ่ม | D67: =Score!D47 -> EN-IE | E67: =Score!E47 -> 2.34 | F67: =Score!F47 -> 1 | AM67: 0 | AN67: 0
A68: =Score!A46 -> 43 | B68: =Score!B46 -> 563040351-9 | C68: =Score!C46 -> นางสาวมุกดารัศมิ์ อาจบรรจง | D68: =Score!D46 -> EN-ME | E68: =Score!E46 -> 2.96 | F68: =Score!F46 -> 1 | AM68: 0 | AN68: =+$AN$2-AM68 -> 0
A69: =Score!A45 -> 42 | B69: =Score!B45 -> 563040346-2 | C69: =Score!C45 -> นายภระรถ ผาสิงห์ | D69: =Score!D45 -> EN-ME | E69: =Score!E45 -> 3.13 | F69: =Score!F45 -> 1 | AM69: =SUM(G69:AL69) -> 0 | AN69: 0
A70: =Score!A44 -> 41 | B70: =Score!B44 -> 563040344-6 | C70: =Score!C44 -> นายไพโรจน์ วงษ์จำปา | D70: =Score!D44 -> EN-ME | E70: =Score!E44 -> 2.61 | F70: =Score!F44 -> 1 | AM70: 0 | AN70: 0
A71: =Score!A43 -> 40 | B71: =Score!B43 -> 563040341-2 | C71: =Score!C43 -> นายพิทวัส เบ้าศรี | D71: =Score!D43 -> EN-ME | E71: =Score!E43 -> 2.68 | F71: =Score!F43 -> 1 | AM71: 0 | AN71: 0
A72: =Score!A42 -> 39 | B72: =Score!B42 -> 563040334-9 | C72: =Score!C42 -> นายพชร ไชยสมบูรณ์ | D72: =Score!D42 -> EN-IE | E72: =Score!E42 -> 2.32 | F72: =Score!F42 -> 1 | AM72: 0 | AN72: 0
A73: =Score!A41 -> 38 | B73: =Score!B41 -> 563040315-3 | C73: =Score!C41 -> นางสาวธิดาวรรณ ใจตรง | D73: =Score!D41 -> EN-IE | E73: =Score!E41 -> 2.48 | F73: =Score!F41 -> 1 | AM73: 0 | AN73: 0
A74: =Score!A40 -> 37 | B74: =Score!B40 -> 563040313-7 | C74: =Score!C40 -> นายธาดา วิริยบัณฑร | D74: =Score!D40 -> EN-ME | E74: =Score!E40 -> 3.49 | F74: =Score!F40 -> 1 | AM74: 0 | AN74: 0
A75: =Score!A39 -> 36 | B75: =Score!B39 -> 563040304-8 | C75: =Score!C39 -> นายธนพนธ์ ตั้งวัฒนสุวรรณ | D75: =Score!D39 -> EN-IE | E75: =Score!E39 -> 2.44 | F75: =Score!F39 -> 1 | AM75: 0 | AN75: 0
A76: =Score!A38 -> 35 | B76: =Score!B38 -> 563040296-1 | C76: =Score!C38 -> นางสาวณัฐชยา ทัศนจินดา | D76: =Score!D38 -> EN-IE | E76: =Score!E38 -> 2.75 | F76: =Score!F38 -> 1 | AM76: 0 | AN76: 0
A77: =Score!A37 -> 34 | B77: =Score!B37 -> 563040292-9 | C77: =Score!C37 -> นางสาวฐิติพร ฐานหมั่น | D77: =Score!D37 -> EN-IE | E77: =Score!E37 -> 2.12 | F77: =Score!F37 -> 1 | AM77: 0 | AN77: 0
A78: =Score!A36 -> 33 | B78: =Score!B36 -> 563040289-8 | C78: =Score!C36 -> นางสาวโชติณัฐ จงใจหาญ | D78: =Score!D36 -> EN-IE | E78: =Score!E36 -> 3 | F78: =Score!F36 -> 1 | AM78: 0 | AN78: 0
A79: =Score!A35 -> 32 | B79: =Score!B35 -> 563040275-9 | C79: =Score!C35 -> นางสาวคุณัญญา ทวีสอน | D79: =Score!D35 -> EN-ME | E79: =Score!E35 -> 2.69 | F79: =Score!F35 -> 1 | AM79: 0 | AN79: 0
A80: =Score!A34 -> 31 | B80: =Score!B34 -> 563040272-5 | C80: =Score!C34 -> นายกีรติ มังษา | D80: =Score!D34 -> EN-ME | E80: =Score!E34 -> 2.87 | F80: =Score!F34 -> 1 | AM80: 0 | AN80: 0
A81: =Score!A33 -> 30 | B81: =Score!B33 -> 563040269-4 | C81: =Score!C33 -> นายกนกพล แก้วเฮียง | D81: =Score!D33 -> EN-ME | E81: =Score!E33 -> 3.06 | F81: =Score!F33 -> 1 | AM81: 0 | AN81: 0
A82: =Score!A32 -> 29 | B82: =Score!B32 -> 563040260-2 | C82: =Score!C32 -> นางสาวณัฐณิชา ศิริเหล่าไพศาล | D82: =Score!D32 -> EN-IE | E82: =Score!E32 -> 3.17 | F82: =Score!F32 -> 1 | AM82: 0 | AN82: 0
A83: =Score!A31 -> 28 | B83: =Score!B31 -> 563040231-9 | C83: =Score!C31 -> นายอธิการ สุริโย | D83: =Score!D31 -> EN-IE | E83: =Score!E31 -> 1.71 | F83: =Score!F31 -> 1 | AM83: 0 | AN83: 0
A84: =Score!A30 -> 27 | B84: =Score!B30 -> 563040139-7 | C84: =Score!C30 -> นายสุธรรม ดิษาภิรมย์ | D84: =Score!D30 -> EN-AE | E84: =Score!E30 -> 1.78 | F84: =Score!F30 -> 1 | AM84: 0 | AN84: 0
A85: =Score!A29 -> 26 | B85: =Score!B29 -> 563040137-1 | C85: =Score!C29 -> นายศุภณัฐ ลัภกิตโร | D85: =Score!D29 -> EN-AE | E85: =Score!E29 -> 2.58 | F85: =Score!F29 -> 1 | AM85: 0 | AN85: 0
A86: =Score!A28 -> 25 | B86: =Score!B28 -> 563040130-5 | C86: =Score!C28 -> นายพีส คูณดี | D86: =Score!D28 -> EN-AE | E86: =Score!E28 -> 2.29 | F86: =Score!F28 -> 1 | AM86: 0 | AN86: 0
A87: =Score!A27 -> 24 | B87: =Score!B27 -> 563040129-0 | C87: =Score!C27 -> นายพีรเมธ จุฑานันท์ | D87: =Score!D27 -> EN-AE | E87: =Score!E27 -> 1.89 | F87: =Score!F27 -> 1 | AM87: 0 | AN87: 0
A88: =Score!A26 -> 23 | B88: =Score!B26 -> 563040123-2 | C88: =Score!C26 -> นายธนวร สันธนะสุรางค์ | D88: =Score!D26 -> EN-AE | E88: =Score!E26 -> 2.35 | F88: =Score!F26 -> 1 | AM88: 0 | AN88: 0
A89: =Score!A25 -> 22 | B89: =Score!B25 -> 563040121-6 | C89: =Score!C25 -> นายธนพล หลาบศิริ | D89: =Score!D25 -> EN-AE | E89: =Score!E25 -> 2.77 | F89: =Score!F25 -> 1 | AM89: 0 | AN89: 0
A90: =Score!A24 -> 21 | B90: =Score!B24 -> 563040116-9 | C90: =Score!C24 -> นายโชคชัย ซุยอุ้ย | D90: =Score!D24 -> EN-AE | E90: =Score!E24 -> 3.03 | F90: =Score!F24 -> 1 | AM90: 0 | AN90: 0
A91: =Score!A23 -> 20 | B91: =Score!B23 -> 563040115-1 | C91: =Score!C23 -> นายจุลดิศ ทองตัน | D91: =Score!D23 -> EN-AE | E91: =Score!E23 -> 1.82 | F91: =Score!F23 -> 1 | AM91: 0 | AN91: 0
A92: =Score!A22 -> 19 | B92: =Score!B22 -> 563040114-3 | C92: =Score!C22 -> นายคฑาวุธ ศรีโสดาพล | D92: =Score!D22 -> EN-AE | E92: =Score!E22 -> 1.51 | F92: =Score!F22 -> 1 | AM92: 0 | AN92: 0
A93: =Score!A21 -> 18 | B93: =Score!B21 -> 563040098-5 | C93: =Score!C21 -> นายสิทธิโชค ชูพงศ์พันธุ์ | D93: =Score!D21 -> EN-ME | E93: =Score!E21 -> 2.94 | F93: =Score!F21 -> 1 | AM93: 0 | AN93: 0
A94: =Score!A20 -> 17 | B94: =Score!B20 -> 563040089-6 | C94: =Score!C20 -> นายศวัสชัย วิวรรธนจิตต์ | D94: =Score!D20 -> EN-IE | E94: =Score!E20 -> 2.79 | F94: =Score!F20 -> 1 | AM94: =SUM(G94:AL94) -> 0 | AN94: =+$AN$2-AM94 -> 0
A95: =Score!A19 -> 16 | B95: =Score!B19 -> 563040076-5 | C95: =Score!C19 -> นายรัฐศาสตร์ พลยงค์ | D95: =Score!D19 -> EN-ME | E95: =Score!E19 -> 2.88 | F95: =Score!F19 -> 1 | AM95: 0 | AN95: 0
A96: =Score!A18 -> 15 | B96: =Score!B18 -> 563040071-5 | C96: =Score!C18 -> นายมานะ ติรโรจน์ | D96: =Score!D18 -> EN-ME | E96: =Score!E18 -> 3.46 | F96: =Score!F18 -> 1 | AM96: 0 | AN96: 0
A97: =Score!A17 -> 14 | B97: =Score!B17 -> 563040070-7 | C97: =Score!C17 -> นายมหคพันธุ์ เอมกลาง | D97: =Score!D17 -> EN-ME | E97: =Score!E17 -> 2.71 | F97: =Score!F17 -> 1 | AM97: 0 | AN97: 0
A98: =Score!A16 -> 13 | B98: =Score!B16 -> 563040065-0 | C98: =Score!C16 -> นายภาคิน จำปาศักดิ์ | D98: =Score!D16 -> EN-ME | E98: =Score!E16 -> 3.51 | F98: =Score!F16 -> 1 | AM98: 0 | AN98: 0
A99: =Score!A15 -> 12 | B99: =Score!B15 -> 563040064-2 | C99: =Score!C15 -> นางสาวภัทรามาศ ฉวีชัย | D99: =Score!D15 -> EN-IE | E99: =Score!E15 -> 3.12 | F99: =Score!F15 -> 1 | AM99: 0 | AN99: 0
A100: =Score!A14 -> 11 | B100: =Score!B14 -> 563040059-5 | C100: =Score!C14 -> นายพสธร นามสร | D100: =Score!D14 -> EN-ME | E100: =Score!E14 -> 3.09 | F100: =Score!F14 -> 1 | AM100: 0 | AN100: 0
A101: =Score!A13 -> 10 | B101: =Score!B13 -> 563040051-1 | C101: =Score!C13 -> นายพงศ์ทัช พรวิกุลรัตนา | D101: =Score!D13 -> EN-ME | E101: =Score!E13 -> 2.63 | F101: =Score!F13 -> 1 | AM101: 0 | AN101: 0
A102: =Score!A12 -> 9 | B102: =Score!B12 -> 563040044-8 | C102: =Score!C12 -> นางสาวนิภาพร อายุวัฒน์ | D102: =Score!D12 -> EN-ME | E102: =Score!E12 -> 2.92 | F102: =Score!F12 -> 1 | AM102: 0 | AN102: 0
A103: =Score!A11 -> 8 | B103: =Score!B11 -> 563040043-0 | C103: =Score!C11 -> นางสาวนันทิชา จริยาโสวรรณ | D103: =Score!D11 -> EN-IE | E103: =Score!E11 -> 2.04 | F103: =Score!F11 -> 1 | AM103: 0 | AN103: 0
A104: =Score!A10 -> 7 | B104: =Score!B10 -> 563040032-5 | C104: =Score!C10 -> นางสาวธนัชชา ใหญ่สูงเนิน | D104: =Score!D10 -> EN-IE | E104: =Score!E10 -> 2.76 | F104: =Score!F10 -> 1 | AM104: 0 | AN104: 0
A105: =Score!A9 -> 6 | B105: =Score!B9 -> 563040025-2 | C105: =Score!C9 -> นายทรงพล เกียรติพนมแพ | D105: =Score!D9 -> EN-IE | E105: =Score!E9 -> 3.04 | F105: =Score!F9 -> 1 | AM105: 0 | AN105: 0
A106: =Score!A8 -> 5 | B106: =Score!B8 -> 563040022-8 | C106: =Score!C8 -> นายณัฐพล สิทธิอมรพร | D106: =Score!D8 -> EN-ME | E106: =Score!E8 -> 3.41 | F106: =Score!F8 -> 1 | AM106: 0 | AN106: 0
A107: =Score!A7 -> 4 | B107: =Score!B7 -> 563040003-2 | C107: =Score!C7 -> นายกฤช ถาไชยลา | D107: =Score!D7 -> EN-ME | E107: =Score!E7 -> 2.84 | F107: =Score!F7 -> 1 | AM107: 0 | AN107: 0
A108: =Score!A6 -> 3 | B108: =Score!B6 -> 563040002-4 | C108: =Score!C6 -> นายกรวิชญ์ ศรีวัฒนาปิติกุล | D108: =Score!D6 -> EN-ME | E108: =Score!E6 -> 3.14 | F108: =Score!F6 -> 1 | AM108: 0 | AN108: 0
A109: =Score!A5 -> 2 | B109: =Score!B5 -> 553040404-3 | C109: =Score!C5 -> นายวนัสมัญ กฤษณะสุวรรณ | D109: =Score!D5 -> EN-IE | E109: =Score!E5 -> 1.89 | F109: =Score!F5 -> 1 | AM109: 0 | AN109: 0
A110: =Score!A4 -> 1 | B110: =Score!B4 -> 543040669-6 | C110: =Score!C4 -> นายเกียรติขจร ทัดทาอามาตย์ | D110: =Score!D4 -> EN-AE | E110: =Score!E4 -> 2 | F110: =Score!F4 -> 1 | AM110: =SUM(G110:AL110) -> 0 | AN110: =+$AN$2-AM110 -> 0

Sheet QuizAll
B1: รายวิชา | C1: 185231 : THERMODYNAMICS I | F1: Section 1 | G1: =+G2 -> 1 | H1: =+H2 -> 1 | I1: 1 | J1: 1 | K1: 1 | L1: 1 | M1: 1 | N1: 1 | O1: 1 | P1: 1 | Q1: 1 | R1: 1 | S1: =SUM(G1:R1)/1.2 -> 10
B2: ปีการศึกษา | C2: 2553 ภาคการศึกษาที่ 1 | F2: รศ.ดร.สมหมาย ปรีเปรม | G2: 1 | H2: =+G2 -> 1 | I2: =+H2 -> 1 | J2: 1 | K2: 1 | L2: 1 | M2: 1 | N2: 1 | O2: 1 | P2: 1 | Q2: 1 | R2: 1 | S2: =SUM(G2:R2)/1.2 -> 10 | U2: 20 | V2: 10 | W2: 100 | X2: 10 | Y2: 100 | Z2: 100 | AA2: 100 | AB2: 10 | AC2: 10 | AD2: 10 | AE2: 100 | AF2: 10
A3: ลำดับ | B3: รหัส | C3: ชื่อ | D3: หลักสูตร | E3: GPA | F3: Section | G3: Quiz 1 | H3: Quiz 2 | I3: Quiz 3 | J3: Quiz 4 | K3: Quiz 5 | L3: Quiz 6 | M3: Quiz 7 | N3: Quiz 8 | O3: Quiz 9 | P3: Quiz 10 | Q3: Quiz 11 | R3: Quiz 12 | S3: Sum | U3: Quiz 1 | V3: Quiz 2 | W3: Quiz 3 | X3: Quiz 4 | Y3: Quiz 5 | Z3: Quiz 6 | AA3: Quiz 7 | AB3: Quiz 8 | AC3: Quiz 9 | AD3: Quiz 10 | AE3: Quiz 11 | AF3: Quiz 12
A4: =Score!A4 -> 1 | B4: =Score!B4 -> 543040669-6 | C4: =Score!C4 -> นายเกียรติขจร ทัดทาอามาตย์ | D4: =Score!D4 -> EN-AE | E4: =Score!E4 -> 2 | F4: =Score!F4 -> 1 | G4: =U4/20 -> 0 | H4: =V4/10 -> 0 | I4: =W4/100 -> 0 | J4: =X4/10 -> 0 | K4: =Y4/100 -> 0 | L4: =Z4/100 -> 0 | M4: =AA4/100 -> 0 | N4: =AB4/10 -> 0 | O4: =AC4/10 -> 0 | P4: =AD4/10 -> 0 | Q4: =AE4/100 -> 0 | R4: =AF4/10 -> 0 | S4: =SUM(G4:R4)/1.2 -> 0
A5: =Score!A5 -> 2 | B5: =Score!B5 -> 553040404-3 | C5: =Score!C5 -> นายวนัสมัญ กฤษณะสุวรรณ | D5: =Score!D5 -> EN-IE | E5: =Score!E5 -> 1.89 | F5: =Score!F5 -> 1 | G5: =U5/20 -> 0 | H5: =V5/10 -> 0 | I5: =W5/100 -> 0 | J5: =X5/10 -> 0 | K5: =Y5/100 -> 0 | L5: =Z5/100 -> 0 | M5: =AA5/100 -> 0 | N5: =AB5/10 -> 0 | O5: =AC5/10 -> 0 | P5: =AD5/10 -> 0 | Q5: =AE5/100 -> 0 | R5: =AF5/10 -> 0 | S5: =SUM(G5:R5)/1.2 -> 0
A6: =Score!A6 -> 3 | B6: =Score!B6 -> 563040002-4 | C6: =Score!C6 -> นายกรวิชญ์ ศรีวัฒนาปิติกุล | D6: =Score!D6 -> EN-ME | E6: =Score!E6 -> 3.14 | F6: =Score!F6 -> 1 | G6: =U6/20 -> 0 | H6: =V6/10 -> 0 | I6: =W6/100 -> 0 | J6: =X6/10 -> 0 | K6: =Y6/100 -> 0 | L6: 0 | M6: 0 | N6: 0 | O6: 0 | P6: 0 | Q6: 0 | R6: 0 | S6: 0
A7: =Score!A7 -> 4 | B7: =Score!B7 -> 563040003-2 | C7: =Score!C7 -> นายกฤช ถาไชยลา | D7: =Score!D7 -> EN-ME | E7: =Score!E7 -> 2.84 | F7: =Score!F7 -> 1 | G7: 0 | H7: 0 | I7: 0 | J7: 0 | K7: 0 | L7: 0 | M7: 0 | N7: 0 | O7: 0 | P7: 0 | Q7: 0 | R7: 0 | S7: 0
A8: =Score!A8 -> 5 | B8: =Score!B8 -> 563040022-8 | C8: =Score!C8 -> นายณัฐพล สิทธิอมรพร | D8: =Score!D8 -> EN-ME | E8: =Score!E8 -> 3.41 | F8: =Score!F8 -> 1 | G8: 0 | H8: 0 | I8: 0 | J8: 0 | K8: 0 | L8: 0 | M8: 0 | N8: 0 | O8: 0 | P8: =AD8/10 -> 0 | Q8: =AE8/100 -> 0 | R8: =AF8/10 -> 0 | S8: 0
A9: =Score!A9 -> 6 | B9: =Score!B9 -> 563040025-2 | C9: =Score!C9 -> นายทรงพล เกียรติพนมแพ | D9: =Score!D9 -> EN-IE | E9: =Score!E9 -> 3.04 | F9: =Score!F9 -> 1 | G9: 0 | H9: 0 | I9: 0 | J9: 0 | K9: 0 | L9: 0 | M9: 0 | N9: 0 | O9: 0 | P9: 0 | Q9: 0 | R9: 0 | S9: 0
A10: =Score!A10 -> 7 | B10: =Score!B10 -> 563040032-5 | C10: =Score!C10 -> นางสาวธนัชชา ใหญ่สูงเนิน | D10: =Score!D10 -> EN-IE | E10: =Score!E10 -> 2.76 | F10: =Score!F10 -> 1 | G10: 0 | H10: 0 | I10: 0 | J10: 0 | K10: 0 | L10: 0 | M10: 0 | N10: 0 | O10: 0 | P10: 0 | Q10: 0 | R10: 0 | S10: 0
A11: =Score!A11 -> 8 | B11: =Score!B11 -> 563040043-0 | C11: =Score!C11 -> นางสาวนันทิชา จริยาโสวรรณ | D11: =Score!D11 -> EN-IE | E11: =Score!E11 -> 2.04 | F11: =Score!F11 -> 1 | G11: 0 | H11: 0 | I11: 0 | J11: 0 | K11: 0 | L11: 0 | M11: 0 | N11: 0 | O11: 0 | P11: 0 | Q11: 0 | R11: 0 | S11: 0
A12: =Score!A12 -> 9 | B12: =Score!B12 -> 563040044-8 | C12: =Score!C12 -> นางสาวนิภาพร อายุวัฒน์ | D12: =Score!D12 -> EN-ME | E12: =Score!E12 -> 2.92 | F12: =Score!F12 -> 1 | G12: 0 | H12: 0 | I12: 0 | J12: 0 | K12: 0 | L12: 0 | M12: 0 | N12: 0 | O12: 0 | P12: 0 | Q12: 0 | R12: 0 | S12: 0
A13: =Score!A13 -> 10 | B13: =Score!B13 -> 563040051-1 | C13: =Score!C13 -> นายพงศ์ทัช พรวิกุลรัตนา | D13: =Score!D13 -> EN-ME | E13: =Score!E13 -> 2.63 | F13: =Score!F13 -> 1 | G13: 0 | H13: 0 | I13: 0 | J13: 0 | K13: 0 | L13: 0 | M13: 0 | N13: 0 | O13: 0 | P13: 0 | Q13: 0 | R13: 0 | S13: 0
A14: =Score!A14 -> 11 | B14: =Score!B14 -> 563040059-5 | C14: =Score!C14 -> นายพสธร นามสร | D14: =Score!D14 -> EN-ME | E14: =Score!E14 -> 3.09 | F14: =Score!F14 -> 1 | G14: 0 | H14: 0 | I14: 0 | J14: 0 | K14: 0 | L14: 0 | M14: 0 | N14: 0 | O14: 0 | P14: =AD14/10 -> 0 | Q14: =AE14/100 -> 0 | R14: =AF14/10 -> 0 | S14: 0
A15: =Score!A15 -> 12 | B15: =Score!B15 -> 563040064-2 | C15: =Score!C15 -> นางสาวภัทรามาศ ฉวีชัย | D15: =Score!D15 -> EN-IE | E15: =Score!E15 -> 3.12 | F15: =Score!F15 -> 1 | G15: 0 | H15: 0 | I15: 0 | J15: 0 | K15: 0 | L15: 0 | M15: 0 | N15: 0 | O15: 0 | P15: 0 | Q15: 0 | R15: 0 | S15: 0
A16: =Score!A16 -> 13 | B16: =Score!B16 -> 563040065-0 | C16: =Score!C16 -> นายภาคิน จำปาศักดิ์ | D16: =Score!D16 -> EN-ME | E16: =Score!E16 -> 3.51 | F16: =Score!F16 -> 1 | G16: 0 | H16: 0 | I16: 0 | J16: 0 | K16: 0 | L16: 0 | M16: 0 | N16: 0 | O16: 0 | P16: 0 | Q16: 0 | R16: 0 | S16: 0
A17: =Score!A17 -> 14 | B17: =Score!B17 -> 563040070-7 | C17: =Score!C17 -> นายมหคพันธุ์ เอมกลาง | D17: =Score!D17 -> EN-ME | E17: =Score!E17 -> 2.71 | F17: =Score!F17 -> 1 | G17: 0 | H17: 0 | I17: 0 | J17: 0 | K17: 0 | L17: 0 | M17: 0 | N17: 0 | O17: 0 | P17: 0 | Q17: 0 | R17: 0 | S17: 0
A18: =Score!A18 -> 15 | B18: =Score!B18 -> 563040071-5 | C18: =Score!C18 -> นายมานะ ติรโรจน์ | D18: =Score!D18 -> EN-ME | E18: =Score!E18 -> 3.46 | F18: =Score!F18 -> 1 | G18: 0 | H18: 0 | I18: 0 | J18: 0 | K18: 0 | L18: 0 | M18: 0 | N18: 0 | O18: 0 | P18: 0 | Q18: 0 | R18: 0 | S18: 0
A19: =Score!A19 -> 16 | B19: =Score!B19 -> 563040076-5 | C19: =Score!C19 -> นายรัฐศาสตร์ พลยงค์ | D19: =Score!D19 -> EN-ME | E19: =Score!E19 -> 2.88 | F19: =Score!F19 -> 1 | G19: 0 | H19: 0 | I19: 0 | J19: 0 | K19: 0 | L19: 0 | M19: 0 | N19: 0 | O19: 0 | P19: 0 | Q19: 0 | R19: 0 | S19: 0
A20: =Score!A20 -> 17 | B20: =Score!B20 -> 563040089-6 | C20: =Score!C20 -> นายศวัสชัย วิวรรธนจิตต์ | D20: =Score!D20 -> EN-IE | E20: =Score!E20 -> 2.79 | F20: =Score!F20 -> 1 | G20: 0 | H20: 0 | I20: 0 | J20: 0 | K20: 0 | L20: 0 | M20: 0 | N20: 0 | O20: 0 | P20: =AD20/10 -> 0 | Q20: =AE20/100 -> 0 | R20: =AF20/10 -> 0 | S20: 0
A21: =Score!A21 -> 18 | B21: =Score!B21 -> 563040098-5 | C21: =Score!C21 -> นายสิทธิโชค ชูพงศ์พันธุ์ | D21: =Score!D21 -> EN-ME | E21: =Score!E21 -> 2.94 | F21: =Score!F21 -> 1 | G21: 0 | H21: 0 | I21: 0 | J21: 0 | K21: 0 | L21: 0 | M21: 0 | N21: 0 | O21: 0 | P21: 0 | Q21: 0 | R21: 0 | S21: 0
A22: =Score!A22 -> 19 | B22: =Score!B22 -> 563040114-3 | C22: =Score!C22 -> นายคฑาวุธ ศรีโสดาพล | D22: =Score!D22 -> EN-AE | E22: =Score!E22 -> 1.51 | F22: =Score!F22 -> 1 | G22: 0 | H22: 0 | I22: 0 | J22: 0 | K22: 0 | L22: 0 | M22: 0 | N22: 0 | O22: 0 | P22: 0 | Q22: 0 | R22: 0 | S22: 0
A23: =Score!A23 -> 20 | B23: =Score!B23 -> 563040115-1 | C23: =Score!C23 -> นายจุลดิศ ทองตัน | D23: =Score!D23 -> EN-AE | E23: =Score!E23 -> 1.82 | F23: =Score!F23 -> 1 | G23: 0 | H23: 0 | I23: 0 | J23: 0 | K23: 0 | L23: 0 | M23: 0 | N23: 0 | O23: 0 | P23: 0 | Q23: 0 | R23: 0 | S23: 0
A24: =Score!A24 -> 21 | B24: =Score!B24 -> 563040116-9 | C24: =Score!C24 -> นายโชคชัย ซุยอุ้ย | D24: =Score!D24 -> EN-AE | E24: =Score!E24 -> 3.03 | F24: =Score!F24 -> 1 | G24: 0 | H24: 0 | I24: 0 | J24: 0 | K24: 0 | L24: 0 | M24: 0 | N24: 0 | O24: 0 | P24: 0 | Q24: 0 | R24: 0 | S24: 0
A25: =Score!A25 -> 22 | B25: =Score!B25 -> 563040121-6 | C25: =Score!C25 -> นายธนพล หลาบศิริ | D25: =Score!D25 -> EN-AE | E25: =Score!E25 -> 2.77 | F25: =Score!F25 -> 1 | G25: 0 | H25: 0 | I25: 0 | J25: 0 | K25: 0 | L25: 0 | M25: 0 | N25: 0 | O25: 0 | P25: 0 | Q25: 0 | R25: 0 | S25: 0
A26: =Score!A26 -> 23 | B26: =Score!B26 -> 563040123-2 | C26: =Score!C26 -> นายธนวร สันธนะสุรางค์ | D26: =Score!D26 -> EN-AE | E26: =Score!E26 -> 2.35 | F26: =Score!F26 -> 1 | G26: 0 | H26: 0 | I26: 0 | J26: 0 | K26: 0 | L26: 0 | M26: 0 | N26: 0 | O26: 0 | P26: 0 | Q26: 0 | R26: 0 | S26: 0
A27: =Score!A27 -> 24 | B27: =Score!B27 -> 563040129-0 | C27: =Score!C27 -> นายพีรเมธ จุฑานันท์ | D27: =Score!D27 -> EN-AE | E27: =Score!E27 -> 1.89 | F27: =Score!F27 -> 1 | G27: 0 | H27: 0 | I27: 0 | J27: 0 | K27: 0 | L27: 0 | M27: 0 | N27: 0 | O27: 0 | P27: 0 | Q27: 0 | R27: 0 | S27: 0
A28: =Score!A28 -> 25 | B28: =Score!B28 -> 563040130-5 | C28: =Score!C28 -> นายพีส คูณดี | D28: =Score!D28 -> EN-AE | E28: =Score!E28 -> 2.29 | F28: =Score!F28 -> 1 | G28: 0 | H28: 0 | I28: 0 | J28: 0 | K28: 0 | L28: 0 | M28: 0 | N28: 0 | O28: 0 | P28: 0 | Q28: 0 | R28: 0 | S28: 0
A29: =Score!A29 -> 26 | B29: =Score!B29 -> 563040137-1 | C29: =Score!C29 -> นายศุภณัฐ ลัภกิตโร | D29: =Score!D29 -> EN-AE | E29: =Score!E29 -> 2.58 | F29: =Score!F29 -> 1 | G29: 0 | H29: 0 | I29: 0 | J29: 0 | K29: 0 | L29: 0 | M29: 0 | N29: 0 | O29: 0 | P29: 0 | Q29: 0 | R29: 0 | S29: 0
A30: =Score!A30 -> 27 | B30: =Score!B30 -> 563040139-7 | C30: =Score!C30 -> นายสุธรรม ดิษาภิรมย์ | D30: =Score!D30 -> EN-AE | E30: =Score!E30 -> 1.78 | F30: =Score!F30 -> 1 | G30: 0 | H30: 0 | I30: 0 | J30: 0 | K30: 0 | L30: 0 | M30: 0 | N30: 0 | O30: 0 | P30: 0 | Q30: 0 | R30: 0 | S30: 0
A31: =Score!A31 -> 28 | B31: =Score!B31 -> 563040231-9 | C31: =Score!C31 -> นายอธิการ สุริโย | D31: =Score!D31 -> EN-IE | E31: =Score!E31 -> 1.71 | F31: =Score!F31 -> 1 | G31: 0 | H31: 0 | I31: 0 | J31: 0 | K31: 0 | L31: 0 | M31: 0 | N31: 0 | O31: 0 | P31: 0 | Q31: 0 | R31: 0 | S31: 0
A32: =Score!A32 -> 29 | B32: =Score!B32 -> 563040260-2 | C32: =Score!C32 -> นางสาวณัฐณิชา ศิริเหล่าไพศาล | D32: =Score!D32 -> EN-IE | E32: =Score!E32 -> 3.17 | F32: =Score!F32 -> 1 | G32: 0 | H32: 0 | I32: 0 | J32: 0 | K32: 0 | L32: 0 | M32: 0 | N32: 0 | O32: 0 | P32: 0 | Q32: 0 | R32: 0 | S32: 0
A33: =Score!A33 -> 30 | B33: =Score!B33 -> 563040269-4 | C33: =Score!C33 -> นายกนกพล แก้วเฮียง | D33: =Score!D33 -> EN-ME | E33: =Score!E33 -> 3.06 | F33: =Score!F33 -> 1 | G33: 0 | H33: 0 | I33: 0 | J33: 0 | K33: 0 | L33: 0 | M33: 0 | N33: 0 | O33: 0 | P33: 0 | Q33: 0 | R33: 0 | S33: 0
A34: =Score!A34 -> 31 | B34: =Score!B34 -> 563040272-5 | C34: =Score!C34 -> นายกีรติ มังษา | D34: =Score!D34 -> EN-ME | E34: =Score!E34 -> 2.87 | F34: =Score!F34 -> 1 | G34: 0 | H34: 0 | I34: 0 | J34: 0 | K34: 0 | L34: 0 | M34: 0 | N34: 0 | O34: 0 | P34: 0 | Q34: 0 | R34: 0 | S34: 0
A35: =Score!A35 -> 32 | B35: =Score!B35 -> 563040275-9 | C35: =Score!C35 -> นางสาวคุณัญญา ทวีสอน | D35: =Score!D35 -> EN-ME | E35: =Score!E35 -> 2.69 | F35: =Score!F35 -> 1 | G35: 0 | H35: 0 | I35: 0 | J35: 0 | K35: 0 | L35: 0 | M35: 0 | N35: 0 | O35: 0 | P35: 0 | Q35: 0 | R35: 0 | S35: 0
A36: =Score!A36 -> 33 | B36: =Score!B36 -> 563040289-8 | C36: =Score!C36 -> นางสาวโชติณัฐ จงใจหาญ | D36: =Score!D36 -> EN-IE | E36: =Score!E36 -> 3 | F36: =Score!F36 -> 1 | G36: 0 | H36: 0 | I36: 0 | J36: 0 | K36: 0 | L36: 0 | M36: 0 | N36: 0 | O36: 0 | P36: 0 | Q36: 0 | R36: 0 | S36: 0
A37: =Score!A37 -> 34 | B37: =Score!B37 -> 563040292-9 | C37: =Score!C37 -> นางสาวฐิติพร ฐานหมั่น | D37: =Score!D37 -> EN-IE | E37: =Score!E37 -> 2.12 | F37: =Score!F37 -> 1 | G37: 0 | H37: 0 | I37: 0 | J37: 0 | K37: 0 | L37: 0 | M37: 0 | N37: 0 | O37: 0 | P37: 0 | Q37: 0 | R37: 0 | S37: 0
A38: =Score!A38 -> 35 | B38: =Score!B38 -> 563040296-1 | C38: =Score!C38 -> นางสาวณัฐชยา ทัศนจินดา | D38: =Score!D38 -> EN-IE | E38: =Score!E38 -> 2.75 | F38: =Score!F38 -> 1 | G38: 0 | H38: 0 | I38: 0 | J38: 0 | K38: 0 | L38: 0 | M38: 0 | N38: 0 | O38: 0 | P38: 0 | Q38: 0 | R38: 0 | S38: 0
A39: =Score!A39 -> 36 | B39: =Score!B39 -> 563040304-8 | C39: =Score!C39 -> นายธนพนธ์ ตั้งวัฒนสุวรรณ | D39: =Score!D39 -> EN-IE | E39: =Score!E39 -> 2.44 | F39: =Score!F39 -> 1 | G39: 0 | H39: 0 | I39: 0 | J39: 0 | K39: 0 | L39: 0 | M39: 0 | N39: 0 | O39: 0 | P39: 0 | Q39: 0 | R39: 0 | S39: 0
A40: =Score!A40 -> 37 | B40: =Score!B40 -> 563040313-7 | C40: =Score!C40 -> นายธาดา วิริยบัณฑร | D40: =Score!D40 -> EN-ME | E40: =Score!E40 -> 3.49 | F40: =Score!F40 -> 1 | G40: 0 | H40: 0 | I40: 0 | J40: 0 | K40: 0 | L40: 0 | M40: 0 | N40: 0 | O40: 0 | P40: 0 | Q40: 0 | R40: 0 | S40: 0
A41: =Score!A41 -> 38 | B41: =Score!B41 -> 563040315-3 | C41: =Score!C41 -> นางสาวธิดาวรรณ ใจตรง | D41: =Score!D41 -> EN-IE | E41: =Score!E41 -> 2.48 | F41: =Score!F41 -> 1 | G41: 0 | H41: 0 | I41: 0 | J41: 0 | K41: 0 | L41: 0 | M41: 0 | N41: 0 | O41: 0 | P41: 0 | Q41: 0 | R41: 0 | S41: 0
A42: =Score!A42 -> 39 | B42: =Score!B42 -> 563040334-9 | C42: =Score!C42 -> นายพชร ไชยสมบูรณ์ | D42: =Score!D42 -> EN-IE | E42: =Score!E42 -> 2.32 | F42: =Score!F42 -> 1 | G42: 0 | H42: 0 | I42: 0 | J42: 0 | K42: 0 | L42: 0 | M42: 0 | N42: 0 | O42: 0 | P42: 0 | Q42: 0 | R42: 0 | S42: 0
A43: =Score!A43 -> 40 | B43: =Score!B43 -> 563040341-2 | C43: =Score!C43 -> นายพิทวัส เบ้าศรี | D43: =Score!D43 -> EN-ME | E43: =Score!E43 -> 2.68 | F43: =Score!F43 -> 1 | G43: 0 | H43: 0 | I43: 0 | J43: 0 | K43: 0 | L43: 0 | M43: 0 | N43: 0 | O43: 0 | P43: 0 | Q43: 0 | R43: 0 | S43: 0
A44: =Score!A44 -> 41 | B44: =Score!B44 -> 563040344-6 | C44: =Score!C44 -> นายไพโรจน์ วงษ์จำปา | D44: =Score!D44 -> EN-ME | E44: =Score!E44 -> 2.61 | F44: =Score!F44 -> 1 | G44: 0 | H44: 0 | I44: 0 | J44: 0 | K44: 0 | L44: 0 | M44: 0 | N44: 0 | O44: 0 | P44: 0 | Q44: 0 | R44: 0 | S44: 0
A45: =Score!A45 -> 42 | B45: =Score!B45 -> 563040346-2 | C45: =Score!C45 -> นายภระรถ ผาสิงห์ | D45: =Score!D45 -> EN-ME | E45: =Score!E45 -> 3.13 | F45: =Score!F45 -> 1 | G45: 0 | H45: 0 | I45: 0 | J45: 0 | K45: 0 | L45: 0 | M45: 0 | N45: 0 | O45: 0 | P45: 0 | Q45: 0 | R45: 0 | S45: 0
A46: =Score!A46 -> 43 | B46: =Score!B46 -> 563040351-9 | C46: =Score!C46 -> นางสาวมุกดารัศมิ์ อาจบรรจง | D46: =Score!D46 -> EN-ME | E46: =Score!E46 -> 2.96 | F46: =Score!F46 -> 1 | G46: 0 | H46: 0 | I46: 0 | J46: 0 | K46: 0 | L46: 0 | M46: 0 | N46: 0 | O46: 0 | P46: 0 | Q46: 0 | R46: 0 | S46: 0
A47: =Score!A47 -> 44 | B47: =Score!B47 -> 563040359-3 | C47: =Score!C47 -> นายวริษฐ์ จวงพุ่ม | D47: =Score!D47 -> EN-IE | E47: =Score!E47 -> 2.34 | F47: =Score!F47 -> 1 | G47: 0 | H47: 0 | I47: 0 | J47: 0 | K47: 0 | L47: 0 | M47: 0 | N47: 0 | O47: 0 | P47: 0 | Q47: 0 | R47: 0 | S47: 0
A48: =Score!A48 -> 45 | B48: =Score!B48 -> 563040367-4 | C48: =Score!C48 -> นายไวพจน์ แสงกุดเรือ | D48: =Score!D48 -> EN-ME | E48: =Score!E48 -> 2.78 | F48: =Score!F48 -> 1 | G48: 0 | H48: 0 | I48: 0 | J48: 0 | K48: 0 | L48: 0 | M48: 0 | N48: 0 | O48: 0 | P48: 0 | Q48: 0 | R48: 0 | S48: 0
A49: =Score!A49 -> 46 | B49: =Score!B49 -> 563040389-4 | C49: =Score!C49 -> นางสาวสุธีรา นาหัวนิล | D49: =Score!D49 -> EN-IE | E49: =Score!E49 -> 2.3 | F49: =Score!F49 -> 1 | G49: 0 | H49: 0 | I49: 0 | J49: 0 | K49: 0 | L49: 0 | M49: 0 | N49: 0 | O49: 0 | P49: 0 | Q49: 0 | R49: 0 | S49: 0
A50: =Score!A50 -> 47 | B50: =Score!B50 -> 563040393-3 | C50: =Score!C50 -> นายสุภานุเดช ถาวิกุล | D50: =Score!D50 -> EN-IE | E50: =Score!E50 -> 1.58 | F50: =Score!F50 -> 1 | G50: 0 | H50: 0 | I50: 0 | J50: 0 | K50: 0 | L50: 0 | M50: 0 | N50: 0 | O50: 0 | P50: 0 | Q50: 0 | R50: 0 | S50: 0
A51: =Score!A51 -> 48 | B51: =Score!B51 -> 563040394-1 | C51: =Score!C51 -> นางสาวสุภาวิตา ทาเวียง | D51: =Score!D51 -> EN-IE | E51: =Score!E51 -> 2.37 | F51: =Score!F51 -> 1 | G51: 0 | H51: 0 | I51: 0 | J51: 0 | K51: 0 | L51: 0 | M51: 0 | N51: 0 | O51: 0 | P51: 0 | Q51: 0 | R51: 0 | S51: 0
A52: =Score!A52 -> 49 | B52: =Score!B52 -> 563040396-7 | C52: =Score!C52 -> นางสาวสุวนันท์ ดวงพิมาย | D52: =Score!D52 -> EN-IE | E52: =Score!E52 -> 2.19 | F52: =Score!F52 -> 1 | G52: 0 | H52: 0 | I52: 0 | J52: 0 | K52: 0 | L52: 0 | M52: 0 | N52: 0 | O52: 0 | P52: 0 | Q52: 0 | R52: 0 | S52: 0
A53: =Score!A53 -> 50 | B53: =Score!B53 -> 563040397-5 | C53: =Score!C53 -> นางสาวเหมือนฝัน จินดามณี | D53: =Score!D53 -> EN-IE | E53: =Score!E53 -> 1.72 | F53: =Score!F53 -> 1 | G53: 0 | H53: 0 | I53: 0 | J53: 0 | K53: 0 | L53: 0 | M53: 0 | N53: 0 | O53: 0 | P53: 0 | Q53: 0 | R53: 0 | S53: 0
A54: =Score!A54 -> 51 | B54: =Score!B54 -> 563040398-3 | C54: =Score!C54 -> นางสาวเหมือนฝัน เผือกไร่ | D54: =Score!D54 -> EN-ME | E54: =Score!E54 -> 2.75 | F54: =Score!F54 -> 1 | G54: 0 | H54: 0 | I54: 0 | J54: 0 | K54: 0 | L54: 0 | M54: 0 | N54: 0 | O54: 0 | P54: 0 | Q54: 0 | R54: 0 | S54: 0
A55: =Score!A55 -> 52 | B55: =Score!B55 -> 563040400-2 | C55: =Score!C55 -> นายอดิศร โพธิ์ยา | D55: =Score!D55 -> EN-IE | E55: =Score!E55 -> 2.37 | F55: =Score!F55 -> 1 | G55: 0 | H55: 0 | I55: 0 | J55: 0 | K55: 0 | L55: 0 | M55: 0 | N55: 0 | O55: 0 | P55: 0 | Q55: 0 | R55: 0 | S55: 0
A56: =Score!A56 -> 53 | B56: =Score!B56 -> 563040408-6 | C56: =Score!C56 -> นายอรรถศาสตร์ สุระคาย | D56: =Score!D56 -> EN-ME | E56: =Score!E56 -> 2.57 | F56: =Score!F56 -> 1 | G56: 0 | H56: 0 | I56: 0 | J56: 0 | K56: 0 | L56: 0 | M56: 0 | N56: 0 | O56: 0 | P56: 0 | Q56: 0 | R56: 0 | S56: 0
A57: =Score!A57 -> 54 | B57: =Score!B57 -> 563040419-1 | C57: =Score!C57 -> นายชาญชัย มีสนาม | D57: =Score!D57 -> EN-AE | E57: =Score!E57 -> 2.88 | F57: =Score!F57 -> 1 | G57: 0 | H57: 0 | I57: 0 | J57: 0 | K57: 0 | L57: 0 | M57: 0 | N57: 0 | O57: 0 | P57: 0 | Q57: 0 | R57: 0 | S57: 0
A58: =Score!A58 -> 55 | B58: =Score!B58 -> 563040424-8 | C58: =Score!C58 -> นายนิติศักดิ์ แต่งเมือง | D58: =Score!D58 -> EN-AE | E58: =Score!E58 -> 2.26 | F58: =Score!F58 -> 1 | G58: 0 | H58: 0 | I58: 0 | J58: 0 | K58: 0 | L58: 0 | M58: 0 | N58: 0 | O58: 0 | P58: 0 | Q58: 0 | R58: 0 | S58: 0
A59: =Score!A59 -> 56 | B59: =Score!B59 -> 563040426-4 | C59: =Score!C59 -> นางสาวเพชรากร ยอดสุวรรณ์ | D59: =Score!D59 -> EN-AE | E59: =Score!E59 -> 2.89 | F59: =Score!F59 -> 1 | G59: 0 | H59: 0 | I59: 0 | J59: 0 | K59: 0 | L59: 0 | M59: 0 | N59: 0 | O59: 0 | P59: 0 | Q59: 0 | R59: 0 | S59: 0
A60: =Score!A60 -> 57 | B60: =Score!B60 -> 563040431-1 | C60: =Score!C60 -> นายวนัส ภูยาธร | D60: =Score!D60 -> EN-AE | E60: =Score!E60 -> 2.23 | F60: =Score!F60 -> 1 | G60: 0 | H60: 0 | I60: 0 | J60: 0 | K60: 0 | L60: 0 | M60: 0 | N60: 0 | O60: 0 | P60: 0 | Q60: 0 | R60: 0 | S60: 0
A61: =Score!A61 -> 58 | B61: =Score!B61 -> 563040433-7 | C61: =Score!C61 -> นางสาวศุภลักษณ์ เครือเพชร | D61: =Score!D61 -> EN-AE | E61: =Score!E61 -> 2.64 | F61: =Score!F61 -> 1 | G61: 0 | H61: 0 | I61: 0 | J61: 0 | K61: 0 | L61: 0 | M61: 0 | N61: 0 | O61: 0 | P61: 0 | Q61: 0 | R61: 0 | S61: 0
A62: =Score!A62 -> 0 | B62: =Score!B62 -> 0 | C62: =Score!C62 -> 0 | D62: =Score!D62 -> 0 | E62: =Score!E62 -> 0 | F62: =Score!F62 -> 0 | G62: 0 | H62: 0 | I62: 0 | J62: 0 | K62: 0 | L62: 0 | M62: 0 | N62: 0 | O62: 0 | P62: 0 | Q62: 0 | R62: 0 | S62: 0
A63: =Score!A63 -> 1 | B63: =Score!B63 -> 563040584-6 | C63: =Score!C63 -> นายกรนันท์ พันธะสา | D63: =Score!D63 -> EN-ME (พิเศษ ม.6) | E63: =Score!E63 -> 2.64 | F63: =Score!F63 -> 4 | G63: 0 | H63: 0 | I63: 0 | J63: 0 | K63: 0 | L63: 0 | M63: 0 | N63: 0 | O63: 0 | P63: 0 | Q63: 0 | R63: 0 | S63: 0
A64: =Score!A64 -> 2 | B64: =Score!B64 -> 563040586-2 | C64: =Score!C64 -> นายจักรกฤษณ์ ตันเจริญ | D64: =Score!D64 -> EN-ME (พิเศษ ม.6) | E64: =Score!E64 -> 1.8 | F64: =Score!F64 -> 4 | G64: 0 | H64: 0 | I64: 0 | J64: 0 | K64: 0 | L64: 0 | M64: 0 | N64: 0 | O64: 0 | P64: 0 | Q64: 0 | R64: 0 | S64: 0
A65: =Score!A65 -> 3 | B65: =Score!B65 -> 563040595-1 | C65: =Score!C65 -> นายทรงภพ กระสังข์ | D65: =Score!D65 -> EN-ME (พิเศษ ม.6) | E65: =Score!E65 -> 2.52 | F65: =Score!F65 -> 4 | G65: 0 | H65: 0 | I65: 0 | J65: 0 | K65: 0 | L65: 0 | M65: 0 | N65: 0 | O65: 0 | P65: 0 | Q65: 0 | R65: 0 | S65: 0
A66: =Score!A66 -> 4 | B66: =Score!B66 -> 563040596-9 | C66: =Score!C66 -> นายทรงศิลป์ ศิริแก้ว | D66: =Score!D66 -> EN-ME (พิเศษ ม.6) | E66: =Score!E66 -> 1.9 | F66: =Score!F66 -> 4 | G66: 0 | H66: 0 | I66: 0 | J66: 0 | K66: 0 | L66: 0 | M66: 0 | N66: 0 | O66: 0 | P66: 0 | Q66: 0 | R66: 0 | S66: 0
A67: =Score!A67 -> 5 | B67: =Score!B67 -> 563040598-5 | C67: =Score!C67 -> นายธนะโชติ สาโม้ | D67: =Score!D67 -> EN-ME (พิเศษ ม.6) | E67: =Score!E67 -> 2.12 | F67: =Score!F67 -> 4 | G67: 0 | H67: 0 | I67: 0 | J67: 0 | K67: 0 | L67: 0 | M67: 0 | N67: 0 | O67: 0 | P67: 0 | Q67: 0 | R67: 0 | S67: 0
A68: =Score!A68 -> 6 | B68: =Score!B68 -> 563040602-0 | C68: =Score!C68 -> นางสาวปฏิมาภรณ์ ทักขินัย | D68: =Score!D68 -> EN-ME (พิเศษ ม.6) | E68: =Score!E68 -> 2.42 | F68: =Score!F68 -> 4 | G68: 0 | H68: 0 | I68: 0 | J68: 0 | K68: 0 | L68: 0 | M68: 0 | N68: 0 | O68: 0 | P68: 0 | Q68: 0 | R68: 0 | S68: 0
A69: =Score!A69 -> 7 | B69: =Score!B69 -> 563040604-6 | C69: =Score!C69 -> นายพิฆเนศ ระเบียบโอษฐ์ | D69: =Score!D69 -> EN-ME (พิเศษ ม.6) | E69: =Score!E69 -> 1.73 | F69: =Score!F69 -> 4 | G69: 0 | H69: 0 | I69: 0 | J69: 0 | K69: 0 | L69: =Z69/100 -> 0 | M69: =AA69/100 -> 0 | N69: =AB69/10 -> 0 | O69: =AC69/10 -> 0 | P69: 0 | Q69: 0 | R69: 0 | S69: =SUM(G69:R69)/1.2 -> 0
A70: =Score!A70 -> 8 | B70: =Score!B70 -> 563040608-8 | C70: =Score!C70 -> นางสาวมณฑกานต์ มูลสาร | D70: =Score!D70 -> EN-ME (พิเศษ ม.6) | E70: =Score!E70 -> 1.99 | F70: =Score!F70 -> 4 | G70: =U70/20 -> 0 | H70: =V70/10 -> 0 | I70: =W70/100 -> 0 | J70: =X70/10 -> 0 | K70: =Y70/100 -> 0 | L70: 0 | M70: 0 | N70: 0 | O70: 0 | P70: 0 | Q70: 0 | R70: 0 | S70: 0
A71: =Score!A71 -> 9 | B71: =Score!B71 -> 563040609-6 | C71: =Score!C71 -> นายรัฐศาสตร์ จันใหญ่ | D71: =Score!D71 -> EN-ME (พิเศษ ม.6) | E71: =Score!E71 -> 2.47 | F71: =Score!F71 -> 4 | G71: 0 | H71: 0 | I71: 0 | J71: 0 | K71: 0 | L71: 0 | M71: 0 | N71: 0 | O71: 0 | P71: 0 | Q71: 0 | R71: 0 | S71: 0
A72: =Score!A72 -> 10 | B72: =Score!B72 -> 563040610-1 | C72: =Score!C72 -> นายลักษมณ์ เฮงพูลธนา | D72: =Score!D72 -> EN-ME (พิเศษ ม.6) | E72: =Score!E72 -> 1.51 | F72: =Score!F72 -> 4 | G72: 0 | H72: 0 | I72: 0 | J72: 0 | K72: 0 | L72: 0 | M72: 0 | N72: 0 | O72: 0 | P72: 0 | Q72: 0 | R72: 0 | S72: 0
A73: =Score!A73 -> 11 | B73: =Score!B73 -> 563040614-3 | C73: =Score!C73 -> นายศิวัช เฮงพูลธนา | D73: =Score!D73 -> EN-ME (พิเศษ ม.6) | E73: =Score!E73 -> 2.21 | F73: =Score!F73 -> 4 | G73: 0 | H73: 0 | I73: 0 | J73: 0 | K73: 0 | L73: 0 | M73: 0 | N73: 0 | O73: 0 | P73: 0 | Q73: 0 | R73: 0 | S73: 0
A74: =Score!A74 -> 12 | B74: =Score!B74 -> 563040618-5 | C74: =Score!C74 -> นายเสาเอก น้อยปรีชา | D74: =Score!D74 -> EN-ME (พิเศษ ม.6) | E74: =Score!E74 -> 2.24 | F74: =Score!F74 -> 4 | G74: 0 | H74: 0 | I74: 0 | J74: 0 | K74: 0 | L74: 0 | M74: 0 | N74: 0 | O74: 0 | P74: 0 | Q74: 0 | R74: 0 | S74: 0
A75: =Score!A75 -> 13 | B75: =Score!B75 -> 563040619-3 | C75: =Score!C75 -> นายอภิเศรษฐ์ อินทรพาณิชย์ | D75: =Score!D75 -> EN-ME (พิเศษ ม.6) | E75: =Score!E75 -> 2.59 | F75: =Score!F75 -> 4 | G75: 0 | H75: 0 | I75: 0 | J75: 0 | K75: 0 | L75: 0 | M75: 0 | N75: 0 | O75: 0 | P75: 0 | Q75: 0 | R75: 0 | S75: 0
A76: =Score!A76 -> 14 | B76: =Score!B76 -> 563040620-8 | C76: =Score!C76 -> นายอมรเทพ วงษ์สมศรี | D76: =Score!D76 -> EN-ME (พิเศษ ม.6) | E76: =Score!E76 -> 2.02 | F76: =Score!F76 -> 4 | G76: 0 | H76: 0 | I76: 0 | J76: 0 | K76: 0 | L76: 0 | M76: 0 | N76: 0 | O76: 0 | P76: 0 | Q76: 0 | R76: 0 | S76: 0
A77: =Score!A77 -> 0 | B77: =Score!B77 -> 0 | C77: =Score!C77 -> 0 | D77: =Score!D77 -> 0 | E77: =Score!E77 -> 0 | F77: =Score!F77 -> 0 | G77: 0 | H77: 0 | I77: 0 | J77: 0 | K77: 0 | L77: 0 | M77: 0 | N77: 0 | O77: 0 | P77: 0 | Q77: 0 | R77: 0 | S77: 0
A78: =Score!A78 -> 0 | B78: =Score!B78 -> 0 | C78: =Score!C78 -> 0 | D78: =Score!D78 -> 0 | E78: =Score!E78 -> 0 | F78: =Score!F78 -> 0 | G78: 0 | H78: 0 | I78: 0 | J78: 0 | K78: 0 | L78: 0 | M78: 0 | N78: 0 | O78: 0 | P78: 0 | Q78: 0 | R78: 0 | S78: 0
A79: =Score!A79 -> 0 | B79: =Score!B79 -> 0 | C79: =Score!C79 -> 0 | D79: =Score!D79 -> 0 | E79: =Score!E79 -> 0 | F79: =Score!F79 -> 0 | G79: 0 | H79: 0 | I79: 0 | J79: 0 | K79: 0 | L79: 0 | M79: 0 | N79: 0 | O79: 0 | P79: 0 | Q79: 0 | R79: 0 | S79: 0
A80: =Score!A80 -> 0 | B80: =Score!B80 -> 0 | C80: =Score!C80 -> 0 | D80: =Score!D80 -> 0 | E80: =Score!E80 -> 0 | F80: =Score!F80 -> 0 | G80: 0 | H80: 0 | I80: 0 | J80: 0 | K80: 0 | L80: 0 | M80: 0 | N80: 0 | O80: 0 | P80: 0 | Q80: 0 | R80: 0 | S80: 0
A81: =Score!A81 -> 0 | B81: =Score!B81 -> 0 | C81: =Score!C81 -> 0 | D81: =Score!D81 -> 0 | E81: =Score!E81 -> 0 | F81: =Score!F81 -> 0 | G81: 0 | H81: 0 | I81: 0 | J81: 0 | K81: 0 | L81: 0 | M81: 0 | N81: 0 | O81: 0 | P81: 0 | Q81: 0 | R81: 0 | S81: 0
A82: =Score!A82 -> 0 | B82: =Score!B82 -> 0 | C82: =Score!C82 -> 0 | D82: =Score!D82 -> 0 | E82: =Score!E82 -> 0 | F82: =Score!F82 -> 0 | G82: 0 | H82: 0 | I82: 0 | J82: 0 | K82: 0 | L82: 0 | M82: 0 | N82: 0 | O82: 0 | P82: 0 | Q82: 0 | R82: 0 | S82: 0
A83: =Score!A83 -> 0 | B83: =Score!B83 -> 0 | C83: =Score!C83 -> 0 | D83: =Score!D83 -> 0 | E83: =Score!E83 -> 0 | F83: =Score!F83 -> 0 | G83: 0 | H83: 0 | I83: 0 | J83: 0 | K83: 0 | L83: 0 | M83: 0 | N83: 0 | O83: 0 | P83: 0 | Q83: 0 | R83: 0 | S83: 0
A84: =Score!A84 -> 0 | B84: =Score!B84 -> 0 | C84: =Score!C84 -> 0 | D84: =Score!D84 -> 0 | E84: =Score!E84 -> 0 | F84: =Score!F84 -> 0 | G84: 0 | H84: 0 | I84: 0 | J84: 0 | K84: 0 | L84: 0 | M84: 0 | N84: 0 | O84: 0 | P84: =AD84/10 -> 0 | Q84: =AE84/100 -> 0 | R84: =AF84/10 -> 0 | S84: 0
A85: =Score!A85 -> 0 | B85: =Score!B85 -> 0 | C85: =Score!C85 -> 0 | D85: =Score!D85 -> 0 | E85: =Score!E85 -> 0 | F85: =Score!F85 -> 0 | G85: 0 | H85: 0 | I85: 0 | J85: 0 | K85: 0 | L85: 0 | M85: 0 | N85: 0 | O85: 0 | P85: 0 | Q85: 0 | R85: 0 | S85: 0
A86: =Score!A86 -> 0 | B86: =Score!B86 -> 0 | C86: =Score!C86 -> 0 | D86: =Score!D86 -> 0 | E86: =Score!E86 -> 0 | F86: =Score!F86 -> 0 | G86: 0 | H86: 0 | I86: 0 | J86: 0 | K86: 0 | L86: 0 | M86: 0 | N86: 0 | O86: 0 | P86: 0 | Q86: 0 | R86: 0 | S86: 0
A87: =Score!A87 -> 0 | B87: =Score!B87 -> 0 | C87: =Score!C87 -> 0 | D87: =Score!D87 -> 0 | E87: =Score!E87 -> 0 | F87: =Score!F87 -> 0 | G87: 0 | H87: 0 | I87: 0 | J87: 0 | K87: 0 | L87: 0 | M87: 0 | N87: 0 | O87: 0 | P87: 0 | Q87: 0 | R87: 0 | S87: 0
A88: =Score!A88 -> 0 | B88: =Score!B88 -> 0 | C88: =Score!C88 -> 0 | D88: =Score!D88 -> 0 | E88: =Score!E88 -> 0 | F88: =Score!F88 -> 0 | G88: 0 | H88: 0 | I88: 0 | J88: 0 | K88: 0 | L88: 0 | M88: 0 | N88: 0 | O88: 0 | P88: 0 | Q88: 0 | R88: 0 | S88: 0
A89: =Score!A89 -> 0 | B89: =Score!B89 -> 0 | C89: =Score!C89 -> 0 | D89: =Score!D89 -> 0 | E89: =Score!E89 -> 0 | F89: =Score!F89 -> 0 | G89: 0 | H89: 0 | I89: 0 | J89: 0 | K89: 0 | L89: 0 | M89: 0 | N89: 0 | O89: 0 | P89: 0 | Q89: 0 | R89: 0 | S89: 0
A90: =Score!A90 -> 0 | B90: =Score!B90 -> 0 | C90: =Score!C90 -> 0 | D90: =Score!D90 -> 0 | E90: =Score!E90 -> 0 | F90: =Score!F90 -> 0 | G90: 0 | H90: 0 | I90: 0 | J90: 0 | K90: 0 | L90: 0 | M90: 0 | N90: 0 | O90: 0 | P90: 0 | Q90: 0 | R90: 0 | S90: 0
A91: =Score!A91 -> 0 | B91: =Score!B91 -> 0 | C91: =Score!C91 -> 0 | D91: =Score!D91 -> 0 | E91: =Score!E91 -> 0 | F91: =Score!F91 -> 0 | G91: 0 | H91: 0 | I91: 0 | J91: 0 | K91: 0 | L91: 0 | M91: 0 | N91: 0 | O91: 0 | P91: 0 | Q91: 0 | R91: 0 | S91: 0
A92: =Score!A92 -> 0 | B92: =Score!B92 -> 0 | C92: =Score!C92 -> 0 | D92: =Score!D92 -> 0 | E92: =Score!E92 -> 0 | F92: =Score!F92 -> 0 | G92: 0 | H92: 0 | I92: 0 | J92: 0 | K92: 0 | L92: 0 | M92: 0 | N92: 0 | O92: 0 | P92: 0 | Q92: 0 | R92: 0 | S92: 0
A93: =Score!A93 -> 0 | B93: =Score!B93 -> 0 | C93: =Score!C93 -> 0 | D93: =Score!D93 -> 0 | E93: =Score!E93 -> 0 | F93: =Score!F93 -> 0 | G93: 0 | H93: 0 | I93: 0 | J93: 0 | K93: 0 | L93: 0 | M93: 0 | N93: 0 | O93: 0 | P93: 0 | Q93: 0 | R93: 0 | S93: 0
A94: =Score!A94 -> 0 | B94: =Score!B94 -> 0 | C94: =Score!C94 -> 0 | D94: =Score!D94 -> 0 | E94: =Score!E94 -> 0 | F94: =Score!F94 -> 0 | G94: 0 | H94: 0 | I94: 0 | J94: 0 | K94: 0 | L94: 0 | M94: 0 | N94: 0 | O94: 0 | P94: 0 | Q94: 0 | R94: 0 | S94: 0
A95: =Score!A95 -> 0 | B95: =Score!B95 -> 0 | C95: =Score!C95 -> 0 | D95: =Score!D95 -> 0 | E95: =Score!E95 -> 0 | F95: =Score!F95 -> 0 | G95: 0 | H95: 0 | I95: 0 | J95: 0 | K95: 0 | L95: 0 | M95: 0 | N95: 0 | O95: 0 | P95: 0 | Q95: 0 | R95: 0 | S95: 0
A96: =Score!A96 -> 0 | B96: =Score!B96 -> 0 | C96: =Score!C96 -> 0 | D96: =Score!D96 -> 0 | E96: =Score!E96 -> 0 | F96: =Score!F96 -> 0 | G96: 0 | H96: 0 | I96: 0 | J96: 0 | K96: 0 | L96: 0 | M96: 0 | N96: 0 | O96: 0 | P96: 0 | Q96: 0 | R96: 0 | S96: 0
A97: =Score!A97 -> 0 | B97: =Score!B97 -> 0 | C97: =Score!C97 -> 0 | D97: =Score!D97 -> 0 | E97: =Score!E97 -> 0 | F97: =Score!F97 -> 0 | G97: 0 | H97: 0 | I97: 0 | J97: 0 | K97: 0 | L97: 0 | M97: 0 | N97: 0 | O97: 0 | P97: 0 | Q97: 0 | R97: 0 | S97: 0
A98: =Score!A98 -> 0 | B98: =Score!B98 -> 0 | C98: =Score!C98 -> 0 | D98: =Score!D98 -> 0 | E98: =Score!E98 -> 0 | F98: =Score!F98 -> 0 | G98: 0 | H98: 0 | I98: 0 | J98: 0 | K98: 0 | L98: 0 | M98: 0 | N98: 0 | O98: 0 | P98: 0 | Q98: 0 | R98: 0 | S98: 0
A99: =Score!A99 -> 0 | B99: =Score!B99 -> 0 | C99: =Score!C99 -> 0 | D99: =Score!D99 -> 0 | E99: =Score!E99 -> 0 | F99: =Score!F99 -> 0 | G99: 0 | H99: 0 | I99: 0 | J99: 0 | K99: 0 | L99: 0 | M99: 0 | N99: 0 | O99: 0 | P99: 0 | Q99: 0 | R99: 0 | S99: 0
A100: =Score!A100 -> 0 | B100: =Score!B100 -> 0 | C100: =Score!C100 -> 0 | D100: =Score!D100 -> 0 | E100: =Score!E100 -> 0 | F100: =Score!F100 -> 0 | G100: 0 | H100: 0 | I100: 0 | J100: 0 | K100: 0 | L100: 0 | M100: 0 | N100: 0 | O100: 0 | P100: 0 | Q100: 0 | R100: 0 | S100: 0
A101: =Score!A101 -> 0 | B101: =Score!B101 -> 0 | C101: =Score!C101 -> 0 | D101: =Score!D101 -> 0 | E101: =Score!E101 -> 0 | F101: =Score!F101 -> 0 | G101: 0 | H101: 0 | I101: 0 | J101: 0 | K101: 0 | L101: 0 | M101: 0 | N101: 0 | O101: 0 | P101: 0 | Q101: 0 | R101: 0 | S101: 0
A102: =Score!A102 -> 0 | B102: =Score!B102 -> 0 | C102: =Score!C102 -> 0 | D102: =Score!D102 -> 0 | E102: =Score!E102 -> 0 | F102: =Score!F102 -> 0 | G102: 0 | H102: 0 | I102: 0 | J102: 0 | K102: 0 | L102: 0 | M102: 0 | N102: 0 | O102: 0 | P102: 0 | Q102: 0 | R102: 0 | S102: 0
A103: =Score!A103 -> 0 | B103: =Score!B103 -> 0 | C103: =Score!C103 -> 0 | D103: =Score!D103 -> 0 | E103: =Score!E103 -> 0 | F103: =Score!F103 -> 0 | G103: 0 | H103: 0 | I103: 0 | J103: 0 | K103: 0 | L103: 0 | M103: 0 | N103: 0 | O103: 0 | P103: 0 | Q103: 0 | R103: 0 | S103: 0
A104: =Score!A104 -> 0 | B104: =Score!B104 -> 0 | C104: =Score!C104 -> 0 | D104: =Score!D104 -> 0 | E104: =Score!E104 -> 0 | F104: =Score!F104 -> 0 | G104: 0 | H104: 0 | I104: 0 | J104: 0 | K104: 0 | L104: 0 | M104: 0 | N104: 0 | O104: 0 | P104: 0 | Q104: 0 | R104: 0 | S104: 0
A105: =Score!A105 -> 0 | B105: =Score!B105 -> 0 | C105: =Score!C105 -> 0 | D105: =Score!D105 -> 0 | E105: =Score!E105 -> 0 | F105: =Score!F105 -> 0 | G105: 0 | H105: 0 | I105: 0 | J105: 0 | K105: 0 | L105: 0 | M105: 0 | N105: 0 | O105: 0 | P105: 0 | Q105: 0 | R105: 0 | S105: 0
A106: =Score!A106 -> 0 | B106: =Score!B106 -> 0 | C106: =Score!C106 -> 0 | D106: =Score!D106 -> 0 | E106: =Score!E106 -> 0 | F106: =Score!F106 -> 0 | G106: 0 | H106: 0 | I106: 0 | J106: 0 | K106: 0 | L106: 0 | M106: 0 | N106: 0 | O106: 0 | P106: 0 | Q106: 0 | R106: 0 | S106: 0
A107: =Score!A107 -> 0 | B107: =Score!B107 -> 0 | C107: =Score!C107 -> 0 | D107: =Score!D107 -> 0 | E107: =Score!E107 -> 0 | F107: =Score!F107 -> 0 | G107: 0 | H107: 0 | I107: 0 | J107: 0 | K107: 0 | L107: 0 | M107: 0 | N107: 0 | O107: 0 | P107: 0 | Q107: 0 | R107: 0 | S107: 0
A108: =Score!A108 -> 0 | B108: =Score!B108 -> 0 | C108: =Score!C108 -> 0 | D108: =Score!D108 -> 0 | E108: =Score!E108 -> 0 | F108: =Score!F108 -> 0 | G108: 0 | H108: 0 | I108: 0 | J108: 0 | K108: 0 | L108: 0 | M108: 0 | N108: 0 | O108: 0 | P108: 0 | Q108: 0 | R108: 0 | S108: 0
A109: =Score!A109 -> 0 | B109: =Score!B109 -> 0 | C109: =Score!C109 -> 0 | D109: =Score!D109 -> 0 | E109: =Score!E109 -> 0 | F109: =Score!F109 -> 0 | G109: 0 | H109: 0 | I109: 0 | J109: 0 | K109: 0 | L109: 0 | M109: 0 | N109: 0 | O109: 0 | P109: 0 | Q109: 0 | R109: 0 | S109: 0
A110: =Score!A110 -> 0 | B110: =Score!B110 -> 0 | C110: =Score!C110 -> 0 | D110: =Score!D110 -> 0 | E110: =Score!E110 -> 0 | F110: =Score!F110 -> 0 | G110: =U110/20 -> 0 | H110: =V110/10 -> 0 | I110: =W110/100 -> 0 | J110: =X110/10 -> 0 | K110: =Y110/100 -> 0 | L110: =Z110/100 -> 0 | M110: =AA110/100 -> 0 | N110: 0 | O110: 0 | P110: 0 | Q110: 0 | R110: 0 | S110: =SUM(G110:R110)/1.2 -> 0

Sheet HomeworkAll
B1: รายวิชา | C1: 195231 : THERMODYNAMICS I | F1: Section 1 | T1: Accumulated | V1: Full | W1: Score | X1: Full | Y1: Score | Z1: Full | AA1: Score | AB1: full | AC1: score | AD1: Full | AE1: Score | AF1: full | AG1: score | AH1: Full | AI1: Score | AJ1: full | AK1: score | AL1: full | AM1: score | AN1: full | AO1: score | AP1: full | AQ1: score | AR1: full | AS1: score
B2: ปีการศึกษา | C2: 2556 ภาคการศึกษาที่ 1 | F2: รศ.ดร.สมหมาย ปรีเปรม | G2: 1 | H2: 1 | I2: 1 | J2: 1 | K2: 1 | L2: 1 | M2: 1 | N2: 1 | O2: 1 | P2: 1 | Q2: 1 | R2: 1 | S2: =SUM(G2:R2)/1.2 -> 10 | T2: Full score | V2: 40 | W2: 1 | X2: 50 | Y2: 1 | Z2: 30 | AA2: 1 | AB2: 60 | AC2: 1 | AD2: 60 | AE2: 1 | AF2: 30 | AG2: 1 | AH2: 110 | AI2: 1 | AJ2: 40 | AK2: 1 | AL2: 72 | AM2: 1 | AN2: 30 | AO2: 1 | AP2: 45 | AQ2: 1 | AR2: 20 | AS2: 1
A3: ลำดับ | B3: รหัส | C3: ชื่อ | D3: หลักสูตร | E3: GPA | F3: Section 1 | G3: HW1*** | H3: HW2 | I3: HW3 | J3: HW4 | K3: HW5 | L3: HW6 | M3: HW7 | N3: HW8 | O3: HW9 | P3: HW10 | Q3: HW11 | R3: HW12 | S3: Sum | V3: HW1*** | X3: HW2 | Z3: HW3 | AB3: HW4 | AD3: HW5 | AF3: HW6 | AH3: HW7 | AJ3: HW8 | AL3: HW9 | AN3: HW10 | AP3: HW11 | AR3: HW12
A4: =+Score!A4 -> 1 | B4: =+Score!B4 -> 543040669-6 | C4: =+Score!C4 -> นายเกียรติขจร ทัดทาอามาตย์ | D4: =+Score!D4 -> EN-AE | E4: =+Score!E4 -> 2 | F4: =+Score!F4 -> 1 | G4: =W4 -> 0.725 | H4: =Y4 -> 1 | I4: =AA4 -> 0.9 | J4: =AC4 -> 0.8666666667 | K4: =AE4 -> 0.9166666667 | L4: =AG4 -> 0.9666666667 | M4: =AI4 -> 1 | N4: =AK4 -> 1 | O4: =AM4 -> 1 | P4: =AO4 -> 1 | Q4: =AQ4 -> 1 | R4: =AS4 -> 1 | S4: =SUM(G4:R4)/1.2 -> 9.479166667 | V4: 29 | W4: =V4/40 -> 0.725 | X4: 50 | Y4: =X4/50 -> 1 | Z4: 27 | AA4: =Z4/30 -> 0.9 | AB4: 52 | AC4: =AB4/60 -> 0.8666666667 | AD4: 55 | AE4: =AD4/60 -> 0.9166666667 | AF4: 29 | AG4: =AF4/30 -> 0.9666666667 | AH4: 110 | AI4: =AH4/110 -> 1 | AJ4: 40 | AK4: =AJ4/40 -> 1 | AL4: 72 | AM4: =AL4/72 -> 1 | AN4: 30 | AO4: =AN4/30 -> 1 | AP4: 45 | AQ4: =AP4/45 -> 1 | AR4: 20 | AS4: =AR4/20 -> 1
A5: =+Score!A5 -> 2 | B5: =+Score!B5 -> 553040404-3 | C5: =+Score!C5 -> นายวนัสมัญ กฤษณะสุวรรณ | D5: =+Score!D5 -> EN-IE | E5: =+Score!E5 -> 1.89 | F5: =+Score!F5 -> 1 | G5: =W5 -> 0.75 | H5: =Y5 -> 1 | I5: =AA5 -> 0.9666666667 | J5: =AC5 -> 0.8333333333 | K5: =AE5 -> 0.9333333333 | L5: =AG5 -> 0.9666666667 | M5: =AI5 -> 1 | N5: =AK5 -> 1 | O5: =AM5 -> 0.9722222222 | P5: =AO5 -> 1 | Q5: =AQ5 -> 1 | R5: =AS5 -> 1 | S5: =SUM(G5:R5)/1.2 -> 9.518518519 | V5: 30 | W5: =V5/40 -> 0.75 | X5: 50 | Y5: =X5/50 -> 1 | Z5: 29 | AA5: =Z5/30 -> 0.9666666667 | AB5: 50 | AC5: =AB5/60 -> 0.8333333333 | AD5: 56 | AE5: =AD5/60 -> 0.9333333333 | AF5: 29 | AG5: =AF5/30 -> 0.9666666667 | AH5: 110 | AI5: =AH5/110 -> 1 | AJ5: 40 | AK5: =AJ5/40 -> 1 | AL5: 70 | AM5: =AL5/72 -> 0.9722222222 | AN5: 30 | AO5: =AN5/30 -> 1 | AP5: 45 | AQ5: =AP5/45 -> 1 | AR5: 20 | AS5: =AR5/20 -> 1
A6: =+Score!A6 -> 3 | B6: =+Score!B6 -> 563040002-4 | C6: =+Score!C6 -> นายกรวิชญ์ ศรีวัฒนาปิติกุล | D6: =+Score!D6 -> EN-ME | E6: =+Score!E6 -> 3.14 | F6: =+Score!F6 -> 1 | G6: =W6 -> 0.775 | H6: =Y6 -> 0.9 | I6: =AA6 -> 0.9666666667 | J6: 0.9666666667 | K6: 0.9666666667 | L6: 0.9666666667 | M6: 0.8636363636 | N6: 1 | O6: 0.9166666667 | P6: 1 | Q6: 0.9555555556 | R6: 0.9 | S6: 9.314604377 | V6: 31 | W6: 0.775 | X6: 45 | Y6: 0.9 | Z6: 29 | AA6: 0.9666666667 | AB6: 58 | AC6: 0.9666666667 | AD6: 58 | AE6: 0.9666666667 | AF6: 29 | AG6: 0.9666666667 | AH6: 95 | AI6: 0.8636363636 | AJ6: 40 | AK6: 1 | AL6: 66 | AM6: 0.9166666667 | AN6: 30 | AO6: 1 | AP6: 43 | AQ6: 0.9555555556 | AR6: 18 | AS6: 0.9
A7: =+Score!A7 -> 4 | B7: =+Score!B7 -> 563040003-2 | C7: =+Score!C7 -> นายกฤช ถาไชยลา | D7: =+Score!D7 -> EN-ME | E7: =+Score!E7 -> 2.84 | F7: =+Score!F7 -> 1 | G7: =W7 -> 1 | H7: 0.94 | I7: 0.9666666667 | J7: 0.8833333333 | K7: 1 | L7: 1 | M7: 1 | N7: 1 | O7: 1 | P7: 1 | Q7: 1 | R7: 1 | S7: 9.825 | V7: 40 | W7: 1 | X7: 47 | Y7: 0.94 | Z7: 29 | AA7: 0.9666666667 | AB7: 53 | AC7: 0.8833333333 | AD7: 60 | AE7: 1 | AF7: 30 | AG7: 1 | AH7: 110 | AI7: 1 | AJ7: 40 | AK7: 1 | AL7: 72 | AM7: 1 | AN7: 30 | AO7: 1 | AP7: 45 | AQ7: 1 | AR7: 20 | AS7: 1
A8: =+Score!A8 -> 5 | B8: =+Score!B8 -> 563040022-8 | C8: =+Score!C8 -> นายณัฐพล สิทธิอมรพร | D8: =+Score!D8 -> EN-ME | E8: =+Score!E8 -> 3.41 | F8: =+Score!F8 -> 1 | G8: 0.9 | H8: 1 | I8: 0.8666666667 | J8: 0.95 | K8: 1 | L8: 0 | M8: 1 | N8: 1 | O8: 1 | P8: 1 | Q8: 1 | R8: 1 | S8: 8.930555556 | V8: 36 | W8: 0.9 | X8: 50 | Y8: 1 | Z8: 26 | AA8: 0.8666666667 | AB8: 57 | AC8: 0.95 | AD8: 60 | AE8: 1 | AF8: 0 | AG8: 0 | AH8: 110 | AI8: 1 | AJ8: 40 | AK8: 1 | AL8: 72 | AM8: 1 | AN8: 30 | AO8: 1 | AP8: 45 | AQ8: 1 | AR8: 20 | AS8: 1
A9: =+Score!A9 -> 6 | B9: =+Score!B9 -> 563040025-2 | C9: =+Score!C9 -> นายทรงพล เกียรติพนมแพ | D9: =+Score!D9 -> EN-IE | E9: =+Score!E9 -> 3.04 | F9: =+Score!F9 -> 1 | G9: 0.8 | H9: 1 | I9: 0.8666666667 | J9: 0.85 | K9: 1 | L9: 1 | M9: 0.9363636364 | N9: 0.95 | O9: 1 | P9: 0 | Q9: 1 | R9: 0 | S9: 7.835858586 | V9: 32 | W9: 0.8 | X9: 50 | Y9: 1 | Z9: 26 | AA9: 0.8666666667 | AB9: 51 | AC9: 0.85 | AD9: 60 | AE9: 1 | AF9: 30 | AG9: 1 | AH9: 103 | AI9: 0.9363636364 | AJ9: 38 | AK9: 0.95 | AL9: 72 | AM9: 1 | AN9: 0 | AO9: 0 | AP9: 45 | AQ9: 1 | AR9: 0 | AS9: 0
A10: =+Score!A10 -> 7 | B10: =+Score!B10 -> 563040032-5 | C10: =+Score!C10 -> นางสาวธนัชชา ใหญ่สูงเนิน | D10: =+Score!D10 -> EN-IE | E10: =+Score!E10 -> 2.76 | F10: =+Score!F10 -> 1 | G10: 0.575 | H10: 0 | I10: 0.9333333333 | J10: 0.7166666667 | K10: 1 | L10: 0.9666666667 | M10: 0.9363636364 | N10: 0.95 | O10: 0 | P10: 0 | Q10: 0 | R10: 1 | S10: 5.898358586 | V10: 23 | W10: 0.575 | X10: 0 | Y10: 0 | Z10: 28 | AA10: 0.9333333333 | AB10: 43 | AC10: 0.7166666667 | AD10: 60 | AE10: 1 | AF10: 29 | AG10: 0.9666666667 | AH10: 103 | AI10: 0.9363636364 | AJ10: 38 | AK10: 0.95 | AL10: 0 | AM10: 0 | AN10: 0 | AO10: 0 | AP10: 0 | AQ10: 0 | AR10: 20 | AS10: 1
A11: =+Score!A11 -> 8 | B11: =+Score!B11 -> 563040043-0 | C11: =+Score!C11 -> นางสาวนันทิชา จริยาโสวรรณ | D11: =+Score!D11 -> EN-IE | E11: =+Score!E11 -> 2.04 | F11: =+Score!F11 -> 1 | G11: 0.75 | H11: 1 | I11: 0.7666666667 | J11: 1 | K11: 0.7666666667 | L11: 1 | M11: 1 | N11: 1 | O11: 1 | P11: 1 | Q11: 0 | R11: 1 | S11: 8.569444444 | V11: 30 | W11: 0.75 | X11: 50 | Y11: 1 | Z11: 23 | AA11: 0.7666666667 | AB11: 60 | AC11: 1 | AD11: 46 | AE11: 0.7666666667 | AF11: 30 | AG11: 1 | AH11: 110 | AI11: 1 | AJ11: 40 | AK11: 1 | AL11: 72 | AM11: 1 | AN11: 30 | AO11: 1 | AP11: 0 | AQ11: 0 | AR11: 20 | AS11: 1
A12: =+Score!A12 -> 9 | B12: =+Score!B12 -> 563040044-8 | C12: =+Score!C12 -> นางสาวนิภาพร อายุวัฒน์ | D12: =+Score!D12 -> EN-ME | E12: =+Score!E12 -> 2.92 | F12: =+Score!F12 -> 1 | G12: 0.85 | H12: 1 | I12: 1 | J12: 0.9166666667 | K12: 0.8333333333 | L12: 1 | M12: 1 | N12: 0 | O12: 1 | P12: 1 | Q12: 0.8888888889 | R12: 0 | S12: 7.907407407 | V12: 34 | W12: 0.85 | X12: 50 | Y12: 1 | Z12: 30 | AA12: 1 | AB12: 55 | AC12: 0.9166666667 | AD12: 50 | AE12: 0.8333333333 | AF12: 30 | AG12: 1 | AH12: 110 | AI12: 1 | AJ12: 0 | AK12: 0 | AL12: 72 | AM12: 1 | AN12: 30 | AO12: 1 | AP12: 40 | AQ12: 0.8888888889 | AR12: 0 | AS12: 0
A13: =+Score!A13 -> 10 | B13: =+Score!B13 -> 563040051-1 | C13: =+Score!C13 -> นายพงศ์ทัช พรวิกุลรัตนา | D13: =+Score!D13 -> EN-ME | E13: =+Score!E13 -> 2.63 | F13: =+Score!F13 -> 1 | G13: 0 | H13: 0 | I13: 0 | J13: 0 | K13: 0.9 | L13: 0 | M13: 0 | N13: 0 | O13: 0 | P13: 0 | Q13: 0 | R13: 1 | S13: 1.583333333 | V13: 0 | W13: 0 | X13: 0 | Y13: 0 | Z13: 0 | AA13: 0 | AB13: 0 | AC13: 0 | AD13: 54 | AE13: 0.9 | AF13: 0 | AG13: 0 | AH13: 0 | AI13: 0 | AJ13: 0 | AK13: 0 | AL13: 0 | AM13: 0 | AN13: 0 | AO13: 0 | AP13: 0 | AQ13: 0 | AR13: 20 | AS13: 1
A14: =+Score!A14 -> 11 | B14: =+Score!B14 -> 563040059-5 | C14: =+Score!C14 -> นายพสธร นามสร | D14: =+Score!D14 -> EN-ME | E14: =+Score!E14 -> 3.09 | F14: =+Score!F14 -> 1 | G14: 1 | H14: 1 | I14: 1 | J14: 0.9666666667 | K14: 1 | L14: 1 | M14: 1 | N14: 1 | O14: 1 | P14: 1 | Q14: 1 | R14: 1 | S14: 9.972222222 | V14: 40 | W14: 1 | X14: 50 | Y14: 1 | Z14: 30 | AA14: 1 | AB14: 58 | AC14: 0.9666666667 | AD14: 60 | AE14: 1 | AF14: 30 | AG14: 1 | AH14: 110 | AI14: 1 | AJ14: 40 | AK14: 1 | AL14: 72 | AM14: 1 | AN14: 30 | AO14: 1 | AP14: 45 | AQ14: 1 | AR14: 20 | AS14: 1
A15: =+Score!A15 -> 12 | B15: =+Score!B15 -> 563040064-2 | C15: =+Score!C15 -> นางสาวภัทรามาศ ฉวีชัย | D15: =+Score!D15 -> EN-IE | E15: =+Score!E15 -> 3.12 | F15: =+Score!F15 -> 1 | G15: 1 | H15: 1 | I15: 1 | J15: 0.9666666667 | K15: 0.9666666667 | L15: 1 | M15: 1 | N15: 1 | O15: 1 | P15: 1 | Q15: 1 | R15: 1 | S15: 9.944444444 | V15: 40 | W15: 1 | X15: 50 | Y15: 1 | Z15: 30 | AA15: 1 | AB15: 58 | AC15: 0.9666666667 | AD15: 58 | AE15: 0.9666666667 | AF15: 30 | AG15: 1 | AH15: 110 | AI15: 1 | AJ15: 40 | AK15: 1 | AL15: 72 | AM15: 1 | AN15: 30 | AO15: 1 | AP15: 45 | AQ15: 1 | AR15: 20 | AS15: 1
A16: =+Score!A16 -> 13 | B16: =+Score!B16 -> 563040065-0 | C16: =+Score!C16 -> นายภาคิน จำปาศักดิ์ | D16: =+Score!D16 -> EN-ME | E16: =+Score!E16 -> 3.51 | F16: =+Score!F16 -> 1 | G16: 1 | H16: 1 | I16: 0.8333333333 | J16: 0 | K16: 0.9 | L16: 1 | M16: 0 | N16: 0 | O16: 0.9305555556 | P16: 0 | Q16: 1 | R16: 1 | S16: 6.386574074 | V16: 40 | W16: 1 | X16: 50 | Y16: 1 | Z16: 25 | AA16: 0.8333333333 | AB16: 0 | AC16: 0 | AD16: 54 | AE16: 0.9 | AF16: 30 | AG16: 1 | AH16: 0 | AI16: 0 | AJ16: 0 | AK16: 0 | AL16: 67 | AM16: 0.9305555556 | AN16: 0 | AO16: 0 | AP16: 45 | AQ16: 1 | AR16: 20 | AS16: 1
A17: =+Score!A17 -> 14 | B17: =+Score!B17 -> 563040070-7 | C17: =+Score!C17 -> นายมหคพันธุ์ เอมกลาง | D17: =+Score!D17 -> EN-ME | E17: =+Score!E17 -> 2.71 | F17: =+Score!F17 -> 1 | G17: 0.675 | H17: 1 | I17: 0.9666666667 | J17: 0.8333333333 | K17: 1 | L17: 1 | M17: 1 | N17: 1 | O17: 1 | P17: 1 | Q17: 0.8888888889 | R17: 1 | S17: 9.469907407 | V17: 27 | W17: 0.675 | X17: 50 | Y17: 1 | Z17: 29 | AA17: 0.9666666667 | AB17: 50 | AC17: 0.8333333333 | AD17: 60 | AE17: 1 | AF17: 30 | AG17: 1 | AH17: 110 | AI17: 1 | AJ17: 40 | AK17: 1 | AL17: 72 | AM17: 1 | AN17: 30 | AO17: 1 | AP17: 40 | AQ17: 0.8888888889 | AR17: 20 | AS17: 1
A18: =+Score!A18 -> 15 | B18: =+Score!B18 -> 563040071-5 | C18: =+Score!C18 -> นายมานะ ติรโรจน์ | D18: =+Score!D18 -> EN-ME | E18: =+Score!E18 -> 3.46 | F18: =+Score!F18 -> 1 | G18: 1 | H18: 0.92 | I18: 1 | J18: 0.9666666667 | K18: 1 | L18: 1 | M18: 1 | N18: 1 | O18: 1 | P18: 1 | Q18: 1 | R18: 1 | S18: 9.905555556 | V18: 40 | W18: 1 | X18: 46 | Y18: 0.92 | Z18: 30 | AA18: 1 | AB18: 58 | AC18: 0.9666666667 | AD18: 60 | AE18: 1 | AF18: 30 | AG18: 1 | AH18: 110 | AI18: 1 | AJ18: 40 | AK18: 1 | AL18: 72 | AM18: 1 | AN18: 30 | AO18: 1 | AP18: 45 | AQ18: 1 | AR18: 20 | AS18: 1
A19: =+Score!A19 -> 16 | B19: =+Score!B19 -> 563040076-5 | C19: =+Score!C19 -> นายรัฐศาสตร์ พลยงค์ | D19: =+Score!D19 -> EN-ME | E19: =+Score!E19 -> 2.88 | F19: =+Score!F19 -> 1 | G19: 0 | H19: 0 | I19: 0 | J19: 0 | K19: 0 | L19: 0 | M19: 0 | N19: 0 | O19: 0 | P19: 0 | Q19: 0 | R19: 0 | S19: 0
A20: =+Score!A20 -> 17 | B20: =+Score!B20 -> 563040089-6 | C20: =+Score!C20 -> นายศวัสชัย วิวรรธนจิตต์ | D20: =+Score!D20 -> EN-IE | E20: =+Score!E20 -> 2.79 | F20: =+Score!F20 -> 1 | G20: 0 | H20: 0 | I20: 0 | J20: 0 | K20: 0 | L20: 0 | M20: 0 | N20: 0 | O20: 0 | P20: 0 | Q20: 0 | R20: 0 | S20: 0
A21: =+Score!A21 -> 18 | B21: =+Score!B21 -> 563040098-5 | C21: =+Score!C21 -> นายสิทธิโชค ชูพงศ์พันธุ์ | D21: =+Score!D21 -> EN-ME | E21: =+Score!E21 -> 2.94 | F21: =+Score!F21 -> 1 | G21: 0 | H21: 0 | I21: 0 | J21: 0 | K21: 0 | L21: 0 | M21: 0 | N21: 0 | O21: 0 | P21: 0 | Q21: 0 | R21: 0 | S21: 0
A22: =+Score!A22 -> 19 | B22: =+Score!B22 -> 563040114-3 | C22: =+Score!C22 -> นายคฑาวุธ ศรีโสดาพล | D22: =+Score!D22 -> EN-AE | E22: =+Score!E22 -> 1.51 | F22: =+Score!F22 -> 1 | G22: 0 | H22: 0 | I22: 0 | J22: 0 | K22: 0 | L22: 0 | M22: 0 | N22: 0 | O22: 0 | P22: 0 | Q22: 0 | R22: 0 | S22: 0
A23: =+Score!A23 -> 20 | B23: =+Score!B23 -> 563040115-1 | C23: =+Score!C23 -> นายจุลดิศ ทองตัน | D23: =+Score!D23 -> EN-AE | E23: =+Score!E23 -> 1.82 | F23: =+Score!F23 -> 1 | G23: 0 | H23: 0 | I23: 0 | J23: 0 | K23: 0 | L23: 0 | M23: 0 | N23: 0 | O23: 0 | P23: 0 | Q23: 0 | R23: 0 | S23: 0
A24: =+Score!A24 -> 21 | B24: =+Score!B24 -> 563040116-9 | C24: =+Score!C24 -> นายโชคชัย ซุยอุ้ย | D24: =+Score!D24 -> EN-AE | E24: =+Score!E24 -> 3.03 | F24: =+Score!F24 -> 1 | G24: 0 | H24: 0 | I24: 0 | J24: 0 | K24: 0 | L24: 0 | M24: 0 | N24: 0 | O24: 0 | P24: 0 | Q24: 0 | R24: 0 | S24: 0
A25: =+Score!A25 -> 22 | B25: =+Score!B25 -> 563040121-6 | C25: =+Score!C25 -> นายธนพล หลาบศิริ | D25: =+Score!D25 -> EN-AE | E25: =+Score!E25 -> 2.77 | F25: =+Score!F25 -> 1 | G25: 0 | H25: 0 | I25: 0 | J25: 0 | K25: 0 | L25: 0 | M25: 0 | N25: 0 | O25: 0 | P25: 0 | Q25: 0 | R25: 0 | S25: 0
A26: =+Score!A26 -> 23 | B26: =+Score!B26 -> 563040123-2 | C26: =+Score!C26 -> นายธนวร สันธนะสุรางค์ | D26: =+Score!D26 -> EN-AE | E26: =+Score!E26 -> 2.35 | F26: =+Score!F26 -> 1 | G26: 0 | H26: 0 | I26: 0 | J26: 0 | K26: 0 | L26: 0 | M26: 0 | N26: 0 | O26: 0 | P26: 0 | Q26: 0 | R26: 0 | S26: 0
A27: =+Score!A27 -> 24 | B27: =+Score!B27 -> 563040129-0 | C27: =+Score!C27 -> นายพีรเมธ จุฑานันท์ | D27: =+Score!D27 -> EN-AE | E27: =+Score!E27 -> 1.89 | F27: =+Score!F27 -> 1 | G27: 0 | H27: 0 | I27: 0 | J27: 0 | K27: 0 | L27: 0 | M27: 0 | N27: 0 | O27: 0 | P27: 0 | Q27: 0 | R27: 0 | S27: 0
A28: =+Score!A28 -> 25 | B28: =+Score!B28 -> 563040130-5 | C28: =+Score!C28 -> นายพีส คูณดี | D28: =+Score!D28 -> EN-AE | E28: =+Score!E28 -> 2.29 | F28: =+Score!F28 -> 1 | G28: 0 | H28: 0 | I28: 0 | J28: 0 | K28: 0 | L28: 0 | M28: 0 | N28: 0 | O28: 0 | P28: 0 | Q28: 0 | R28: 0 | S28: 0
A29: =+Score!A29 -> 26 | B29: =+Score!B29 -> 563040137-1 | C29: =+Score!C29 -> นายศุภณัฐ ลัภกิตโร | D29: =+Score!D29 -> EN-AE | E29: =+Score!E29 -> 2.58 | F29: =+Score!F29 -> 1 | G29: 0 | H29: 0 | I29: 0 | J29: 0 | K29: 0 | L29: 0 | M29: 0 | N29: 0 | O29: 0 | P29: 0 | Q29: 0 | R29: 0 | S29: 0
A30: =+Score!A30 -> 27 | B30: =+Score!B30 -> 563040139-7 | C30: =+Score!C30 -> นายสุธรรม ดิษาภิรมย์ | D30: =+Score!D30 -> EN-AE | E30: =+Score!E30 -> 1.78 | F30: =+Score!F30 -> 1 | G30: 0 | H30: 0 | I30: 0 | J30: 0 | K30: 0 | L30: 0 | M30: 0 | N30: 0 | O30: 0 | P30: 0 | Q30: 0 | R30: 0 | S30: 0
A31: =+Score!A31 -> 28 | B31: =+Score!B31 -> 563040231-9 | C31: =+Score!C31 -> นายอธิการ สุริโย | D31: =+Score!D31 -> EN-IE | E31: =+Score!E31 -> 1.71 | F31: =+Score!F31 -> 1 | G31: 0 | H31: 0 | I31: 0 | J31: 0 | K31: 0 | L31: 0 | M31: 0 | N31: 0 | O31: 0 | P31: 0 | Q31: 0 | R31: 0 | S31: 0
A32: =+Score!A32 -> 29 | B32: =+Score!B32 -> 563040260-2 | C32: =+Score!C32 -> นางสาวณัฐณิชา ศิริเหล่าไพศาล | D32: =+Score!D32 -> EN-IE | E32: =+Score!E32 -> 3.17 | F32: =+Score!F32 -> 1 | G32: 0 | H32: 0 | I32: 0 | J32: 0 | K32: 0 | L32: 0 | M32: 0 | N32: 0 | O32: 0 | P32: 0 | Q32: 0 | R32: 0 | S32: 0
A33: =+Score!A33 -> 30 | B33: =+Score!B33 -> 563040269-4 | C33: =+Score!C33 -> นายกนกพล แก้วเฮียง | D33: =+Score!D33 -> EN-ME | E33: =+Score!E33 -> 3.06 | F33: =+Score!F33 -> 1 | G33: 0 | H33: 0 | I33: 0 | J33: 0 | K33: 0 | L33: 0 | M33: 0 | N33: 0 | O33: 0 | P33: 0 | Q33: 0 | R33: 0 | S33: 0
A34: =+Score!A34 -> 31 | B34: =+Score!B34 -> 563040272-5 | C34: =+Score!C34 -> นายกีรติ มังษา | D34: =+Score!D34 -> EN-ME | E34: =+Score!E34 -> 2.87 | F34: =+Score!F34 -> 1 | G34: 0 | H34: 0 | I34: 0 | J34: 0 | K34: 0 | L34: 0 | M34: 0 | N34: 0 | O34: 0 | P34: 0 | Q34: 0 | R34: 0 | S34: 0
A35: =+Score!A35 -> 32 | B35: =+Score!B35 -> 563040275-9 | C35: =+Score!C35 -> นางสาวคุณัญญา ทวีสอน | D35: =+Score!D35 -> EN-ME | E35: =+Score!E35 -> 2.69 | F35: =+Score!F35 -> 1 | G35: 0 | H35: 0 | I35: 0 | J35: 0 | K35: 0 | L35: 0 | M35: 0 | N35: 0 | O35: 0 | P35: 0 | Q35: 0 | R35: 0 | S35: 0
A36: =+Score!A36 -> 33 | B36: =+Score!B36 -> 563040289-8 | C36: =+Score!C36 -> นางสาวโชติณัฐ จงใจหาญ | D36: =+Score!D36 -> EN-IE | E36: =+Score!E36 -> 3 | F36: =+Score!F36 -> 1 | G36: 0 | H36: 0 | I36: 0 | J36: 0 | K36: 0 | L36: 0 | M36: 0 | N36: 0 | O36: 0 | P36: 0 | Q36: 0 | R36: 0 | S36: 0
A37: =+Score!A37 -> 34 | B37: =+Score!B37 -> 563040292-9 | C37: =+Score!C37 -> นางสาวฐิติพร ฐานหมั่น | D37: =+Score!D37 -> EN-IE | E37: =+Score!E37 -> 2.12 | F37: =+Score!F37 -> 1 | G37: 0 | H37: 0 | I37: 0 | J37: 0 | K37: 0 | L37: 0 | M37: 0 | N37: 0 | O37: 0 | P37: 0 | Q37: 0 | R37: 0 | S37: 0
A38: =+Score!A38 -> 35 | B38: =+Score!B38 -> 563040296-1 | C38: =+Score!C38 -> นางสาวณัฐชยา ทัศนจินดา | D38: =+Score!D38 -> EN-IE | E38: =+Score!E38 -> 2.75 | F38: =+Score!F38 -> 1 | G38: 0 | H38: 0 | I38: 0 | J38: 0 | K38: 0 | L38: 0 | M38: 0 | N38: 0 | O38: 0 | P38: 0 | Q38: 0 | R38: 0 | S38: 0
A39: =+Score!A39 -> 36 | B39: =+Score!B39 -> 563040304-8 | C39: =+Score!C39 -> นายธนพนธ์ ตั้งวัฒนสุวรรณ | D39: =+Score!D39 -> EN-IE | E39: =+Score!E39 -> 2.44 | F39: =+Score!F39 -> 1 | G39: 0 | H39: 0 | I39: 0 | J39: 0 | K39: 0 | L39: 0 | M39: 0 | N39: 0 | O39: 0 | P39: 0 | Q39: 0 | R39: 0 | S39: 0
A40: =+Score!A40 -> 37 | B40: =+Score!B40 -> 563040313-7 | C40: =+Score!C40 -> นายธาดา วิริยบัณฑร | D40: =+Score!D40 -> EN-ME | E40: =+Score!E40 -> 3.49 | F40: =+Score!F40 -> 1 | G40: 0 | H40: 0 | I40: 0 | J40: 0 | K40: 0 | L40: 0 | M40: 0 | N40: 0 | O40: 0 | P40: 0 | Q40: 0 | R40: 0 | S40: 0
A41: =+Score!A41 -> 38 | B41: =+Score!B41 -> 563040315-3 | C41: =+Score!C41 -> นางสาวธิดาวรรณ ใจตรง | D41: =+Score!D41 -> EN-IE | E41: =+Score!E41 -> 2.48 | F41: =+Score!F41 -> 1 | G41: 0 | H41: 0 | I41: 0 | J41: 0 | K41: 0 | L41: 0 | M41: 0 | N41: 0 | O41: 0 | P41: 0 | Q41: 0 | R41: 0 | S41: 0
A42: =+Score!A42 -> 39 | B42: =+Score!B42 -> 563040334-9 | C42: =+Score!C42 -> นายพชร ไชยสมบูรณ์ | D42: =+Score!D42 -> EN-IE | E42: =+Score!E42 -> 2.32 | F42: =+Score!F42 -> 1 | G42: 0 | H42: 0 | I42: 0 | J42: 0 | K42: 0 | L42: 0 | M42: 0 | N42: 0 | O42: 0 | P42: 0 | Q42: 0 | R42: 0 | S42: 0
A43: =+Score!A43 -> 40 | B43: =+Score!B43 -> 563040341-2 | C43: =+Score!C43 -> นายพิทวัส เบ้าศรี | D43: =+Score!D43 -> EN-ME | E43: =+Score!E43 -> 2.68 | F43: =+Score!F43 -> 1 | G43: 0 | H43: 0 | I43: 0 | J43: 0 | K43: 0 | L43: 0 | M43: 0 | N43: 0 | O43: 0 | P43: 0 | Q43: 0 | R43: 0 | S43: 0
A44: =+Score!A44 -> 41 | B44: =+Score!B44 -> 563040344-6 | C44: =+Score!C44 -> นายไพโรจน์ วงษ์จำปา | D44: =+Score!D44 -> EN-ME | E44: =+Score!E44 -> 2.61 | F44: =+Score!F44 -> 1 | G44: 0 | H44: 0 | I44: 0 | J44: 0 | K44: 0 | L44: 0 | M44: 0 | N44: 0 | O44: 0 | P44: 0 | Q44: 0 | R44: 0 | S44: 0
A45: =+Score!A45 -> 42 | B45: =+Score!B45 -> 563040346-2 | C45: =+Score!C45 -> นายภระรถ ผาสิงห์ | D45: =+Score!D45 -> EN-ME | E45: =+Score!E45 -> 3.13 | F45: =+Score!F45 -> 1 | G45: 0 | H45: 0 | I45: 0 | J45: 0 | K45: 0 | L45: 0 | M45: 0 | N45: 0 | O45: 0 | P45: 0 | Q45: 0 | R45: 0 | S45: 0
A46: =+Score!A46 -> 43 | B46: =+Score!B46 -> 563040351-9 | C46: =+Score!C46 -> นางสาวมุกดารัศมิ์ อาจบรรจง | D46: =+Score!D46 -> EN-ME | E46: =+Score!E46 -> 2.96 | F46: =+Score!F46 -> 1 | G46: 0 | H46: 0 | I46: 0 | J46: 0 | K46: 0 | L46: 0 | M46: 0 | N46: 0 | O46: 0 | P46: 0 | Q46: 0 | R46: 0 | S46: 0
A47: =+Score!A47 -> 44 | B47: =+Score!B47 -> 563040359-3 | C47: =+Score!C47 -> นายวริษฐ์ จวงพุ่ม | D47: =+Score!D47 -> EN-IE | E47: =+Score!E47 -> 2.34 | F47: =+Score!F47 -> 1 | G47: 0 | H47: 0 | I47: 0 | J47: 0 | K47: 0 | L47: 0 | M47: 0 | N47: 0 | O47: 0 | P47: 0 | Q47: 0 | R47: 0 | S47: 0
A48: =+Score!A48 -> 45 | B48: =+Score!B48 -> 563040367-4 | C48: =+Score!C48 -> นายไวพจน์ แสงกุดเรือ | D48: =+Score!D48 -> EN-ME | E48: =+Score!E48 -> 2.78 | F48: =+Score!F48 -> 1 | G48: 0 | H48: 0 | I48: 0 | J48: 0 | K48: 0 | L48: 0 | M48: 0 | N48: 0 | O48: 0 | P48: 0 | Q48: 0 | R48: 0 | S48: 0
A49: =+Score!A49 -> 46 | B49: =+Score!B49 -> 563040389-4 | C49: =+Score!C49 -> นางสาวสุธีรา นาหัวนิล | D49: =+Score!D49 -> EN-IE | E49: =+Score!E49 -> 2.3 | F49: =+Score!F49 -> 1 | G49: 0 | H49: 0 | I49: 0 | J49: 0 | K49: 0 | L49: 0 | M49: 0 | N49: 0 | O49: 0 | P49: 0 | Q49: 0 | R49: 0 | S49: 0
A50: =+Score!A50 -> 47 | B50: =+Score!B50 -> 563040393-3 | C50: =+Score!C50 -> นายสุภานุเดช ถาวิกุล | D50: =+Score!D50 -> EN-IE | E50: =+Score!E50 -> 1.58 | F50: =+Score!F50 -> 1 | G50: 0 | H50: 0 | I50: 0 | J50: 0 | K50: 0 | L50: 0 | M50: 0 | N50: 0 | O50: 0 | P50: 0 | Q50: 0 | R50: 0 | S50: 0
A51: =+Score!A51 -> 48 | B51: =+Score!B51 -> 563040394-1 | C51: =+Score!C51 -> นางสาวสุภาวิตา ทาเวียง | D51: =+Score!D51 -> EN-IE | E51: =+Score!E51 -> 2.37 | F51: =+Score!F51 -> 1 | G51: 0 | H51: 0 | I51: 0 | J51: 0 | K51: 0 | L51: 0 | M51: 0 | N51: 0 | O51: 0 | P51: 0 | Q51: 0 | R51: 0 | S51: 0
A52: =+Score!A52 -> 49 | B52: =+Score!B52 -> 563040396-7 | C52: =+Score!C52 -> นางสาวสุวนันท์ ดวงพิมาย | D52: =+Score!D52 -> EN-IE | E52: =+Score!E52 -> 2.19 | F52: =+Score!F52 -> 1 | G52: 0 | H52: 0 | I52: 0 | J52: 0 | K52: 0 | L52: 0 | M52: 0 | N52: 0 | O52: 0 | P52: 0 | Q52: 0 | R52: 0 | S52: 0
A53: =+Score!A53 -> 50 | B53: =+Score!B53 -> 563040397-5 | C53: =+Score!C53 -> นางสาวเหมือนฝัน จินดามณี | D53: =+Score!D53 -> EN-IE | E53: =+Score!E53 -> 1.72 | F53: =+Score!F53 -> 1 | G53: 0 | H53: 0 | I53: 0 | J53: 0 | K53: 0 | L53: 0 | M53: 0 | N53: 0 | O53: 0 | P53: 0 | Q53: 0 | R53: 0 | S53: 0
A54: =+Score!A54 -> 51 | B54: =+Score!B54 -> 563040398-3 | C54: =+Score!C54 -> นางสาวเหมือนฝัน เผือกไร่ | D54: =+Score!D54 -> EN-ME | E54: =+Score!E54 -> 2.75 | F54: =+Score!F54 -> 1 | G54: 0 | H54: 0 | I54: 0 | J54: 0 | K54: 0 | L54: 0 | M54: 0 | N54: 0 | O54: 0 | P54: 0 | Q54: 0 | R54: 0 | S54: 0
A55: =+Score!A55 -> 52 | B55: =+Score!B55 -> 563040400-2 | C55: =+Score!C55 -> นายอดิศร โพธิ์ยา | D55: =+Score!D55 -> EN-IE | E55: =+Score!E55 -> 2.37 | F55: =+Score!F55 -> 1 | G55: 0 | H55: 0 | I55: 0 | J55: 0 | K55: 0 | L55: 0 | M55: 0 | N55: 0 | O55: 0 | P55: 0 | Q55: 0 | R55: 0 | S55: 0
A56: =+Score!A56 -> 53 | B56: =+Score!B56 -> 563040408-6 | C56: =+Score!C56 -> นายอรรถศาสตร์ สุระคาย | D56: =+Score!D56 -> EN-ME | E56: =+Score!E56 -> 2.57 | F56: =+Score!F56 -> 1 | G56: 0 | H56: 0 | I56: 0 | J56: 0 | K56: 0 | L56: 0 | M56: 0 | N56: 0 | O56: 0 | P56: 0 | Q56: 0 | R56: 0 | S56: 0
A57: =+Score!A57 -> 54 | B57: =+Score!B57 -> 563040419-1 | C57: =+Score!C57 -> นายชาญชัย มีสนาม | D57: =+Score!D57 -> EN-AE | E57: =+Score!E57 -> 2.88 | F57: =+Score!F57 -> 1 | G57: 0 | H57: 0 | I57: 0 | J57: 0 | K57: 0 | L57: 0 | M57: 0 | N57: 0 | O57: 0 | P57: 0 | Q57: 0 | R57: 0 | S57: 0
A58: =+Score!A58 -> 55 | B58: =+Score!B58 -> 563040424-8 | C58: =+Score!C58 -> นายนิติศักดิ์ แต่งเมือง | D58: =+Score!D58 -> EN-AE | E58: =+Score!E58 -> 2.26 | F58: =+Score!F58 -> 1 | G58: 0 | H58: 0 | I58: 0 | J58: 0 | K58: 0 | L58: 0 | M58: 0 | N58: 0 | O58: 0 | P58: 0 | Q58: 0 | R58: 0 | S58: 0
A59: =+Score!A59 -> 56 | B59: =+Score!B59 -> 563040426-4 | C59: =+Score!C59 -> นางสาวเพชรากร ยอดสุวรรณ์ | D59: =+Score!D59 -> EN-AE | E59: =+Score!E59 -> 2.89 | F59: =+Score!F59 -> 1 | G59: 0 | H59: 0 | I59: 0 | J59: 0 | K59: 0 | L59: 0 | M59: 0 | N59: 0 | O59: 0 | P59: 0 | Q59: 0 | R59: 0 | S59: 0
A60: =+Score!A60 -> 57 | B60: =+Score!B60 -> 563040431-1 | C60: =+Score!C60 -> นายวนัส ภูยาธร | D60: =+Score!D60 -> EN-AE | E60: =+Score!E60 -> 2.23 | F60: =+Score!F60 -> 1 | G60: 0 | H60: 0 | I60: 0 | J60: 0 | K60: 0 | L60: 0 | M60: 0 | N60: 0 | O60: 0 | P60: 0 | Q60: 0 | R60: 0 | S60: 0
A61: =+Score!A61 -> 58 | B61: =+Score!B61 -> 563040433-7 | C61: =+Score!C61 -> นางสาวศุภลักษณ์ เครือเพชร | D61: =+Score!D61 -> EN-AE | E61: =+Score!E61 -> 2.64 | F61: =+Score!F61 -> 1 | G61: 0 | H61: 0 | I61: 0 | J61: 0 | K61: 0 | L61: 0 | M61: 0 | N61: 0 | O61: 0 | P61: 0 | Q61: 0 | R61: 0 | S61: 0
A62: =+Score!A62 -> 0 | B62: =+Score!B62 -> 0 | C62: =+Score!C62 -> 0 | D62: =+Score!D62 -> 0 | E62: =+Score!E62 -> 0 | F62: =+Score!F62 -> 0 | G62: 0 | H62: 0 | I62: 0 | J62: 0 | K62: 0 | L62: 0 | M62: 0 | N62: 0 | O62: 0 | P62: 0 | Q62: 0 | R62: 0 | S62: 0
A63: =+Score!A63 -> 1 | B63: =+Score!B63 -> 563040584-6 | C63: =+Score!C63 -> นายกรนันท์ พันธะสา | D63: =+Score!D63 -> EN-ME (พิเศษ ม.6) | E63: =+Score!E63 -> 2.64 | F63: =+Score!F63 -> 4 | G63: 0 | H63: 0 | I63: 0 | J63: 0 | K63: 0 | L63: 0 | M63: 0 | N63: 0 | O63: 0 | P63: 0 | Q63: 0 | R63: 0 | S63: 0
A64: =+Score!A64 -> 2 | B64: =+Score!B64 -> 563040586-2 | C64: =+Score!C64 -> นายจักรกฤษณ์ ตันเจริญ | D64: =+Score!D64 -> EN-ME (พิเศษ ม.6) | E64: =+Score!E64 -> 1.8 | F64: =+Score!F64 -> 4 | G64: 0 | H64: 0 | I64: 0 | J64: 0 | K64: 0 | L64: 0 | M64: 0 | N64: 0 | O64: 0 | P64: 0 | Q64: 0 | R64: 0 | S64: 0
A65: =+Score!A65 -> 3 | B65: =+Score!B65 -> 563040595-1 | C65: =+Score!C65 -> นายทรงภพ กระสังข์ | D65: =+Score!D65 -> EN-ME (พิเศษ ม.6) | E65: =+Score!E65 -> 2.52 | F65: =+Score!F65 -> 4 | G65: 0 | H65: 0 | I65: 0 | J65: 0 | K65: 0 | L65: 0 | M65: 0 | N65: 0 | O65: 0 | P65: 0 | Q65: 0 | R65: 0 | S65: 0
A66: =+Score!A66 -> 4 | B66: =+Score!B66 -> 563040596-9 | C66: =+Score!C66 -> นายทรงศิลป์ ศิริแก้ว | D66: =+Score!D66 -> EN-ME (พิเศษ ม.6) | E66: =+Score!E66 -> 1.9 | F66: =+Score!F66 -> 4 | G66: 0 | H66: 0 | I66: 0 | J66: 0 | K66: 0 | L66: 0 | M66: 0 | N66: 0 | O66: 0 | P66: 0 | Q66: 0 | R66: 0 | S66: 0
A67: =+Score!A67 -> 5 | B67: =+Score!B67 -> 563040598-5 | C67: =+Score!C67 -> นายธนะโชติ สาโม้ | D67: =+Score!D67 -> EN-ME (พิเศษ ม.6) | E67: =+Score!E67 -> 2.12 | F67: =+Score!F67 -> 4 | G67: 0 | H67: 0 | I67: 0 | J67: 0 | K67: 0 | L67: 0 | M67: 0 | N67: 0 | O67: 0 | P67: 0 | Q67: 0 | R67: 0 | S67: 0
A68: =+Score!A68 -> 6 | B68: =+Score!B68 -> 563040602-0 | C68: =+Score!C68 -> นางสาวปฏิมาภรณ์ ทักขินัย | D68: =+Score!D68 -> EN-ME (พิเศษ ม.6) | E68: =+Score!E68 -> 2.42 | F68: =+Score!F68 -> 4 | G68: 0 | H68: 0 | I68: 0 | J68: 0 | K68: 0 | L68: 0 | M68: 0 | N68: 0 | O68: 0 | P68: 0 | Q68: 0 | R68: 0 | S68: 0
A69: =+Score!A69 -> 7 | B69: =+Score!B69 -> 563040604-6 | C69: =+Score!C69 -> นายพิฆเนศ ระเบียบโอษฐ์ | D69: =+Score!D69 -> EN-ME (พิเศษ ม.6) | E69: =+Score!E69 -> 1.73 | F69: =+Score!F69 -> 4 | G69: 0 | H69: 0 | I69: 0 | J69: =AC69 -> 0 | K69: =AE69 -> 0 | L69: =AG69 -> 0 | M69: =AI69 -> 0 | N69: =AK69 -> 0 | O69: =AM69 -> 0 | P69: =AO69 -> 0 | Q69: =AQ69 -> 0 | R69: =AS69 -> 0 | S69: =SUM(G69:R69)/1.2 -> 0
A70: =+Score!A70 -> 8 | B70: =+Score!B70 -> 563040608-8 | C70: =+Score!C70 -> นางสาวมณฑกานต์ มูลสาร | D70: =+Score!D70 -> EN-ME (พิเศษ ม.6) | E70: =+Score!E70 -> 1.99 | F70: =+Score!F70 -> 4 | G70: 0 | H70: =Y70 -> 0 | I70: =AA70 -> 0 | J70: 0 | K70: 0 | L70: 0 | M70: 0 | N70: 0 | O70: 0 | P70: 0 | Q70: 0 | R70: 0 | S70: 0
A71: =+Score!A71 -> 9 | B71: =+Score!B71 -> 563040609-6 | C71: =+Score!C71 -> นายรัฐศาสตร์ จันใหญ่ | D71: =+Score!D71 -> EN-ME (พิเศษ ม.6) | E71: =+Score!E71 -> 2.47 | F71: =+Score!F71 -> 4 | G71: =W71 -> 0 | H71: 0 | I71: 0 | J71: 0 | K71: 0 | L71: 0 | M71: 0 | N71: 0 | O71: 0 | P71: 0 | Q71: 0 | R71: 0 | S71: 0
A72: =+Score!A72 -> 10 | B72: =+Score!B72 -> 563040610-1 | C72: =+Score!C72 -> นายลักษมณ์ เฮงพูลธนา | D72: =+Score!D72 -> EN-ME (พิเศษ ม.6) | E72: =+Score!E72 -> 1.51 | F72: =+Score!F72 -> 4 | G72: 0 | H72: 0 | I72: 0 | J72: 0 | K72: 0 | L72: 0 | M72: 0 | N72: 0 | O72: 0 | P72: 0 | Q72: 0 | R72: 0 | S72: 0
A73: =+Score!A73 -> 11 | B73: =+Score!B73 -> 563040614-3 | C73: =+Score!C73 -> นายศิวัช เฮงพูลธนา | D73: =+Score!D73 -> EN-ME (พิเศษ ม.6) | E73: =+Score!E73 -> 2.21 | F73: =+Score!F73 -> 4 | G73: 0 | H73: 0 | I73: 0 | J73: 0 | K73: 0 | L73: 0 | M73: 0 | N73: 0 | O73: 0 | P73: 0 | Q73: 0 | R73: 0 | S73: 0
A74: =+Score!A74 -> 12 | B74: =+Score!B74 -> 563040618-5 | C74: =+Score!C74 -> นายเสาเอก น้อยปรีชา | D74: =+Score!D74 -> EN-ME (พิเศษ ม.6) | E74: =+Score!E74 -> 2.24 | F74: =+Score!F74 -> 4 | G74: 0 | H74: 0 | I74: 0 | J74: 0 | K74: 0 | L74: 0 | M74: 0 | N74: 0 | O74: 0 | P74: 0 | Q74: 0 | R74: 0 | S74: 0
A75: =+Score!A75 -> 13 | B75: =+Score!B75 -> 563040619-3 | C75: =+Score!C75 -> นายอภิเศรษฐ์ อินทรพาณิชย์ | D75: =+Score!D75 -> EN-ME (พิเศษ ม.6) | E75: =+Score!E75 -> 2.59 | F75: =+Score!F75 -> 4 | G75: 0 | H75: 0 | I75: 0 | J75: 0 | K75: 0 | L75: 0 | M75: 0 | N75: 0 | O75: 0 | P75: 0 | Q75: 0 | R75: 0 | S75: 0
A76: =+Score!A76 -> 14 | B76: =+Score!B76 -> 563040620-8 | C76: =+Score!C76 -> นายอมรเทพ วงษ์สมศรี | D76: =+Score!D76 -> EN-ME (พิเศษ ม.6) | E76: =+Score!E76 -> 2.02 | F76: =+Score!F76 -> 4 | G76: 0 | H76: 0 | I76: 0 | J76: 0 | K76: 0 | L76: 0 | M76: 0 | N76: 0 | O76: 0 | P76: 0 | Q76: 0 | R76: 0 | S76: 0
A77: =+Score!A77 -> 0 | B77: =+Score!B77 -> 0 | C77: =+Score!C77 -> 0 | D77: =+Score!D77 -> 0 | E77: =+Score!E77 -> 0 | F77: =+Score!F77 -> 0 | G77: 0 | H77: 0 | I77: 0 | J77: 0 | K77: 0 | L77: 0 | M77: 0 | N77: 0 | O77: 0 | P77: 0 | Q77: 0 | R77: 0 | S77: 0
A78: =+Score!A78 -> 0 | B78: =+Score!B78 -> 0 | C78: =+Score!C78 -> 0 | D78: =+Score!D78 -> 0 | E78: =+Score!E78 -> 0 | F78: =+Score!F78 -> 0 | G78: 0 | H78: 0 | I78: 0 | J78: 0 | K78: 0 | L78: 0 | M78: 0 | N78: 0 | O78: 0 | P78: 0 | Q78: 0 | R78: 0 | S78: =SUM(G78:R78)/1.2 -> 0
A79: =+Score!A79 -> 0 | B79: =+Score!B79 -> 0 | C79: =+Score!C79 -> 0 | D79: =+Score!D79 -> 0 | E79: =+Score!E79 -> 0 | F79: =+Score!F79 -> 0 | G79: 0 | H79: 0 | I79: 0 | J79: 0 | K79: 0 | L79: 0 | M79: 0 | N79: 0 | O79: 0 | P79: 0 | Q79: 0 | R79: 0 | S79: 0
A80: =+Score!A80 -> 0 | B80: =+Score!B80 -> 0 | C80: =+Score!C80 -> 0 | D80: =+Score!D80 -> 0 | E80: =+Score!E80 -> 0 | F80: =+Score!F80 -> 0 | G80: 0 | H80: 0 | I80: 0 | J80: 0 | K80: 0 | L80: 0 | M80: 0 | N80: 0 | O80: 0 | P80: 0 | Q80: 0 | R80: 0 | S80: 0
A81: =+Score!A81 -> 0 | B81: =+Score!B81 -> 0 | C81: =+Score!C81 -> 0 | D81: =+Score!D81 -> 0 | E81: =+Score!E81 -> 0 | F81: =+Score!F81 -> 0 | G81: 0 | H81: 0 | I81: 0 | J81: 0 | K81: 0 | L81: 0 | M81: 0 | N81: 0 | O81: 0 | P81: 0 | Q81: 0 | R81: 0 | S81: 0
A82: =+Score!A82 -> 0 | B82: =+Score!B82 -> 0 | C82: =+Score!C82 -> 0 | D82: =+Score!D82 -> 0 | E82: =+Score!E82 -> 0 | F82: =+Score!F82 -> 0 | G82: 0 | H82: 0 | I82: 0 | J82: 0 | K82: 0 | L82: 0 | M82: 0 | N82: 0 | O82: 0 | P82: 0 | Q82: 0 | R82: 0 | S82: 0
A83: =+Score!A83 -> 0 | B83: =+Score!B83 -> 0 | C83: =+Score!C83 -> 0 | D83: =+Score!D83 -> 0 | E83: =+Score!E83 -> 0 | F83: =+Score!F83 -> 0 | G83: 0 | H83: 0 | I83: 0 | J83: 0 | K83: 0 | L83: 0 | M83: 0 | N83: 0 | O83: 0 | P83: 0 | Q83: 0 | R83: 0 | S83: 0
A84: =+Score!A84 -> 0 | B84: =+Score!B84 -> 0 | C84: =+Score!C84 -> 0 | D84: =+Score!D84 -> 0 | E84: =+Score!E84 -> 0 | F84: =+Score!F84 -> 0 | G84: 0 | H84: 0 | I84: 0 | J84: 0 | K84: 0 | L84: 0 | M84: 0 | N84: 0 | O84: 0 | P84: 0 | Q84: 0 | R84: 0 | S84: 0
A85: =+Score!A85 -> 0 | B85: =+Score!B85 -> 0 | C85: =+Score!C85 -> 0 | D85: =+Score!D85 -> 0 | E85: =+Score!E85 -> 0 | F85: =+Score!F85 -> 0 | G85: 0 | H85: 0 | I85: 0 | J85: 0 | K85: 0 | L85: 0 | M85: 0 | N85: 0 | O85: 0 | P85: 0 | Q85: 0 | R85: 0 | S85: 0
A86: =+Score!A86 -> 0 | B86: =+Score!B86 -> 0 | C86: =+Score!C86 -> 0 | D86: =+Score!D86 -> 0 | E86: =+Score!E86 -> 0 | F86: =+Score!F86 -> 0 | G86: 0 | H86: 0 | I86: 0 | J86: 0 | K86: 0 | L86: 0 | M86: 0 | N86: 0 | O86: 0 | P86: 0 | Q86: 0 | R86: 0 | S86: 0
A87: =+Score!A87 -> 0 | B87: =+Score!B87 -> 0 | C87: =+Score!C87 -> 0 | D87: =+Score!D87 -> 0 | E87: =+Score!E87 -> 0 | F87: =+Score!F87 -> 0 | G87: 0 | H87: 0 | I87: 0 | J87: 0 | K87: 0 | L87: 0 | M87: 0 | N87: 0 | O87: 0 | P87: 0 | Q87: 0 | R87: 0 | S87: 0
A88: =+Score!A88 -> 0 | B88: =+Score!B88 -> 0 | C88: =+Score!C88 -> 0 | D88: =+Score!D88 -> 0 | E88: =+Score!E88 -> 0 | F88: =+Score!F88 -> 0 | G88: 0 | H88: 0 | I88: 0 | J88: 0 | K88: 0 | L88: 0 | M88: 0 | N88: 0 | O88: 0 | P88: 0 | Q88: 0 | R88: 0 | S88: 0
A89: =+Score!A89 -> 0 | B89: =+Score!B89 -> 0 | C89: =+Score!C89 -> 0 | D89: =+Score!D89 -> 0 | E89: =+Score!E89 -> 0 | F89: =+Score!F89 -> 0 | G89: 0 | H89: 0 | I89: 0 | J89: 0 | K89: 0 | L89: 0 | M89: 0 | N89: 0 | O89: 0 | P89: 0 | Q89: 0 | R89: 0 | S89: 0
A90: =+Score!A90 -> 0 | B90: =+Score!B90 -> 0 | C90: =+Score!C90 -> 0 | D90: =+Score!D90 -> 0 | E90: =+Score!E90 -> 0 | F90: =+Score!F90 -> 0 | G90: 0 | H90: 0 | I90: 0 | J90: 0 | K90: 0 | L90: 0 | M90: 0 | N90: 0 | O90: 0 | P90: 0 | Q90: 0 | R90: 0 | S90: 0
A91: =+Score!A91 -> 0 | B91: =+Score!B91 -> 0 | C91: =+Score!C91 -> 0 | D91: =+Score!D91 -> 0 | E91: =+Score!E91 -> 0 | F91: =+Score!F91 -> 0 | G91: 0 | H91: 0 | I91: 0 | J91: 0 | K91: 0 | L91: 0 | M91: 0 | N91: 0 | O91: 0 | P91: 0 | Q91: 0 | R91: 0 | S91: 0
A92: =+Score!A92 -> 0 | B92: =+Score!B92 -> 0 | C92: =+Score!C92 -> 0 | D92: =+Score!D92 -> 0 | E92: =+Score!E92 -> 0 | F92: =+Score!F92 -> 0 | G92: 0 | H92: 0 | I92: 0 | J92: 0 | K92: 0 | L92: 0 | M92: 0 | N92: 0 | O92: 0 | P92: 0 | Q92: 0 | R92: 0 | S92: 0
A93: =+Score!A93 -> 0 | B93: =+Score!B93 -> 0 | C93: =+Score!C93 -> 0 | D93: =+Score!D93 -> 0 | E93: =+Score!E93 -> 0 | F93: =+Score!F93 -> 0 | G93: 0 | H93: 0 | I93: 0 | J93: 0 | K93: 0 | L93: 0 | M93: 0 | N93: 0 | O93: 0 | P93: 0 | Q93: 0 | R93: 0 | S93: 0
A94: =+Score!A94 -> 0 | B94: =+Score!B94 -> 0 | C94: =+Score!C94 -> 0 | D94: =+Score!D94 -> 0 | E94: =+Score!E94 -> 0 | F94: =+Score!F94 -> 0 | G94: 0 | H94: 0 | I94: 0 | J94: 0 | K94: 0 | L94: 0 | M94: 0 | N94: 0 | O94: 0 | P94: 0 | Q94: 0 | R94: 0 | S94: 0
A95: =+Score!A95 -> 0 | B95: =+Score!B95 -> 0 | C95: =+Score!C95 -> 0 | D95: =+Score!D95 -> 0 | E95: =+Score!E95 -> 0 | F95: =+Score!F95 -> 0 | G95: 0 | H95: 0 | I95: 0 | J95: 0 | K95: 0 | L95: 0 | M95: 0 | N95: 0 | O95: 0 | P95: 0 | Q95: 0 | R95: 0 | S95: 0
A96: =+Score!A96 -> 0 | B96: =+Score!B96 -> 0 | C96: =+Score!C96 -> 0 | D96: =+Score!D96 -> 0 | E96: =+Score!E96 -> 0 | F96: =+Score!F96 -> 0 | G96: 0 | H96: 0 | I96: 0 | J96: 0 | K96: 0 | L96: 0 | M96: 0 | N96: 0 | O96: 0 | P96: 0 | Q96: 0 | R96: 0 | S96: 0
A97: =+Score!A97 -> 0 | B97: =+Score!B97 -> 0 | C97: =+Score!C97 -> 0 | D97: =+Score!D97 -> 0 | E97: =+Score!E97 -> 0 | F97: =+Score!F97 -> 0 | G97: 0 | H97: 0 | I97: 0 | J97: 0 | K97: 0 | L97: 0 | M97: 0 | N97: 0 | O97: 0 | P97: 0 | Q97: 0 | R97: 0 | S97: 0
A98: =+Score!A98 -> 0 | B98: =+Score!B98 -> 0 | C98: =+Score!C98 -> 0 | D98: =+Score!D98 -> 0 | E98: =+Score!E98 -> 0 | F98: =+Score!F98 -> 0 | G98: 0 | H98: 0 | I98: 0 | J98: 0 | K98: 0 | L98: 0 | M98: 0 | N98: 0 | O98: 0 | P98: 0 | Q98: 0 | R98: 0 | S98: 0
A99: =+Score!A99 -> 0 | B99: =+Score!B99 -> 0 | C99: =+Score!C99 -> 0 | D99: =+Score!D99 -> 0 | E99: =+Score!E99 -> 0 | F99: =+Score!F99 -> 0 | G99: 0 | H99: 0 | I99: 0 | J99: 0 | K99: 0 | L99: 0 | M99: 0 | N99: 0 | O99: 0 | P99: 0 | Q99: 0 | R99: 0 | S99: 0
A100: =+Score!A100 -> 0 | B100: =+Score!B100 -> 0 | C100: =+Score!C100 -> 0 | D100: =+Score!D100 -> 0 | E100: =+Score!E100 -> 0 | F100: =+Score!F100 -> 0 | G100: 0 | H100: 0 | I100: 0 | J100: 0 | K100: 0 | L100: 0 | M100: 0 | N100: 0 | O100: 0 | P100: 0 | Q100: 0 | R100: 0 | S100: 0
A101: =+Score!A101 -> 0 | B101: =+Score!B101 -> 0 | C101: =+Score!C101 -> 0 | D101: =+Score!D101 -> 0 | E101: =+Score!E101 -> 0 | F101: =+Score!F101 -> 0 | G101: 0 | H101: 0 | I101: 0 | J101: 0 | K101: 0 | L101: 0 | M101: 0 | N101: 0 | O101: 0 | P101: 0 | Q101: 0 | R101: 0 | S101: 0
A102: =+Score!A102 -> 0 | B102: =+Score!B102 -> 0 | C102: =+Score!C102 -> 0 | D102: =+Score!D102 -> 0 | E102: =+Score!E102 -> 0 | F102: =+Score!F102 -> 0 | G102: 0 | H102: 0 | I102: 0 | J102: 0 | K102: 0 | L102: 0 | M102: 0 | N102: 0 | O102: 0 | P102: 0 | Q102: 0 | R102: 0 | S102: 0
A103: =+Score!A103 -> 0 | B103: =+Score!B103 -> 0 | C103: =+Score!C103 -> 0 | D103: =+Score!D103 -> 0 | E103: =+Score!E103 -> 0 | F103: =+Score!F103 -> 0 | G103: 0 | H103: 0 | I103: 0 | J103: 0 | K103: 0 | L103: 0 | M103: 0 | N103: 0 | O103: 0 | P103: 0 | Q103: 0 | R103: 0 | S103: 0
A104: =+Score!A104 -> 0 | B104: =+Score!B104 -> 0 | C104: =+Score!C104 -> 0 | D104: =+Score!D104 -> 0 | E104: =+Score!E104 -> 0 | F104: =+Score!F104 -> 0 | G104: 0 | H104: 0 | I104: 0 | J104: 0 | K104: 0 | L104: 0 | M104: 0 | N104: 0 | O104: 0 | P104: 0 | Q104: 0 | R104: 0 | S104: 0
A105: =+Score!A105 -> 0 | B105: =+Score!B105 -> 0 | C105: =+Score!C105 -> 0 | D105: =+Score!D105 -> 0 | E105: =+Score!E105 -> 0 | F105: =+Score!F105 -> 0 | G105: 0 | H105: 0 | I105: 0 | J105: 0 | K105: 0 | L105: 0 | M105: 0 | N105: 0 | O105: 0 | P105: 0 | Q105: 0 | R105: 0 | S105: 0
A106: =+Score!A106 -> 0 | B106: =+Score!B106 -> 0 | C106: =+Score!C106 -> 0 | D106: =+Score!D106 -> 0 | E106: =+Score!E106 -> 0 | F106: =+Score!F106 -> 0 | G106: 0 | H106: 0 | I106: 0 | J106: 0 | K106: 0 | L106: 0 | M106: 0 | N106: 0 | O106: 0 | P106: 0 | Q106: 0 | R106: 0 | S106: 0
A107: =+Score!A107 -> 0 | B107: =+Score!B107 -> 0 | C107: =+Score!C107 -> 0 | D107: =+Score!D107 -> 0 | E107: =+Score!E107 -> 0 | F107: =+Score!F107 -> 0 | G107: 0 | H107: 0 | I107: 0 | J107: 0 | K107: 0 | L107: 0 | M107: 0 | N107: 0 | O107: 0 | P107: 0 | Q107: 0 | R107: 0 | S107: 0
A108: =+Score!A108 -> 0 | B108: =+Score!B108 -> 0 | C108: =+Score!C108 -> 0 | D108: =+Score!D108 -> 0 | E108: =+Score!E108 -> 0 | F108: =+Score!F108 -> 0 | G108: 0 | H108: 0 | I108: 0 | J108: 0 | K108: 0 | L108: 0 | M108: 0 | N108: 0 | O108: 0 | P108: 0 | Q108: 0 | R108: 0 | S108: 0
A109: =+Score!A109 -> 0 | B109: =+Score!B109 -> 0 | C109: =+Score!C109 -> 0 | D109: =+Score!D109 -> 0 | E109: =+Score!E109 -> 0 | F109: =+Score!F109 -> 0 | G109: 0 | H109: 0 | I109: 0 | J109: 0 | K109: 0 | L109: 0 | M109: 0 | N109: 0 | O109: 0 | P109: 0 | Q109: 0 | R109: 0 | S109: 0
A110: =+Score!A110 -> 0 | B110: =+Score!B110 -> 0 | C110: =+Score!C110 -> 0 | D110: =+Score!D110 -> 0 | E110: =+Score!E110 -> 0 | F110: =+Score!F110 -> 0 | G110: =W110 -> 0 | H110: =Y110 -> 0 | I110: =AA110 -> 0 | J110: =AC110 -> 0 | K110: =AE110 -> 0 | L110: 0 | M110: 0 | N110: 0 | O110: 0 | P110: 0 | Q110: 0 | R110: 0 | S110: 0

Sheet TestAll
B1: รายวิชา | C1: 185231 : THERMODYNAMICS I | F1: Section 1 | G1: 5 | H1: 5 | K1: =SUM(G1:J1) -> 10 | L1: Accumulated | N1: Full | O1: Score | P1: Full | Q1: Score | R1: Full | S1: Score | T1: full | U1: score
B2: ปีการศึกษา | C2: 2553 ภาคการศึกษาที่ 1 | F2: รศ.ดร.สมหมาย ปรีเปรม | G2: 5 | H2: 5 | K2: =SUM(G2:J2) -> 10 | L2: Full score | N2: 30 | O2: 5 | P2: 35 | Q2: 5
A3: ลำดับ | B3: รหัส | C3: ชื่อ | D3: หลักสูตร | E3: GPA | F3: Section | G3: Test1 | H3: Test2 | I3: Test3 | J3: Test4 | K3: Sum | N3: Test1 | P3: Test2 | R3: Test3 | T3: Test4
A4: =Score!A4 -> 1 | B4: =Score!B4 -> 543040669-6 | C4: =Score!C4 -> นายเกียรติขจร ทัดทาอามาตย์ | D4: =Score!D4 -> EN-AE | E4: =Score!E4 -> 2 | F4: =Score!F4 -> 1 | G4: =+O4 -> 0 | H4: =Q4 -> 0 | K4: =SUM(G4:J4) -> 0
A5: =Score!A5 -> 2 | B5: =Score!B5 -> 553040404-3 | C5: =Score!C5 -> นายวนัสมัญ กฤษณะสุวรรณ | D5: =Score!D5 -> EN-IE | E5: =Score!E5 -> 1.89 | F5: =Score!F5 -> 1 | G5: =+O5 -> 0 | H5: =Q5 -> 0 | K5: =SUM(G5:J5) -> 0
A6: =Score!A6 -> 3 | B6: =Score!B6 -> 563040002-4 | C6: =Score!C6 -> นายกรวิชญ์ ศรีวัฒนาปิติกุล | D6: =Score!D6 -> EN-ME | E6: =Score!E6 -> 3.14 | F6: =Score!F6 -> 1 | G6: 0 | H6: 0 | K6: 0
A7: =Score!A7 -> 4 | B7: =Score!B7 -> 563040003-2 | C7: =Score!C7 -> นายกฤช ถาไชยลา | D7: =Score!D7 -> EN-ME | E7: =Score!E7 -> 2.84 | F7: =Score!F7 -> 1 | G7: 0 | H7: 0 | K7: 0
A8: =Score!A8 -> 5 | B8: =Score!B8 -> 563040022-8 | C8: =Score!C8 -> นายณัฐพล สิทธิอมรพร | D8: =Score!D8 -> EN-ME | E8: =Score!E8 -> 3.41 | F8: =Score!F8 -> 1 | G8: 0 | H8: 0 | K8: 0
A9: =Score!A9 -> 6 | B9: =Score!B9 -> 563040025-2 | C9: =Score!C9 -> นายทรงพล เกียรติพนมแพ | D9: =Score!D9 -> EN-IE | E9: =Score!E9 -> 3.04 | F9: =Score!F9 -> 1 | G9: 0 | H9: 0 | K9: 0
A10: =Score!A10 -> 7 | B10: =Score!B10 -> 563040032-5 | C10: =Score!C10 -> นางสาวธนัชชา ใหญ่สูงเนิน | D10: =Score!D10 -> EN-IE | E10: =Score!E10 -> 2.76 | F10: =Score!F10 -> 1 | G10: 0 | H10: 0 | K10: 0
A11: =Score!A11 -> 8 | B11: =Score!B11 -> 563040043-0 | C11: =Score!C11 -> นางสาวนันทิชา จริยาโสวรรณ | D11: =Score!D11 -> EN-IE | E11: =Score!E11 -> 2.04 | F11: =Score!F11 -> 1 | G11: 0 | H11: 0 | K11: 0
A12: =Score!A12 -> 9 | B12: =Score!B12 -> 563040044-8 | C12: =Score!C12 -> นางสาวนิภาพร อายุวัฒน์ | D12: =Score!D12 -> EN-ME | E12: =Score!E12 -> 2.92 | F12: =Score!F12 -> 1 | G12: 0 | H12: 0 | K12: 0
A13: =Score!A13 -> 10 | B13: =Score!B13 -> 563040051-1 | C13: =Score!C13 -> นายพงศ์ทัช พรวิกุลรัตนา | D13: =Score!D13 -> EN-ME | E13: =Score!E13 -> 2.63 | F13: =Score!F13 -> 1 | G13: 0 | H13: 0 | K13: 0
A14: =Score!A14 -> 11 | B14: =Score!B14 -> 563040059-5 | C14: =Score!C14 -> นายพสธร นามสร | D14: =Score!D14 -> EN-ME | E14: =Score!E14 -> 3.09 | F14: =Score!F14 -> 1 | G14: 0 | H14: 0 | K14: 0
A15: =Score!A15 -> 12 | B15: =Score!B15 -> 563040064-2 | C15: =Score!C15 -> นางสาวภัทรามาศ ฉวีชัย | D15: =Score!D15 -> EN-IE | E15: =Score!E15 -> 3.12 | F15: =Score!F15 -> 1 | G15: 0 | H15: 0 | K15: 0
A16: =Score!A16 -> 13 | B16: =Score!B16 -> 563040065-0 | C16: =Score!C16 -> นายภาคิน จำปาศักดิ์ | D16: =Score!D16 -> EN-ME | E16: =Score!E16 -> 3.51 | F16: =Score!F16 -> 1 | G16: 0 | H16: 0 | K16: 0
A17: =Score!A17 -> 14 | B17: =Score!B17 -> 563040070-7 | C17: =Score!C17 -> นายมหคพันธุ์ เอมกลาง | D17: =Score!D17 -> EN-ME | E17: =Score!E17 -> 2.71 | F17: =Score!F17 -> 1 | G17: 0 | H17: 0 | K17: 0
A18: =Score!A18 -> 15 | B18: =Score!B18 -> 563040071-5 | C18: =Score!C18 -> นายมานะ ติรโรจน์ | D18: =Score!D18 -> EN-ME | E18: =Score!E18 -> 3.46 | F18: =Score!F18 -> 1 | G18: 0 | H18: 0 | K18: 0
A19: =Score!A19 -> 16 | B19: =Score!B19 -> 563040076-5 | C19: =Score!C19 -> นายรัฐศาสตร์ พลยงค์ | D19: =Score!D19 -> EN-ME | E19: =Score!E19 -> 2.88 | F19: =Score!F19 -> 1 | G19: 0 | H19: 0 | K19: 0
A20: =Score!A20 -> 17 | B20: =Score!B20 -> 563040089-6 | C20: =Score!C20 -> นายศวัสชัย วิวรรธนจิตต์ | D20: =Score!D20 -> EN-IE | E20: =Score!E20 -> 2.79 | F20: =Score!F20 -> 1 | G20: 0 | H20: 0 | K20: 0
A21: =Score!A21 -> 18 | B21: =Score!B21 -> 563040098-5 | C21: =Score!C21 -> นายสิทธิโชค ชูพงศ์พันธุ์ | D21: =Score!D21 -> EN-ME | E21: =Score!E21 -> 2.94 | F21: =Score!F21 -> 1 | G21: 0 | H21: 0 | K21: 0
A22: =Score!A22 -> 19 | B22: =Score!B22 -> 563040114-3 | C22: =Score!C22 -> นายคฑาวุธ ศรีโสดาพล | D22: =Score!D22 -> EN-AE | E22: =Score!E22 -> 1.51 | F22: =Score!F22 -> 1 | G22: 0 | H22: 0 | K22: 0
A23: =Score!A23 -> 20 | B23: =Score!B23 -> 563040115-1 | C23: =Score!C23 -> นายจุลดิศ ทองตัน | D23: =Score!D23 -> EN-AE | E23: =Score!E23 -> 1.82 | F23: =Score!F23 -> 1 | G23: 0 | H23: 0 | K23: 0
A24: =Score!A24 -> 21 | B24: =Score!B24 -> 563040116-9 | C24: =Score!C24 -> นายโชคชัย ซุยอุ้ย | D24: =Score!D24 -> EN-AE | E24: =Score!E24 -> 3.03 | F24: =Score!F24 -> 1 | G24: 0 | H24: 0 | K24: 0
A25: =Score!A25 -> 22 | B25: =Score!B25 -> 563040121-6 | C25: =Score!C25 -> นายธนพล หลาบศิริ | D25: =Score!D25 -> EN-AE | E25: =Score!E25 -> 2.77 | F25: =Score!F25 -> 1 | G25: 0 | H25: 0 | K25: 0
A26: =Score!A26 -> 23 | B26: =Score!B26 -> 563040123-2 | C26: =Score!C26 -> นายธนวร สันธนะสุรางค์ | D26: =Score!D26 -> EN-AE | E26: =Score!E26 -> 2.35 | F26: =Score!F26 -> 1 | G26: 0 | H26: 0 | K26: 0
A27: =Score!A27 -> 24 | B27: =Score!B27 -> 563040129-0 | C27: =Score!C27 -> นายพีรเมธ จุฑานันท์ | D27: =Score!D27 -> EN-AE | E27: =Score!E27 -> 1.89 | F27: =Score!F27 -> 1 | G27: 0 | H27: 0 | K27: 0
A28: =Score!A28 -> 25 | B28: =Score!B28 -> 563040130-5 | C28: =Score!C28 -> นายพีส คูณดี | D28: =Score!D28 -> EN-AE | E28: =Score!E28 -> 2.29 | F28: =Score!F28 -> 1 | G28: 0 | H28: 0 | K28: 0
A29: =Score!A29 -> 26 | B29: =Score!B29 -> 563040137-1 | C29: =Score!C29 -> นายศุภณัฐ ลัภกิตโร | D29: =Score!D29 -> EN-AE | E29: =Score!E29 -> 2.58 | F29: =Score!F29 -> 1 | G29: 0 | H29: 0 | K29: 0
A30: =Score!A30 -> 27 | B30: =Score!B30 -> 563040139-7 | C30: =Score!C30 -> นายสุธรรม ดิษาภิรมย์ | D30: =Score!D30 -> EN-AE | E30: =Score!E30 -> 1.78 | F30: =Score!F30 -> 1 | G30: 0 | H30: 0 | K30: 0
A31: =Score!A31 -> 28 | B31: =Score!B31 -> 563040231-9 | C31: =Score!C31 -> นายอธิการ สุริโย | D31: =Score!D31 -> EN-IE | E31: =Score!E31 -> 1.71 | F31: =Score!F31 -> 1 | G31: 0 | H31: 0 | K31: 0
A32: =Score!A32 -> 29 | B32: =Score!B32 -> 563040260-2 | C32: =Score!C32 -> นางสาวณัฐณิชา ศิริเหล่าไพศาล | D32: =Score!D32 -> EN-IE | E32: =Score!E32 -> 3.17 | F32: =Score!F32 -> 1 | G32: 0 | H32: 0 | K32: 0
A33: =Score!A33 -> 30 | B33: =Score!B33 -> 563040269-4 | C33: =Score!C33 -> นายกนกพล แก้วเฮียง | D33: =Score!D33 -> EN-ME | E33: =Score!E33 -> 3.06 | F33: =Score!F33 -> 1 | G33: 0 | H33: 0 | K33: 0
A34: =Score!A34 -> 31 | B34: =Score!B34 -> 563040272-5 | C34: =Score!C34 -> นายกีรติ มังษา | D34: =Score!D34 -> EN-ME | E34: =Score!E34 -> 2.87 | F34: =Score!F34 -> 1 | G34: 0 | H34: 0 | K34: 0
A35: =Score!A35 -> 32 | B35: =Score!B35 -> 563040275-9 | C35: =Score!C35 -> นางสาวคุณัญญา ทวีสอน | D35: =Score!D35 -> EN-ME | E35: =Score!E35 -> 2.69 | F35: =Score!F35 -> 1 | G35: 0 | H35: 0 | K35: 0
A36: =Score!A36 -> 33 | B36: =Score!B36 -> 563040289-8 | C36: =Score!C36 -> นางสาวโชติณัฐ จงใจหาญ | D36: =Score!D36 -> EN-IE | E36: =Score!E36 -> 3 | F36: =Score!F36 -> 1 | G36: 0 | H36: 0 | K36: 0
A37: =Score!A37 -> 34 | B37: =Score!B37 -> 563040292-9 | C37: =Score!C37 -> นางสาวฐิติพร ฐานหมั่น | D37: =Score!D37 -> EN-IE | E37: =Score!E37 -> 2.12 | F37: =Score!F37 -> 1 | G37: 0 | H37: 0 | K37: 0
A38: =Score!A38 -> 35 | B38: =Score!B38 -> 563040296-1 | C38: =Score!C38 -> นางสาวณัฐชยา ทัศนจินดา | D38: =Score!D38 -> EN-IE | E38: =Score!E38 -> 2.75 | F38: =Score!F38 -> 1 | G38: 0 | H38: 0 | K38: 0
A39: =Score!A39 -> 36 | B39: =Score!B39 -> 563040304-8 | C39: =Score!C39 -> นายธนพนธ์ ตั้งวัฒนสุวรรณ | D39: =Score!D39 -> EN-IE | E39: =Score!E39 -> 2.44 | F39: =Score!F39 -> 1 | G39: 0 | H39: 0 | K39: 0
A40: =Score!A40 -> 37 | B40: =Score!B40 -> 563040313-7 | C40: =Score!C40 -> นายธาดา วิริยบัณฑร | D40: =Score!D40 -> EN-ME | E40: =Score!E40 -> 3.49 | F40: =Score!F40 -> 1 | G40: 0 | H40: 0 | K40: 0
A41: =Score!A41 -> 38 | B41: =Score!B41 -> 563040315-3 | C41: =Score!C41 -> นางสาวธิดาวรรณ ใจตรง | D41: =Score!D41 -> EN-IE | E41: =Score!E41 -> 2.48 | F41: =Score!F41 -> 1 | G41: 0 | H41: 0 | K41: 0
A42: =Score!A42 -> 39 | B42: =Score!B42 -> 563040334-9 | C42: =Score!C42 -> นายพชร ไชยสมบูรณ์ | D42: =Score!D42 -> EN-IE | E42: =Score!E42 -> 2.32 | F42: =Score!F42 -> 1 | G42: 0 | H42: 0 | K42: 0
A43: =Score!A43 -> 40 | B43: =Score!B43 -> 563040341-2 | C43: =Score!C43 -> นายพิทวัส เบ้าศรี | D43: =Score!D43 -> EN-ME | E43: =Score!E43 -> 2.68 | F43: =Score!F43 -> 1 | G43: 0 | H43: 0 | K43: 0
A44: =Score!A44 -> 41 | B44: =Score!B44 -> 563040344-6 | C44: =Score!C44 -> นายไพโรจน์ วงษ์จำปา | D44: =Score!D44 -> EN-ME | E44: =Score!E44 -> 2.61 | F44: =Score!F44 -> 1 | G44: 0 | H44: 0 | K44: 0
A45: =Score!A45 -> 42 | B45: =Score!B45 -> 563040346-2 | C45: =Score!C45 -> นายภระรถ ผาสิงห์ | D45: =Score!D45 -> EN-ME | E45: =Score!E45 -> 3.13 | F45: =Score!F45 -> 1 | G45: 0 | H45: 0 | K45: 0
A46: =Score!A46 -> 43 | B46: =Score!B46 -> 563040351-9 | C46: =Score!C46 -> นางสาวมุกดารัศมิ์ อาจบรรจง | D46: =Score!D46 -> EN-ME | E46: =Score!E46 -> 2.96 | F46: =Score!F46 -> 1 | G46: 0 | H46: 0 | K46: 0
A47: =Score!A47 -> 44 | B47: =Score!B47 -> 563040359-3 | C47: =Score!C47 -> นายวริษฐ์ จวงพุ่ม | D47: =Score!D47 -> EN-IE | E47: =Score!E47 -> 2.34 | F47: =Score!F47 -> 1 | G47: 0 | H47: 0 | K47: 0
A48: =Score!A48 -> 45 | B48: =Score!B48 -> 563040367-4 | C48: =Score!C48 -> นายไวพจน์ แสงกุดเรือ | D48: =Score!D48 -> EN-ME | E48: =Score!E48 -> 2.78 | F48: =Score!F48 -> 1 | G48: 0 | H48: 0 | K48: 0
A49: =Score!A49 -> 46 | B49: =Score!B49 -> 563040389-4 | C49: =Score!C49 -> นางสาวสุธีรา นาหัวนิล | D49: =Score!D49 -> EN-IE | E49: =Score!E49 -> 2.3 | F49: =Score!F49 -> 1 | G49: 0 | H49: 0 | K49: 0
A50: =Score!A50 -> 47 | B50: =Score!B50 -> 563040393-3 | C50: =Score!C50 -> นายสุภานุเดช ถาวิกุล | D50: =Score!D50 -> EN-IE | E50: =Score!E50 -> 1.58 | F50: =Score!F50 -> 1 | G50: 0 | H50: 0 | K50: 0
A51: =Score!A51 -> 48 | B51: =Score!B51 -> 563040394-1 | C51: =Score!C51 -> นางสาวสุภาวิตา ทาเวียง | D51: =Score!D51 -> EN-IE | E51: =Score!E51 -> 2.37 | F51: =Score!F51 -> 1 | G51: 0 | H51: 0 | K51: 0
A52: =Score!A52 -> 49 | B52: =Score!B52 -> 563040396-7 | C52: =Score!C52 -> นางสาวสุวนันท์ ดวงพิมาย | D52: =Score!D52 -> EN-IE | E52: =Score!E52 -> 2.19 | F52: =Score!F52 -> 1 | G52: 0 | H52: 0 | K52: 0
A53: =Score!A53 -> 50 | B53: =Score!B53 -> 563040397-5 | C53: =Score!C53 -> นางสาวเหมือนฝัน จินดามณี | D53: =Score!D53 -> EN-IE | E53: =Score!E53 -> 1.72 | F53: =Score!F53 -> 1 | G53: 0 | H53: 0 | K53: 0
A54: =Score!A54 -> 51 | B54: =Score!B54 -> 563040398-3 | C54: =Score!C54 -> นางสาวเหมือนฝัน เผือกไร่ | D54: =Score!D54 -> EN-ME | E54: =Score!E54 -> 2.75 | F54: =Score!F54 -> 1 | G54: 0 | H54: 0 | K54: 0
A55: =Score!A55 -> 52 | B55: =Score!B55 -> 563040400-2 | C55: =Score!C55 -> นายอดิศร โพธิ์ยา | D55: =Score!D55 -> EN-IE | E55: =Score!E55 -> 2.37 | F55: =Score!F55 -> 1 | G55: 0 | H55: 0 | K55: 0
A56: =Score!A56 -> 53 | B56: =Score!B56 -> 563040408-6 | C56: =Score!C56 -> นายอรรถศาสตร์ สุระคาย | D56: =Score!D56 -> EN-ME | E56: =Score!E56 -> 2.57 | F56: =Score!F56 -> 1 | G56: 0 | H56: 0 | K56: 0
A57: =Score!A57 -> 54 | B57: =Score!B57 -> 563040419-1 | C57: =Score!C57 -> นายชาญชัย มีสนาม | D57: =Score!D57 -> EN-AE | E57: =Score!E57 -> 2.88 | F57: =Score!F57 -> 1 | G57: 0 | H57: 0 | K57: 0
A58: =Score!A58 -> 55 | B58: =Score!B58 -> 563040424-8 | C58: =Score!C58 -> นายนิติศักดิ์ แต่งเมือง | D58: =Score!D58 -> EN-AE | E58: =Score!E58 -> 2.26 | F58: =Score!F58 -> 1 | G58: 0 | H58: 0 | K58: 0
A59: =Score!A59 -> 56 | B59: =Score!B59 -> 563040426-4 | C59: =Score!C59 -> นางสาวเพชรากร ยอดสุวรรณ์ | D59: =Score!D59 -> EN-AE | E59: =Score!E59 -> 2.89 | F59: =Score!F59 -> 1 | G59: 0 | H59: 0 | K59: 0
A60: =Score!A60 -> 57 | B60: =Score!B60 -> 563040431-1 | C60: =Score!C60 -> นายวนัส ภูยาธร | D60: =Score!D60 -> EN-AE | E60: =Score!E60 -> 2.23 | F60: =Score!F60 -> 1 | G60: 0 | H60: 0 | K60: 0
A61: =Score!A61 -> 58 | B61: =Score!B61 -> 563040433-7 | C61: =Score!C61 -> นางสาวศุภลักษณ์ เครือเพชร | D61: =Score!D61 -> EN-AE | E61: =Score!E61 -> 2.64 | F61: =Score!F61 -> 1 | G61: 0 | H61: 0 | K61: 0
A62: =Score!A62 -> 0 | B62: =Score!B62 -> 0 | C62: =Score!C62 -> 0 | D62: =Score!D62 -> 0 | E62: =Score!E62 -> 0 | F62: =Score!F62 -> 0 | G62: 0 | H62: 0 | K62: 0
A63: =Score!A63 -> 1 | B63: =Score!B63 -> 563040584-6 | C63: =Score!C63 -> นายกรนันท์ พันธะสา | D63: =Score!D63 -> EN-ME (พิเศษ ม.6) | E63: =Score!E63 -> 2.64 | F63: =Score!F63 -> 4 | G63: 0 | H63: 0 | K63: 0
A64: =Score!A64 -> 2 | B64: =Score!B64 -> 563040586-2 | C64: =Score!C64 -> นายจักรกฤษณ์ ตันเจริญ | D64: =Score!D64 -> EN-ME (พิเศษ ม.6) | E64: =Score!E64 -> 1.8 | F64: =Score!F64 -> 4 | G64: 0 | H64: 0 | K64: 0
A65: =Score!A65 -> 3 | B65: =Score!B65 -> 563040595-1 | C65: =Score!C65 -> นายทรงภพ กระสังข์ | D65: =Score!D65 -> EN-ME (พิเศษ ม.6) | E65: =Score!E65 -> 2.52 | F65: =Score!F65 -> 4 | G65: 0 | H65: 0 | K65: 0
A66: =Score!A66 -> 4 | B66: =Score!B66 -> 563040596-9 | C66: =Score!C66 -> นายทรงศิลป์ ศิริแก้ว | D66: =Score!D66 -> EN-ME (พิเศษ ม.6) | E66: =Score!E66 -> 1.9 | F66: =Score!F66 -> 4 | G66: 0 | H66: 0 | K66: 0
A67: =Score!A67 -> 5 | B67: =Score!B67 -> 563040598-5 | C67: =Score!C67 -> นายธนะโชติ สาโม้ | D67: =Score!D67 -> EN-ME (พิเศษ ม.6) | E67: =Score!E67 -> 2.12 | F67: =Score!F67 -> 4 | G67: 0 | H67: 0 | K67: 0
A68: =Score!A68 -> 6 | B68: =Score!B68 -> 563040602-0 | C68: =Score!C68 -> นางสาวปฏิมาภรณ์ ทักขินัย | D68: =Score!D68 -> EN-ME (พิเศษ ม.6) | E68: =Score!E68 -> 2.42 | F68: =Score!F68 -> 4 | G68: 0 | H68: 0 | K68: 0
A69: =Score!A69 -> 7 | B69: =Score!B69 -> 563040604-6 | C69: =Score!C69 -> นายพิฆเนศ ระเบียบโอษฐ์ | D69: =Score!D69 -> EN-ME (พิเศษ ม.6) | E69: =Score!E69 -> 1.73 | F69: =Score!F69 -> 4 | G69: =+O69 -> 0 | H69: =Q69 -> 0 | K69: =SUM(G69:J69) -> 0
A70: =Score!A70 -> 8 | B70: =Score!B70 -> 563040608-8 | C70: =Score!C70 -> นางสาวมณฑกานต์ มูลสาร | D70: =Score!D70 -> EN-ME (พิเศษ ม.6) | E70: =Score!E70 -> 1.99 | F70: =Score!F70 -> 4 | G70: 0 | H70: 0 | K70: 0
A71: =Score!A71 -> 9 | B71: =Score!B71 -> 563040609-6 | C71: =Score!C71 -> นายรัฐศาสตร์ จันใหญ่ | D71: =Score!D71 -> EN-ME (พิเศษ ม.6) | E71: =Score!E71 -> 2.47 | F71: =Score!F71 -> 4 | G71: 0 | H71: 0 | K71: 0
A72: =Score!A72 -> 10 | B72: =Score!B72 -> 563040610-1 | C72: =Score!C72 -> นายลักษมณ์ เฮงพูลธนา | D72: =Score!D72 -> EN-ME (พิเศษ ม.6) | E72: =Score!E72 -> 1.51 | F72: =Score!F72 -> 4 | G72: 0 | H72: 0 | K72: 0
A73: =Score!A73 -> 11 | B73: =Score!B73 -> 563040614-3 | C73: =Score!C73 -> นายศิวัช เฮงพูลธนา | D73: =Score!D73 -> EN-ME (พิเศษ ม.6) | E73: =Score!E73 -> 2.21 | F73: =Score!F73 -> 4 | G73: 0 | H73: 0 | K73: 0
A74: =Score!A74 -> 12 | B74: =Score!B74 -> 563040618-5 | C74: =Score!C74 -> นายเสาเอก น้อยปรีชา | D74: =Score!D74 -> EN-ME (พิเศษ ม.6) | E74: =Score!E74 -> 2.24 | F74: =Score!F74 -> 4 | G74: 0 | H74: 0 | K74: 0
A75: =Score!A75 -> 13 | B75: =Score!B75 -> 563040619-3 | C75: =Score!C75 -> นายอภิเศรษฐ์ อินทรพาณิชย์ | D75: =Score!D75 -> EN-ME (พิเศษ ม.6) | E75: =Score!E75 -> 2.59 | F75: =Score!F75 -> 4 | G75: 0 | H75: 0 | K75: 0
A76: =Score!A76 -> 14 | B76: =Score!B76 -> 563040620-8 | C76: =Score!C76 -> นายอมรเทพ วงษ์สมศรี | D76: =Score!D76 -> EN-ME (พิเศษ ม.6) | E76: =Score!E76 -> 2.02 | F76: =Score!F76 -> 4 | G76: 0 | H76: 0 | K76: 0
A77: =Score!A77 -> 0 | B77: =Score!B77 -> 0 | C77: =Score!C77 -> 0 | D77: =Score!D77 -> 0 | E77: =Score!E77 -> 0 | F77: =Score!F77 -> 0 | G77: 0 | H77: 0 | K77: 0
A78: =Score!A78 -> 0 | B78: =Score!B78 -> 0 | C78: =Score!C78 -> 0 | D78: =Score!D78 -> 0 | E78: =Score!E78 -> 0 | F78: =Score!F78 -> 0 | G78: 0 | H78: 0 | K78: 0
A79: =Score!A79 -> 0 | B79: =Score!B79 -> 0 | C79: =Score!C79 -> 0 | D79: =Score!D79 -> 0 | E79: =Score!E79 -> 0 | F79: =Score!F79 -> 0 | G79: 0 | H79: 0 | K79: 0
A80: =Score!A80 -> 0 | B80: =Score!B80 -> 0 | C80: =Score!C80 -> 0 | D80: =Score!D80 -> 0 | E80: =Score!E80 -> 0 | F80: =Score!F80 -> 0 | G80: 0 | H80: 0 | K80: 0
A81: =Score!A81 -> 0 | B81: =Score!B81 -> 0 | C81: =Score!C81 -> 0 | D81: =Score!D81 -> 0 | E81: =Score!E81 -> 0 | F81: =Score!F81 -> 0 | G81: 0 | H81: 0 | K81: 0
A82: =Score!A82 -> 0 | B82: =Score!B82 -> 0 | C82: =Score!C82 -> 0 | D82: =Score!D82 -> 0 | E82: =Score!E82 -> 0 | F82: =Score!F82 -> 0 | G82: 0 | H82: 0 | K82: 0
A83: =Score!A83 -> 0 | B83: =Score!B83 -> 0 | C83: =Score!C83 -> 0 | D83: =Score!D83 -> 0 | E83: =Score!E83 -> 0 | F83: =Score!F83 -> 0 | G83: 0 | H83: 0 | K83: 0
A84: =Score!A84 -> 0 | B84: =Score!B84 -> 0 | C84: =Score!C84 -> 0 | D84: =Score!D84 -> 0 | E84: =Score!E84 -> 0 | F84: =Score!F84 -> 0 | G84: 0 | H84: 0 | K84: 0
A85: =Score!A85 -> 0 | B85: =Score!B85 -> 0 | C85: =Score!C85 -> 0 | D85: =Score!D85 -> 0 | E85: =Score!E85 -> 0 | F85: =Score!F85 -> 0 | G85: 0 | H85: 0 | K85: 0
A86: =Score!A86 -> 0 | B86: =Score!B86 -> 0 | C86: =Score!C86 -> 0 | D86: =Score!D86 -> 0 | E86: =Score!E86 -> 0 | F86: =Score!F86 -> 0 | G86: 0 | H86: 0 | K86: 0
A87: =Score!A87 -> 0 | B87: =Score!B87 -> 0 | C87: =Score!C87 -> 0 | D87: =Score!D87 -> 0 | E87: =Score!E87 -> 0 | F87: =Score!F87 -> 0 | G87: 0 | H87: 0 | K87: 0
A88: =Score!A88 -> 0 | B88: =Score!B88 -> 0 | C88: =Score!C88 -> 0 | D88: =Score!D88 -> 0 | E88: =Score!E88 -> 0 | F88: =Score!F88 -> 0 | G88: 0 | H88: 0 | K88: 0
A89: =Score!A89 -> 0 | B89: =Score!B89 -> 0 | C89: =Score!C89 -> 0 | D89: =Score!D89 -> 0 | E89: =Score!E89 -> 0 | F89: =Score!F89 -> 0 | G89: 0 | H89: 0 | K89: 0
A90: =Score!A90 -> 0 | B90: =Score!B90 -> 0 | C90: =Score!C90 -> 0 | D90: =Score!D90 -> 0 | E90: =Score!E90 -> 0 | F90: =Score!F90 -> 0 | G90: 0 | H90: 0 | K90: 0
A91: =Score!A91 -> 0 | B91: =Score!B91 -> 0 | C91: =Score!C91 -> 0 | D91: =Score!D91 -> 0 | E91: =Score!E91 -> 0 | F91: =Score!F91 -> 0 | G91: 0 | H91: 0 | K91: 0
A92: =Score!A92 -> 0 | B92: =Score!B92 -> 0 | C92: =Score!C92 -> 0 | D92: =Score!D92 -> 0 | E92: =Score!E92 -> 0 | F92: =Score!F92 -> 0 | G92: 0 | H92: 0 | K92: 0
A93: =Score!A93 -> 0 | B93: =Score!B93 -> 0 | C93: =Score!C93 -> 0 | D93: =Score!D93 -> 0 | E93: =Score!E93 -> 0 | F93: =Score!F93 -> 0 | G93: 0 | H93: 0 | K93: 0
A94: =Score!A94 -> 0 | B94: =Score!B94 -> 0 | C94: =Score!C94 -> 0 | D94: =Score!D94 -> 0 | E94: =Score!E94 -> 0 | F94: =Score!F94 -> 0 | G94: 0 | H94: 0 | K94: 0
A95: =Score!A95 -> 0 | B95: =Score!B95 -> 0 | C95: =Score!C95 -> 0 | D95: =Score!D95 -> 0 | E95: =Score!E95 -> 0 | F95: =Score!F95 -> 0 | G95: 0 | H95: 0 | K95: 0
A96: =Score!A96 -> 0 | B96: =Score!B96 -> 0 | C96: =Score!C96 -> 0 | D96: =Score!D96 -> 0 | E96: =Score!E96 -> 0 | F96: =Score!F96 -> 0 | G96: 0 | H96: 0 | K96: 0
A97: =Score!A97 -> 0 | B97: =Score!B97 -> 0 | C97: =Score!C97 -> 0 | D97: =Score!D97 -> 0 | E97: =Score!E97 -> 0 | F97: =Score!F97 -> 0 | G97: 0 | H97: 0 | K97: 0
A98: =Score!A98 -> 0 | B98: =Score!B98 -> 0 | C98: =Score!C98 -> 0 | D98: =Score!D98 -> 0 | E98: =Score!E98 -> 0 | F98: =Score!F98 -> 0 | G98: 0 | H98: 0 | K98: 0
A99: =Score!A99 -> 0 | B99: =Score!B99 -> 0 | C99: =Score!C99 -> 0 | D99: =Score!D99 -> 0 | E99: =Score!E99 -> 0 | F99: =Score!F99 -> 0 | G99: 0 | H99: 0 | K99: 0
A100: =Score!A100 -> 0 | B100: =Score!B100 -> 0 | C100: =Score!C100 -> 0 | D100: =Score!D100 -> 0 | E100: =Score!E100 -> 0 | F100: =Score!F100 -> 0 | G100: 0 | H100: 0 | K100: 0
A101: =Score!A101 -> 0 | B101: =Score!B101 -> 0 | C101: =Score!C101 -> 0 | D101: =Score!D101 -> 0 | E101: =Score!E101 -> 0 | F101: =Score!F101 -> 0 | G101: 0 | H101: 0 | K101: 0
A102: =Score!A102 -> 0 | B102: =Score!B102 -> 0 | C102: =Score!C102 -> 0 | D102: =Score!D102 -> 0 | E102: =Score!E102 -> 0 | F102: =Score!F102 -> 0 | G102: 0 | H102: 0 | K102: 0
A103: =Score!A103 -> 0 | B103: =Score!B103 -> 0 | C103: =Score!C103 -> 0 | D103: =Score!D103 -> 0 | E103: =Score!E103 -> 0 | F103: =Score!F103 -> 0 | G103: 0 | H103: 0 | K103: 0
A104: =Score!A104 -> 0 | B104: =Score!B104 -> 0 | C104: =Score!C104 -> 0 | D104: =Score!D104 -> 0 | E104: =Score!E104 -> 0 | F104: =Score!F104 -> 0 | G104: 0 | H104: 0 | K104: 0
A105: =Score!A105 -> 0 | B105: =Score!B105 -> 0 | C105: =Score!C105 -> 0 | D105: =Score!D105 -> 0 | E105: =Score!E105 -> 0 | F105: =Score!F105 -> 0 | G105: 0 | H105: 0 | K105: 0
A106: =Score!A106 -> 0 | B106: =Score!B106 -> 0 | C106: =Score!C106 -> 0 | D106: =Score!D106 -> 0 | E106: =Score!E106 -> 0 | F106: =Score!F106 -> 0 | G106: 0 | H106: 0 | K106: 0
A107: =Score!A107 -> 0 | B107: =Score!B107 -> 0 | C107: =Score!C107 -> 0 | D107: =Score!D107 -> 0 | E107: =Score!E107 -> 0 | F107: =Score!F107 -> 0 | G107: 0 | H107: 0 | K107: 0
A108: =Score!A108 -> 0 | B108: =Score!B108 -> 0 | C108: =Score!C108 -> 0 | D108: =Score!D108 -> 0 | E108: =Score!E108 -> 0 | F108: =Score!F108 -> 0 | G108: 0 | H108: 0 | K108: 0
A109: =Score!A109 -> 0 | B109: =Score!B109 -> 0 | C109: =Score!C109 -> 0 | D109: =Score!D109 -> 0 | E109: =Score!E109 -> 0 | F109: =Score!F109 -> 0 | G109: 0 | H109: 0 | K109: 0
A110: =Score!A110 -> 0 | B110: =Score!B110 -> 0 | C110: =Score!C110 -> 0 | D110: =Score!D110 -> 0 | E110: =Score!E110 -> 0 | F110: =Score!F110 -> 0 | G110: =+O110 -> 0 | H110: 0 | K110: =SUM(G110:J110) -> 0

Sheet Midterm
A1: 195231 : THERMODYNAMICS I | D1: ข้อ 1 | E1: ข้อ 2 | F1: ข้อ 3 | G1: ข้อ 4 | H1: ข้อ 5 | I1: รวม
D2: 10 | E2: 10 | F2: 10 | G2: 10 | H2: 10 | I2: =SUM(D2:H2) -> 50
A3: Section 1
A4: 1 | B4: 553040026-9 | C4: นางสาวกนกกาญจน์ อุปสาร | I4: =SUM(D4:H4) -> 0
A5: 2 | B5: 553040032-4 | C5: นายกิตติภัทร จิตรกสิกร | I5: 0
A6: 3 | B6: 553040033-2 | C6: นายกิรติกร แก้วปานกัน | I6: 0
A7: 4 | B7: 553040041-3 | C7: นางสาวชนาธินาถ โสกงโสด | I7: 0
A8: 5 | B8: 553040045-5 | C8: นายณัฏฐกิตติ์ พูลประสงค์ | I8: 0
A9: 6 | B9: 553040047-1 | C9: นายณัฐพงษ์ กลิ่นมาลี | I9: 0
A10: 7 | B10: 553040049-7 | C10: นายณัฐวัตร สุขสำราญ | I10: 0
A11: 8 | B11: 553040050-2 | C11: นายณัฐวุฒิ ฆารประเดิม | I11: 0
A12: 9 | B12: 553040052-8 | C12: นายถิรวัฒน์ แก้วคำปอด | I12: 0
A13: 10 | B13: 553040057-8 | C13: นายธนวิชญ์ เลิศวุฒิชัยกุล | I13: 0
A14: 11 | B14: 553040059-4 | C14: นายธนากร บุญดาว | I14: 0
A15: 12 | B15: 553040060-9 | C15: นายธนานนท์ ติรวีรขจร | I15: 0
A16: 13 | B16: 553040061-7 | C16: นายธนารักษ์ ศรีน้อย | I16: 0
A17: 14 | B17: 553040063-3 | C17: นายธีรเจต เตรียมวิชานนท์ | I17: 0
A18: 15 | B18: 553040064-1 | C18: นายธีรพล เตชะเสน | I18: 0
A19: 16 | B19: 553040071-4 | C19: นายบรรยง ชัยยิ่ง | I19: 0
A20: 17 | B20: 553040072-2 | C20: นายบัญชา แก้วอาจ | I20: 0
A21: 18 | B21: 553040083-7 | C21: นายพันธวัช เก็มประโคน | I21: 0
A22: 19 | B22: 553040085-3 | C22: นายพิพัฒน์ รักทองจัน | I22: 0
A23: 20 | B23: 553040087-9 | C23: นายพิภัทรยา ศิริแว่น | I23: 0
A24: 21 | B24: 553040092-6 | C24: นายยศพนธ์ จันทร์วิเมลือง | I24: 0
A25: 22 | B25: 553040094-2 | C25: นายยุทธการ แสนเสนา | I25: 0
A26: 23 | B26: 553040095-0 | C26: นายยุทธนา พิริยะสุทธิ์ | I26: 0
A27: 24 | B27: 553040101-1 | C27: นายวรพล จันทร์ผิว | I27: 0
A28: 25 | B28: 553040104-5 | C28: นายวรานนท์ ยุทธอมร | I28: 0
A29: 26 | B29: 553040106-1 | C29: นายวศิน คำปัญโญ | I29: 0
A30: 27 | B30: 553040108-7 | C30: นายวิชญสิทธิ์ พันธุ์รักษา | I30: 0
A31: 28 | B31: 553040121-5 | C31: นายสิริวุฒิ ภูมิภูเขียว | I31: 0
A32: 29 | B32: 553040123-1 | C32: นางสาวหทัยชนก ปัญญาบุตร | I32: 0
A33: 30 | B33: 553040126-5 | C33: นายอนวัช คงวีระวัฒน์ | I33: 0
A34: 31 | B34: 553040132-0 | C34: นางสาวอรทัย ยอดแก้วพิสัย | I34: 0
A35: 32 | B35: 553040133-8 | C35: นายอรรถชัย ทองสุข | I35: 0
A36: 33 | B36: 553040136-2 | C36: นางสาวอัชฌา เสาร์สิงห์ | I36: 0
A37: 34 | B37: 553040137-0 | C37: นางสาวอัชรา เชาว์ชอบ | I37: 0
A38: 35 | B38: 553040146-9 | C38: นายเจษฎา พลชา | I38: 0
A39: 36 | B39: 553040148-5 | C39: นายเชษฐทรัพย์ ทองคำใส | I39: 0
A40: 37 | B40: 553040149-3 | C40: นายณัฐพงษ์ เหล่าจูม | I40: 0
A41: 38 | B41: 553040154-0 | C41: นางสาวนฤมล พรมพุ้ย | I41: 0
A42: 39 | B42: 553040163-9 | C42: นางสาววาสนา เคเมือง | I42: 0
A43: 40 | B43: 553040164-7 | C43: นายวิภูรินทร์ เลิศพนาลัย | I43: 0
A44: 41 | B44: 553040167-1 | C44: นายอดิศักดิ์ มุนนี | I44: 0
A45: 42 | B45: 553040169-7 | C45: นายอภิสิทธิ์ รังสิมาวงศ์ | I45: 0
A46: 43 | B46: 553040170-2 | C46: นายอาทิตย์ ภูผาผุด | I46: 0
A47: 44 | B47: 553040281-3 | C47: นายทวิชาติ อัครสันตติกุล | I47: 0
A48: 45 | B48: 553040285-5 | C48: นางสาวกนกอร แดงน้อย | I48: 0
A49: 46 | B49: 553040289-7 | C49: นายกัมปนาท ชาวดร | I49: 0
A50: 47 | B50: 553040290-2 | C50: นายกานตภณ รุ่งฤทัยวัฒน์ | I50: 0
A51: 48 | B51: 553040297-8 | C51: นางสาวขวัญตา สุวรรณจันทร์ | I51: 0
A52: 49 | B52: 553040298-6 | C52: นายคฑาวุธ นิลคุณ | I52: 0
A53: 50 | B53: 553040302-1 | C53: นายจรูญวิทย์ ยึนประโคน | I53: 0
A54: 51 | B54: 553040310-2 | C54: นายจีระวัฒน์ ศรีมีชัย | I54: 0
A55: 52 | B55: 553040312-8 | C55: นางสาวจุฑารัตน์ เลยยุทธ | I55: 0
A56: 53 | B56: 553040315-2 | C56: นางสาวจุฬารัตน์ แสนวงษ์ | I56: 0
A57: 54 | B57: 553040316-0 | C57: นางสาวเจนจิรา ปิยาโยค | I57: 0
A58: 55 | B58: 553040317-8 | C58: นายเจนณรงค์ อยู่ยง | I58: 0
A59: 56 | B59: 553040320-9 | C59: นางสาวชลธิชา นาสินสร้อย | I59: 0
A60: 57 | B60: 553040321-7 | C60: นายชลวิทย์ พิสิฐรัตนวงศ์ | I60: 0
A61: 58 | B61: 553040326-7 | C61: นางสาวญาดา ยิ้มยินดี | I61: 0
A62: 59 | B62: 553040336-4 | C62: นายทวีรัช ทาจันทร์ | I62: 0
A63: 60 | B63: 553040339-8 | C63: นายแทนพงศ์ พุทธลา | I63: 0
A64: 61 | B64: 553040340-3 | C64: นายธนกฤต เหล่าพิเดช | I64: 0
A65: 62 | B65: 553040346-1 | C65: นางสาวธันยมัย มูลมณี | I65: 0
A66: 63 | B66: 553040347-9 | C66: นายธันวา ไกยราช | I66: 0
A67: 64 | B67: 553040349-5 | C67: นายธิบดี ธิแก้ว | I67: 0
A68: 65 | B68: 553040359-2 | C68: นางสาวเบญจวรรณ มั่นวงษ์ | I68: =SUM(D68:H68) -> 0
A69: 66 | B69: 553040365-7 | C69: นางสาวปรีม สุขเสนีย์ | I69: 0
A70: 67 | B70: 553040368-1 | C70: นางสาวปุณฑริกา สิทธิกรชัย | I70: 0
A71: 68 | B71: 553040380-1 | C71: นายพิธพล พลเพชร | I71: 0
A72: 69 | B72: 553040383-5 | C72: นายพีระพงษ์ สิมงาม | I72: 0
A73: 70 | B73: 553040386-9 | C73: นายภัทรพล สารผล | I73: 0
A74: 71 | B74: 553040387-7 | C74: นายภาคภูมิ ประเสริฐ | I74: 0
A75: 72 | B75: 553040391-6 | C75: นายมารุต พลวัน | I75: 0
A76: 73 | B76: 553040397-4 | C76: นายรัชชานนท์ หาญกล้า | I76: 0
A77: 74 | B77: 553040400-1 | C77: นายวงศธร เอียตระกูลไพบูลย์ | I77: 0
A78: 75 | B78: 553040401-9 | C78: นายวชิรวิทย์ นวรัตนากร | I78: 0
A79: 76 | B79: 553040404-3 | C79: นายวนัสมัญ กฤษณะสุวรรณ | I79: 0
A80: 77 | B80: 553040417-4 | C80: นางสาวศศิวิมล กองพันธ์ | I80: 0
A81: 78 | B81: 553040420-5 | C81: นางสาวศิรินาถ ดวงพิมพ์ | I81: 0
A82: 79 | B82: 553040426-3 | C82: นายสหภาพ เพียรชนะ | I82: 0
A83: 80 | B83: 553040427-1 | C83: นายสิทธิชัย เมืองโคตร | I83: 0
A84: 81 | B84: 553040428-9 | C84: นางสาวสุกัญญา ธารานุวงศ์ | I84: 0
A85: 82 | B85: 553040429-7 | C85: นางสาวสุกัญญา เวียงสิมา | I85: 0
A86: 83 | B86: 553040430-2 | C86: นางสาวสุฑิฌา อินทนนท์ | I86: 0
A87: 84 | B87: 553040434-4 | C87: นางสาวสุรัชนา ตุ่นแก้ว | I87: 0
A88: 85 | B88: 553040436-0 | C88: นายเสฎฐฌาน น้อยอาษา | I88: 0
A89: 86 | B89: 553040448-3 | C89: นายอาทิตย์ ขาวสนิท | I89: 0
A90: 87 | B90: 553040449-1 | C90: นายอานุภาพ วิจบ | I90: 0
A91: 88 | B91: 553040450-6 | C91: นายเอกราช คำงาม | I91: 0
A92: 89 | B92: 553040454-8 | C92: นายกลวัชร จงฤาชา | I92: 0
A93: 90 | B93: 553040458-0 | C93: นางสาวจุฬาลักษณ์ ชมภูรักษ์ | I93: 0
A94: 91 | B94: 553040464-5 | C94: นางสาวทิชากร จุลพันธ์ | I94: 0
A95: 92 | B95: 553040467-9 | C95: นายนพพล รัตน์ปิยะภาภรณ์ | I95: 0
A96: 93 | B96: 553040468-7 | C96: นางสาวบังอร ทนน้ำ | I96: 0
A97: 94 | B97: 553040476-8 | C97: นายมงคลลักษ์ วงษ์ศรีมี | I97: 0
A98: 95 | B98: 553040485-7 | C98: นายอานันต์ หอมเนียม | I98: 0
A99: 1 | B99: 553040614-2 | C99: นายจตุรงค์ ถนอมศิลป์ | I99: =SUM(D99:H99) -> 0
A100: 2 | B100: 553040617-6 | C100: นายชัยศิริ ลี้มีธรรม | I100: 0
A101: 3 | B101: 553040618-4 | C101: นายเชษฐพงษ์ สาขา | I101: 0
A102: 4 | B102: 553040621-5 | C102: นายณัฐพล หอมจะบก | I102: 0
A103: 5 | B103: 553040622-3 | C103: นายทศพล ฉายจรุง | I103: 0
A104: 6 | B104: 553040623-1 | C104: นายเทพนรินทร์ อินธิราช | I104: 0
A105: 7 | B105: 553040624-9 | C105: นายธนะสิทธิ์ รุจิระโชติวัฒน์ | I105: 0
A106: 8 | B106: 553040625-7 | C106: นายธีรศักดิ์ สังสิทธิสวัสดิ์ | I106: 0
A107: 9 | B107: 553040626-5 | C107: นายปฏิภาณ สังข์ชัย | I107: 0
A108: 10 | B108: 553040631-2 | C108: นายพงศ์รัตน์ ณ หนองคาย | I108: 0
A109: 11 | B109: 553040636-2 | C109: นายรัชชานนท์ บุญอาษา | I109: 0
A110: 12 | B110: 563040310-3 | C110: นางสาวธัญชนก ธีระเดชธำรง | I110: 0
A155: Section 4

Sheet Name
B1: รายวิชา | C1: 195231 : THERMODYNAMICS I | K1: Section 1 & 4
B2: ปีการศึกษา | C2: 2557 ภาคการศึกษาที่ 1 | K2: รศ.ดร.สมหมาย ปรีเปรม
A3: ลำดับ | B3: รหัส | C3: ชื่อ | D3: หลักสูตร | E3: สถานภาพ | F3: เกรด | G3: GPA | H3: Section
A4: 1 | B4: 543040669-6 | C4: นายเกียรติขจร ทัดทาอามาตย์ | D4: EN-AE | E4: 10 | G4: 2 | H4: 1
A5: 2 | B5: 553040404-3 | C5: นายวนัสมัญ กฤษณะสุวรรณ | D5: EN-IE | E5: 10 | G5: 1.89 | H5: 1
A6: 3 | B6: 563040002-4 | C6: นายกรวิชญ์ ศรีวัฒนาปิติกุล | D6: EN-ME | E6: 10 | G6: 3.14 | H6: 1
A7: 4 | B7: 563040003-2 | C7: นายกฤช ถาไชยลา | D7: EN-ME | E7: 10 | G7: 2.84 | H7: 1
A8: 5 | B8: 563040022-8 | C8: นายณัฐพล สิทธิอมรพร | D8: EN-ME | E8: 10 | G8: 3.41 | H8: 1
A9: 6 | B9: 563040025-2 | C9: นายทรงพล เกียรติพนมแพ | D9: EN-IE | E9: 10 | G9: 3.04 | H9: 1
A10: 7 | B10: 563040032-5 | C10: นางสาวธนัชชา ใหญ่สูงเนิน | D10: EN-IE | E10: 10 | G10: 2.76 | H10: 1
A11: 8 | B11: 563040043-0 | C11: นางสาวนันทิชา จริยาโสวรรณ | D11: EN-IE | E11: 10 | G11: 2.04 | H11: 1
A12: 9 | B12: 563040044-8 | C12: นางสาวนิภาพร อายุวัฒน์ | D12: EN-ME | E12: 10 | G12: 2.92 | H12: 1
A13: 10 | B13: 563040051-1 | C13: นายพงศ์ทัช พรวิกุลรัตนา | D13: EN-ME | E13: 10 | G13: 2.63 | H13: 1
A14: 11 | B14: 563040059-5 | C14: นายพสธร นามสร | D14: EN-ME | E14: 10 | G14: 3.09 | H14: 1
A15: 12 | B15: 563040064-2 | C15: นางสาวภัทรามาศ ฉวีชัย | D15: EN-IE | E15: 10 | G15: 3.12 | H15: 1
A16: 13 | B16: 563040065-0 | C16: นายภาคิน จำปาศักดิ์ | D16: EN-ME | E16: 10 | G16: 3.51 | H16: 1
A17: 14 | B17: 563040070-7 | C17: นายมหคพันธุ์ เอมกลาง | D17: EN-ME | E17: 10 | G17: 2.71 | H17: 1
A18: 15 | B18: 563040071-5 | C18: นายมานะ ติรโรจน์ | D18: EN-ME | E18: 10 | G18: 3.46 | H18: 1
A19: 16 | B19: 563040076-5 | C19: นายรัฐศาสตร์ พลยงค์ | D19: EN-ME | E19: 10 | G19: 2.88 | H19: 1
A20: 17 | B20: 563040089-6 | C20: นายศวัสชัย วิวรรธนจิตต์ | D20: EN-IE | E20: 10 | G20: 2.79 | H20: 1
A21: 18 | B21: 563040098-5 | C21: นายสิทธิโชค ชูพงศ์พันธุ์ | D21: EN-ME | E21: 10 | G21: 2.94 | H21: 1
A22: 19 | B22: 563040114-3 | C22: นายคฑาวุธ ศรีโสดาพล | D22: EN-AE | E22: 10 | G22: 1.51 | H22: 1
A23: 20 | B23: 563040115-1 | C23: นายจุลดิศ ทองตัน | D23: EN-AE | E23: 10 | G23: 1.82 | H23: 1
A24: 21 | B24: 563040116-9 | C24: นายโชคชัย ซุยอุ้ย | D24: EN-AE | E24: 10 | G24: 3.03 | H24: 1
A25: 22 | B25: 563040121-6 | C25: นายธนพล หลาบศิริ | D25: EN-AE | E25: 10 | G25: 2.77 | H25: 1
A26: 23 | B26: 563040123-2 | C26: นายธนวร สันธนะสุรางค์ | D26: EN-AE | E26: 10 | G26: 2.35 | H26: 1
A27: 24 | B27: 563040129-0 | C27: นายพีรเมธ จุฑานันท์ | D27: EN-AE | E27: 10 | G27: 1.89 | H27: 1
A28: 25 | B28: 563040130-5 | C28: นายพีส คูณดี | D28: EN-AE | E28: 10 | G28: 2.29 | H28: 1
A29: 26 | B29: 563040137-1 | C29: นายศุภณัฐ ลัภกิตโร | D29: EN-AE | E29: 10 | G29: 2.58 | H29: 1
A30: 27 | B30: 563040139-7 | C30: นายสุธรรม ดิษาภิรมย์ | D30: EN-AE | E30: 10 | G30: 1.78 | H30: 1
A31: 28 | B31: 563040231-9 | C31: นายอธิการ สุริโย | D31: EN-IE | E31: 10 | G31: 1.71 | H31: 1
A32: 29 | B32: 563040260-2 | C32: นางสาวณัฐณิชา ศิริเหล่าไพศาล | D32: EN-IE | E32: 10 | G32: 3.17 | H32: 1
A33: 30 | B33: 563040269-4 | C33: นายกนกพล แก้วเฮียง | D33: EN-ME | E33: 10 | G33: 3.06 | H33: 1
A34: 31 | B34: 563040272-5 | C34: นายกีรติ มังษา | D34: EN-ME | E34: 10 | G34: 2.87 | H34: 1
A35: 32 | B35: 563040275-9 | C35: นางสาวคุณัญญา ทวีสอน | D35: EN-ME | E35: 10 | G35: 2.69 | H35: 1
A36: 33 | B36: 563040289-8 | C36: นางสาวโชติณัฐ จงใจหาญ | D36: EN-IE | E36: 10 | G36: 3 | H36: 1
A37: 34 | B37: 563040292-9 | C37: นางสาวฐิติพร ฐานหมั่น | D37: EN-IE | E37: 10 | G37: 2.12 | H37: 1
A38: 35 | B38: 563040296-1 | C38: นางสาวณัฐชยา ทัศนจินดา | D38: EN-IE | E38: 10 | G38: 2.75 | H38: 1
A39: 36 | B39: 563040304-8 | C39: นายธนพนธ์ ตั้งวัฒนสุวรรณ | D39: EN-IE | E39: 10 | G39: 2.44 | H39: 1
A40: 37 | B40: 563040313-7 | C40: นายธาดา วิริยบัณฑร | D40: EN-ME | E40: 10 | G40: 3.49 | H40: 1
A41: 38 | B41: 563040315-3 | C41: นางสาวธิดาวรรณ ใจตรง | D41: EN-IE | E41: 10 | G41: 2.48 | H41: 1
A42: 39 | B42: 563040334-9 | C42: นายพชร ไชยสมบูรณ์ | D42: EN-IE | E42: 10 | G42: 2.32 | H42: 1
A43: 40 | B43: 563040341-2 | C43: นายพิทวัส เบ้าศรี | D43: EN-ME | E43: 10 | G43: 2.68 | H43: 1
A44: 41 | B44: 563040344-6 | C44: นายไพโรจน์ วงษ์จำปา | D44: EN-ME | E44: 10 | G44: 2.61 | H44: 1
A45: 42 | B45: 563040346-2 | C45: นายภระรถ ผาสิงห์ | D45: EN-ME | E45: 10 | G45: 3.13 | H45: 1
A46: 43 | B46: 563040351-9 | C46: นางสาวมุกดารัศมิ์ อาจบรรจง | D46: EN-ME | E46: 10 | G46: 2.96 | H46: 1
A47: 44 | B47: 563040359-3 | C47: นายวริษฐ์ จวงพุ่ม | D47: EN-IE | E47: 10 | G47: 2.34 | H47: 1
A48: 45 | B48: 563040367-4 | C48: นายไวพจน์ แสงกุดเรือ | D48: EN-ME | E48: 10 | G48: 2.78 | H48: 1
A49: 46 | B49: 563040389-4 | C49: นางสาวสุธีรา นาหัวนิล | D49: EN-IE | E49: 10 | G49: 2.3 | H49: 1
A50: 47 | B50: 563040393-3 | C50: นายสุภานุเดช ถาวิกุล | D50: EN-IE | E50: 10 | G50: 1.58 | H50: 1
A51: 48 | B51: 563040394-1 | C51: นางสาวสุภาวิตา ทาเวียง | D51: EN-IE | E51: 10 | G51: 2.37 | H51: 1
A52: 49 | B52: 563040396-7 | C52: นางสาวสุวนันท์ ดวงพิมาย | D52: EN-IE | E52: 10 | G52: 2.19 | H52: 1
A53: 50 | B53: 563040397-5 | C53: นางสาวเหมือนฝัน จินดามณี | D53: EN-IE | E53: 10 | G53: 1.72 | H53: 1
A54: 51 | B54: 563040398-3 | C54: นางสาวเหมือนฝัน เผือกไร่ | D54: EN-ME | E54: 10 | G54: 2.75 | H54: 1
A55: 52 | B55: 563040400-2 | C55: นายอดิศร โพธิ์ยา | D55: EN-IE | E55: 10 | G55: 2.37 | H55: 1
A56: 53 | B56: 563040408-6 | C56: นายอรรถศาสตร์ สุระคาย | D56: EN-ME | E56: 10 | G56: 2.57 | H56: 1
A57: 54 | B57: 563040419-1 | C57: นายชาญชัย มีสนาม | D57: EN-AE | E57: 10 | G57: 2.88 | H57: 1
A58: 55 | B58: 563040424-8 | C58: นายนิติศักดิ์ แต่งเมือง | D58: EN-AE | E58: 10 | G58: 2.26 | H58: 1
A59: 56 | B59: 563040426-4 | C59: นางสาวเพชรากร ยอดสุวรรณ์ | D59: EN-AE | E59: 10 | G59: 2.89 | H59: 1
A60: 57 | B60: 563040431-1 | C60: นายวนัส ภูยาธร | D60: EN-AE | E60: 10 | G60: 2.23 | H60: 1
A61: 58 | B61: 563040433-7 | C61: นางสาวศุภลักษณ์ เครือเพชร | D61: EN-AE | E61: 10 | G61: 2.64 | H61: 1
A63: 1 | B63: 563040584-6 | C63: นายกรนันท์ พันธะสา | D63: EN-ME (พิเศษ ม.6) | E63: 10 | G63: 2.64 | H63: 4
A64: 2 | B64: 563040586-2 | C64: นายจักรกฤษณ์ ตันเจริญ | D64: EN-ME (พิเศษ ม.6) | E64: 10 | G64: 1.8 | H64: 4
A65: 3 | B65: 563040595-1 | C65: นายทรงภพ กระสังข์ | D65: EN-ME (พิเศษ ม.6) | E65: 10 | G65: 2.52 | H65: 4
A66: 4 | B66: 563040596-9 | C66: นายทรงศิลป์ ศิริแก้ว | D66: EN-ME (พิเศษ ม.6) | E66: 10 | G66: 1.9 | H66: 4
A67: 5 | B67: 563040598-5 | C67: นายธนะโชติ สาโม้ | D67: EN-ME (พิเศษ ม.6) | E67: 10 | G67: 2.12 | H67: 4
A68: 6 | B68: 563040602-0 | C68: นางสาวปฏิมาภรณ์ ทักขินัย | D68: EN-ME (พิเศษ ม.6) | E68: 10 | G68: 2.42 | H68: 4
A69: 7 | B69: 563040604-6 | C69: นายพิฆเนศ ระเบียบโอษฐ์ | D69: EN-ME (พิเศษ ม.6) | E69: 10 | G69: 1.73 | H69: 4
A70: 8 | B70: 563040608-8 | C70: นางสาวมณฑกานต์ มูลสาร | D70: EN-ME (พิเศษ ม.6) | E70: 10 | G70: 1.99 | H70: 4
A71: 9 | B71: 563040609-6 | C71: นายรัฐศาสตร์ จันใหญ่ | D71: EN-ME (พิเศษ ม.6) | E71: 10 | G71: 2.47 | H71: 4
A72: 10 | B72: 563040610-1 | C72: นายลักษมณ์ เฮงพูลธนา | D72: EN-ME (พิเศษ ม.6) | E72: 10 | G72: 1.51 | H72: 4
A73: 11 | B73: 563040614-3 | C73: นายศิวัช เฮงพูลธนา | D73: EN-ME (พิเศษ ม.6) | E73: 10 | G73: 2.21 | H73: 4
A74: 12 | B74: 563040618-5 | C74: นายเสาเอก น้อยปรีชา | D74: EN-ME (พิเศษ ม.6) | E74: 10 | G74: 2.24 | H74: 4
A75: 13 | B75: 563040619-3 | C75: นายอภิเศรษฐ์ อินทรพาณิชย์ | D75: EN-ME (พิเศษ ม.6) | E75: 10 | G75: 2.59 | H75: 4
A76: 14 | B76: 563040620-8 | C76: นายอมรเทพ วงษ์สมศรี | D76: EN-ME (พิเศษ ม.6) | E76: 10 | G76: 2.02 | H76: 4

Sheet Test1 Name
A1: รายวิชา 195231 : THERMODYNAMICS I | F1: ปีการศึกษา 2556 ภาคการศึกษาที่ 1 | I1: รศ.ดร.สมหมาย ปรีเปรม
B2: Test 1 Saturday 27 September 2014 | I2: Section 1&4
A3: ที่ | B3: รหัส | C3: ชื่อ | F3: ที่ | G3: รหัส | H3: ชื่อ
A4: 1 | B4: 513041112-7 | C4: นายมติชน โอษะคลัง | F4: 44 | G4: 563040289-8 | H4: นางสาวโชติณัฐ จงใจหาญ
A5: 2 | B5: 543040294-3 | C5: นายอธิปไตย นวลศิริ | F5: 45 | G5: 563040292-9 | H5: นางสาวฐิติพร ฐานหมั่น
A6: 3 | B6: 543040669-6 | C6: นายเกียรติขจร ทัดทาอามาตย์ | F6: 46 | G6: 563040296-1 | H6: นางสาวณัฐชยา ทัศนจินดา
A7: 4 | B7: 543040670-1 | C7: นางสาวขนิษฐา ทวีแสง | F7: 47 | G7: 563040297-9 | H7: นายณัฐภัทร ศรีสม
A8: 5 | B8: 543040677-7 | C8: นายธีรภัทร แก้วมะ | F8: 48 | G8: 563040304-8 | H8: นายธนพนธ์ ตั้งวัฒนสุวรรณ
A9: 6 | B9: 563040002-4 | C9: นายกรวิชญ์ ศรีวัฒนาปิติกุล | F9: 49 | G9: 563040313-7 | H9: นายธาดา วิริยบัณฑร
A10: 7 | B10: 563040003-2 | C10: นายกฤช ถาไชยลา | F10: 50 | G10: 563040315-3 | H10: นางสาวธิดาวรรณ ใจตรง
A11: 8 | B11: 563040022-8 | C11: นายณัฐพล สิทธิอมรพร | F11: 51 | G11: 563040329-2 | H11: นายปรัชญาวัชร วรรณชัย
A12: 9 | B12: 563040025-2 | C12: นายทรงพล เกียรติพนมแพ | F12: 52 | G12: 563040334-9 | H12: นายพชร ไชยสมบูรณ์
A13: 10 | B13: 563040032-5 | C13: นางสาวธนัชชา ใหญ่สูงเนิน | F13: 53 | G13: 563040341-2 | H13: นายพิทวัส เบ้าศรี
A14: 11 | B14: 563040043-0 | C14: นางสาวนันทิชา จริยาโสวรรณ | F14: 54 | G14: 563040344-6 | H14: นายไพโรจน์ วงษ์จำปา
A15: 12 | B15: 563040044-8 | C15: นางสาวนิภาพร อายุวัฒน์ | F15: 55 | G15: 563040346-2 | H15: นายภระรถ ผาสิงห์
A16: 13 | B16: 563040051-1 | C16: นายพงศ์ทัช พรวิกุลรัตนา | F16: 56 | G16: 563040348-8 | H16: นายภัทรธร สุดาจันทร์
A17: 14 | B17: 563040059-5 | C17: นายพสธร นามสร | F17: 57 | G17: 563040350-1 | H17: นายภูริเดช บุดดาวงศ์
A18: 15 | B18: 563040064-2 | C18: นางสาวภัทรามาศ ฉวีชัย | F18: 58 | G18: 563040351-9 | H18: นางสาวมุกดารัศมิ์ อาจบรรจง
A19: 16 | B19: 563040065-0 | C19: นายภาคิน จำปาศักดิ์ | F19: 59 | G19: 563040359-3 | H19: นายวริษฐ์ จวงพุ่ม
A20: 17 | B20: 563040070-7 | C20: นายมหคพันธุ์ เอมกลาง | F20: 60 | G20: 563040367-4 | H20: นายไวพจน์ แสงกุดเรือ
A21: 18 | B21: 563040071-5 | C21: นายมานะ ติรโรจน์ | F21: 61 | G21: 563040374-7 | H21: นางสาวศิวะพร ภูเงินเหรียญ
A22: 19 | B22: 563040076-5 | C22: นายรัฐศาสตร์ พลยงค์ | F22: 62 | G22: 563040389-4 | H22: นางสาวสุธีรา นาหัวนิล
A23: 20 | B23: 563040087-0 | C23: นายวุฒินันท์ สัจสุวรรณ | F23: 63 | G23: 563040393-3 | H23: นายสุภานุเดช ถาวิกุล
A24: 21 | B24: 563040089-6 | C24: นายศวัสชัย วิวรรธนจิตต์ | F24: 64 | G24: 563040394-1 | H24: นางสาวสุภาวิตา ทาเวียง
A25: 22 | B25: 563040098-5 | C25: นายสิทธิโชค ชูพงศ์พันธุ์ | F25: 65 | G25: 563040396-7 | H25: นางสาวสุวนันท์ ดวงพิมาย
A26: 23 | B26: 563040107-0 | C26: นายอภิเดช ชมภูวิเศษ | F26: 66 | G26: 563040397-5 | H26: นางสาวเหมือนฝัน จินดามณี
A27: 24 | B27: 563040114-3 | C27: นายคฑาวุธ ศรีโสดาพล | F27: 67 | G27: 563040398-3 | H27: นางสาวเหมือนฝัน เผือกไร่
A28: 25 | B28: 563040115-1 | C28: นายจุลดิศ ทองตัน | F28: 68 | G28: 563040400-2 | H28: นายอดิศร โพธิ์ยา
A29: 26 | B29: 563040116-9 | C29: นายโชคชัย ซุยอุ้ย | F29: 69 | G29: 563040408-6 | H29: นายอรรถศาสตร์ สุระคาย
A30: 27 | B30: 563040118-5 | C30: นายณพงศ์ พรหมแสนวิเศษ | F30: 70 | G30: 563040419-1 | H30: นายชาญชัย มีสนาม
A31: 28 | B31: 563040119-3 | C31: นายณพรัช ศรีวัฒน์ | F31: 71 | G31: 563040424-8 | H31: นายนิติศักดิ์ แต่งเมือง
A32: 29 | B32: 563040120-8 | C32: นายณัฐธพงษ์ ปภาศรีวิบูลย์ | F32: 72 | G32: 563040426-4 | H32: นางสาวเพชรากร ยอดสุวรรณ์
A33: 30 | B33: 563040121-6 | C33: นายธนพล หลาบศิริ | F33: 73 | G33: 563040431-1 | H33: นายวนัส ภูยาธร
A34: 31 | B34: 563040123-2 | C34: นายธนวร สันธนะสุรางค์ | F34: 74 | G34: 563040433-7 | H34: นางสาวศุภลักษณ์ เครือเพชร
A35: 32 | B35: 563040128-2 | C35: นายพิเชษฐ์ สังเกตชน | F35: 75 | G35: 563040435-3 | H35: นายอัฑฒสิทธิ์ สุรเสียง
A36: 33 | B36: 563040129-0 | C36: นายพีรเมธ จุฑานันท์
A37: 34 | B37: 563040130-5 | C37: นายพีส คูณดี | F37: Section 4
A38: 35 | B38: 563040137-1 | C38: นายศุภณัฐ ลัภกิตโร | F38: 1 | G38: 563040586-2 | H38: นายจักรกฤษณ์ ตันเจริญ
A39: 36 | B39: 563040139-7 | C39: นายสุธรรม ดิษาภิรมย์ | F39: 2 | G39: 563040595-1 | H39: นายทรงภพ กระสังข์
A40: 37 | B40: 563040218-1 | C40: นายณัฐพล มะลาศรี | F40: 3 | G40: 563040596-9 | H40: นายทรงศิลป์ ศิริแก้ว
A41: 38 | B41: 563040230-1 | C41: นางสาวสุธินี เวียงดาว | F41: 4 | G41: 563040598-5 | H41: นายธนะโชติ สาโม้
A42: 39 | B42: 563040231-9 | C42: นายอธิการ สุริโย | F42: 5 | G42: 563040604-6 | H42: นายพิฆเนศ ระเบียบโอษฐ์
A43: 40 | B43: 563040260-2 | C43: นางสาวณัฐณิชา ศิริเหล่าไพศาล | F43: 6 | G43: 563040609-6 | H43: นายรัฐศาสตร์ จันใหญ่
A44: 41 | B44: 563040269-4 | C44: นายกนกพล แก้วเฮียง | F44: 7 | G44: 563040610-1 | H44: นายลักษมณ์ เฮงพูลธนา
A45: 42 | B45: 563040272-5 | C45: นายกีรติ มังษา | F45: 8 | G45: 563040614-3 | H45: นายศิวัช เฮงพูลธนา
A46: 43 | B46: 563040275-9 | C46: นางสาวคุณัญญา ทวีสอน | F46: 9 | G46: 563040619-3 | H46: นายอภิเศรษฐ์ อินทรพาณิชย์
